Workbook

Sheet Acciones del Plan
B1: PROCESO | C1: PLANEACIÓN DE LA GESTIÓN INSTITUCIONAL | T1: CÓDIGO | U1: PGFT20 | Z1: Plan Estratégico
B2: FORMATO | C2: PROGRAMACIÓN PLAN DE ACCIÓN INSTITUCIONAL | T2: VERSIÓN | U2: 8 | Z2: Plan Institucional de Archivos de la Entidad ­PINAR
A3: Aprobado: 12/01/2021 | Z3: Plan Anual de Adquisiciones
A4: PLAN ESTRATÉGICO Objetivo 1. Rediseñar la arquitectura organizacional de la entidad para fortalecer sus capacidades Objetivo 2. Optimizar y modernizar los procesos misionales y de apoyo de la entidad gracias al uso de nuevas tecnologías Objetivo 3. Fortalecer la democracia mediante reformas legales estratégicas, el posicionamiento del nuevo sistema democrático juvenil y la adopción de un enfoque diferencial Objetivo 4. Priorizar el servicio al usuario como eje central para la creación de valor público Objetivo 5. Hacer de la RNEC una entidad respetuosa del medio ambiente que contribuya a la mitigación del cambio climático | Z4: Plan Estratégico de Talento Humano
A5: Macroproceso | B5: Proceso o proyecto | C5: Número de la actividad | D5: Actividad | E5: Planes Institucionales y / o estratégico al cual se integra | F5: N°. Objetivo Estratégico | G5: Estrategia | H5: Resultado esperado | I5: Indicador de seguimiento | J5: Meta anual | K5: Evidencia | L5: Fuente de verificación | M5: Meta por bimestre | S5: Nombre de Directivo(s) responsable(s) | T5: Fecha | Z5: Plan Ide Incentivos Institucionales
M6: Enero - Febrero | N6: Marzo - Abril | O6: Mayo - Junio | P6: Julio - Agosto | Q6: Septiembre - Octubre | R6: Noviembre - Diciembre | T6: Inicio | U6: Finalización | Z6: Plan Institucional de Capacitación
A7: Planeación y Direccionamiento Estratégico | B7: Planeación de la gestión institucional | C7: 1 | D7: Elaborar informe de seguimiento del Plan Estratégico La Registraduría del siglo XXI correspondiente al segundo semestre de 2020 | E7: N/A | H7: Realizar las actividades para elaborar el Informe de seguimiento del Plan Estratégico La Registraduría del siglo XXI correspondiente al segundo semestre de 2020 | I7: Cantidad de actividades realizadas para elaborar el informe de seguimeinto al Plan estratégico/(n*Cantidad de actividades programadas para elaborar el informe de seguimiento al Plan estratégico) | J7: 1 | K7: Informe | L7: Oficina de Planeación | M7: 1 | S7: José Fernando Flórez | T7: 2021-01-12 | U7: 2021-01-31 | Z7: Plan de Trabajo Anual en Seguridad y Salud en el Trabajo
A8: Planeación y Direccionamiento Estratégico | B8: Planeación de la gestión institucional | C8: 2 | D8: Consolidar el Informe de la Gestión Institucional 2020 | E8: N/A | H8: Realiza el 100% de las actividades para consolidar el Informe de la Gestión Institucional 2020 | I8: Cantidad de actividades realizadas para consolidar el Informe de la Gestión Institucional 2020/(n*Cantidad de actividades programadas para consolidar el Informe de la Gestión Institucional 2020) | J8: 1 | K8: Informe | L8: Oficina de Planeación | M8: 1 | S8: José Fernando Flórez | T8: 2021-01-19 | U8: 2021-01-31
A9: Planeación y Direccionamiento Estratégico | B9: Planeación de la gestión institucional | C9: 3 | D9: Realizar revisión de las estrategias del plan estratégico La Registraduría del siglo XXI | E9: N/A | H9: Realizar 100% de las actividades para revisión de las estrategias del plan estratégico La Registraduría del siglo XXI | I9: Cantidad de actividades realizadas para revisar las estratégias del Plan estratégico/(n*Cantidad de actividades programadas para revisar las estratégias del Plan estratégico) | J9: 1 | K9: Reportes | L9: Oficina de Planeación | M9: 1 | S9: José Fernando Flórez | T9: 01//2/021 | U9: 2021-02-26 | Z9: Plan Estratégico de Tecnológias de la Información y las comunicaciónes PETI
A10: Planeación y Direccionamiento Estratégico | B10: Planeación de la gestión institucional | C10: 4 | D10: Elaborar informe de seguimiento de los proyectos de inversión vigencia 2020 | E10: N/A | H10: Elaborar informe de seguimiento de los proyectos de inversión vigencia 2020 | I10: Cantidad de informes de seguimeinto realizados / (n*Cantidad de informes de seguimiento programados) | J10: 1 | K10: Informe | L10: Oficina de Planeación | M10: 1 | S10: José Fernando Flórez | T10: 2021-02-01 | U10: 2021-02-28 | Z10: Plan de Tratamiento de Riesgos de seguridad y Privacidad de la Información
A11: Planeación y Direccionamiento Estratégico | B11: Planeación de la gestión institucional | C11: 5 | D11: Elaborar informe de seguimiento de los proyectos de inversión vigencia 2021 | E11: N/A | H11: Realizar el 100% de las actividades programadas | I11: Cantidad de actividades realizadas en el periodo /(n*Cantidad de actividades programdas en el periodo) | J11: 1 | K11: Informe | L11: Oficina de Planeación | N11: =1/5 -> 0.2 | O11: =1/5 -> 0.2 | P11: =1/5 -> 0.2 | Q11: 0.2 | R11: 0.2 | S11: José Fernando Flórez | T11: 2021-03-01 | U11: 2021-12-31 | Z11: Plan de seguridad y Privacidad de la Información
A12: Planeación y Direccionamiento Estratégico | B12: Planeación de la gestión institucional | C12: 6 | D12: Realizar seguimiento y elaborar reportes de la ejecución presupuestal de los proyectos de inversión RNEC, FRR y CNE. Vigencia 2021 | E12: N/A | H12: Realizar el 100% de las actividades de seguimiento a la ejecución presupuestal de los proyectos de inversión RNEC, FRR y CNE. Vigencia 2021 | I12: Cantidad de actividades de seguimeinto realizadas en el periodo /(n*Cantidad de actividades de seguimeinto programadas en el periodo) | J12: 1 | K12: Reportes | L12: Oficina de Planeación | M12: =1/6 -> 0.1666666667 | N12: =1/6 -> 0.1666666667 | O12: 0.1666666667 | P12: 0.1666666667 | Q12: 0.1666666667 | R12: 0.1666666667 | S12: José Fernando Flórez | T12: 2021-01-02 | U12: 2021-12-31 | Z12: Plan de Gestión Ambiental
A13: Planeación y Direccionamiento Estratégico | B13: Planeación de la gestión institucional | C13: 7 | D13: Dar viabilidad a la actualización de los proyectos de inversión 2021 | E13: N/A | H13: Dar viabilidad a las actualizaciones de proyectos de inversión para la vigencias 2021 | I13: Cantidad de proyectos viabilizados por actualización en el periodo/(n*Cantidad de proyectos a viabilizar por actualización en el periodo) | J13: 1 | K13: Fichas EBI | L13: Oficina de Planeación | O13: 0.5 | R13: 0.5 | S13: José Fernando Flórez | T13: 2021-01-02 | U13: 2021-12-31 | Z13: Plan de gestión Ética
A14: Planeación y Direccionamiento Estratégico | B14: Planeación de la gestión institucional | C14: 8 | D14: Dar viabilidad a la inscripción de los proyectos de inversión 2022 | E14: N/A | H14: Viabilizar la inscripción de los proyectos de inversión 2022 | I14: Cantidad de proyectos incritos por en el periodo/(n*Cantidad de solicitudes de inscripción de proyectos recibidas en el periodo) | J14: 1 | K14: Fichas EBI | L14: Oficina de Planeación | N14: 1 | S14: José Fernando Flórez | T14: 2021-03-01 | U14: 2021-04-30 | Z14: N/A
A15: Planeación y Direccionamiento Estratégico | B15: Planeación de la gestión institucional | C15: 9 | D15: Dar viabilidad a la actualización de los proyectos de inversión 2022 | E15: N/A | H15: Dar viabilidad a las actualizaciones de proyectos de inversión para la vigencias 2022 | I15: Cantidad de proyectos viabilizados por actualización/ (n*Cantidad de proyectos a viabilizar por actualización) | J15: 1 | K15: Fichas EBI | L15: Oficina de Planeación | R15: 1 | S15: José Fernando Flórez | T15: 2021-11-01 | U15: 2021-12-31
A16: Planeación y Direccionamiento Estratégico | B16: Planeación de la gestión institucional | C16: 10 | D16: Analizar, consolidar y registrar en el aplicativo SIIF Nación del Ministerio de Hacienda y Crédito Público el Anteproyecto de Presupuesto de funcionamiento e inversión vigencia 2022 de la Registraduria Nacional del Estado Civil y sus fondos adscritos; y del Consejo Nacional Electoral. | E16: N/A | H16: Analizar, consolidar y registrar en el aplicativo SIIF Nación del Ministerio de Hacienda y Crédito Público el Anteproyecto de Presupuesto de funcionamiento e inversión vigencia 2022 de la Registraduria Nacional del Estado Civil y sus fondos adscritos; y del Consejo Nacional Electoral. | I16: Cantidad de actividades realizadas para registrar el Anteproyecto de presupuesto/(n*Cantidad de actividades programadas para registrar el Anteproyecto de presupuesto) | J16: 1 | K16: Reportes de registro emitidos por el SIIF Nación | L16: Oficina de Planeación | M16: 0.5 | N16: 0.5 | S16: José Fernando Flórez | T16: 2021-01-20 | U16: 2021-03-31
A17: Planeación y Direccionamiento Estratégico | B17: Planeación de la gestión institucional | C17: 11 | D17: Elaborar la cuenta anual consolidada de la Contraloría General de la República | E17: N/A | H17: Elaborar la cuenta anual consolidada de la Contraloría General de la República | I17: Cantidad de fortmatos de cuentas consolidados para la Contraloría General de República/(n*Cantidad de fortmatos de cuentas de programados para consolidar) | J17: 1 | K17: Formatos | L17: Oficina de Planeación | M17: 100% | S17: José Fernando Flórez | T17: 2020-02-01 | U17: 2020-02-28
A18: Planeación y Direccionamiento Estratégico | B18: Planeación de la gestión institucional | C18: 12 | D18: Elaborar documentos justificativos de los anteproyectos de presupuesto de la Registraduria Nacional del Estado Civil y sus fondos adscritos; y del Consejo Nacional Electoral. | E18: N/A | H18: Elaborar documentos justificativos de los anteproyectos de presupuesto de la Registraduria Nacional del Estado Civil y sus fondos adscritos; y del Consejo Nacional Electoral. | I18: Cantidad de documentos justificativos elaborados en el periodo/(n*Cantidad de documentos justificativos pendietes de elaborar en el periodo) | J18: 1 | K18: Documentos | L18: Oficina de Planeación | N18: 100% | S18: José Fernando Flórez | T18: 2021-03-01 | U18: 2021-04-30
A19: Planeación y Direccionamiento Estratégico | B19: Planeación de la gestión institucional | C19: 13 | D19: Elaborar presentación y sustentación del Marco de Gastos de Mediano plazo - MGMP 2022-2025 de la RNEC y sus fondos adscritos y del Consejo Nacional Electoral de acuerdo a los lineamientos Minhacienda. | E19: N/A | H19: Realizar el 100% de las actividades para elaborar presentación y sustentación del Marco de Gastos de Mediano plazo - MGMP 2022-2025 de la RNEC y sus fondos adscritos y del Consejo Nacional Electoral de acuerdo a los lineamientos Minhacienda. | I19: Cantidad de actividades realizadas en el periodo para presentar y sustentar el Marco de gasto a mediano plazo/(Cantidad de actividades programadas en el periodo para para presentar y sustentar el Marco de gasto a mediano plazo) | J19: 1 | K19: Presentación | L19: Oficina de Planeación | O19: 1 | S19: José Fernando Flórez | T19: 2021-05-01 | U19: 2021-06-30 | Z19: Plan Anticorrupción y de Atención al Ciudadano
A20: Planeación y Direccionamiento Estratégico | B20: Planeación de la gestión institucional | C20: 14 | D20: Elaborar el Plan Operativo anual de Inversión- POAI en el aplicativo SUIFP del DNP vigencia 2022. | E20: N/A | H20: Elaborar el Plan Operativo anual de Inversión- POAI en el aplicativo SUIFP del DNP vigencia 2022. | I20: Cantidad de reportes de planes operativos realizados en el periodo/(n*Cantidad de planes operativos programados en el periodo) | J20: 1 | K20: Reportes de registro emitidos por el aplicativo SUIFP-DNP | L20: Oficina de Planeación | P20: 1 | S20: José Fernando Flórez | T20: 2021-07-01 | U20: 2021-08-31
A21: Planeación y Direccionamiento Estratégico | B21: Planeación de la gestión institucional | C21: 15 | D21: Elaborar informe de seguimiento del Plan Estratégico La Registraduría del siglo XXI primer semestre de 2021. | E21: N/A | H21: Realizar el 100% de las actividades programadas | I21: Cantidad de actividades realizadas en el periodo/(Cantidad de actividades programadas en el periodo | J21: 1 | K21: Informe | L21: Oficina de Planeación | P21: 100% | S21: José Fernando Flórez | T21: 2021-07-12 | U21: 2021-08-31
A22: Planeación y Direccionamiento Estratégico | B22: Planeación de la gestión institucional | C22: 16 | D22: Elaborar el informe de rendición de cuentas 2021 | E22: N/A | H22: Realizar el 100% de las actividades para Elaborar el informe de rendición de cuentas 2021 | I22: Cantidad de actividades realizadas en el periodo para elaborar el informe de rendicion de cuentas/(n*Cantidad de actividades programadas en el periodo para elaborar el informe de rendicion de cuentaso) | J22: 1 | K22: Informe | L22: Oficina de Planeación | R22: 1 | S22: José Fernando Flórez | T22: 2021-11-01 | U22: 2021-12-15
A23: Planeación y Direccionamiento Estratégico | B23: Planeación de la gestión institucional | C23: 1 | D23: Mantener actualizado el tablero de control | E23: N/A | H23: Realizar el 100% de las acctualización programadas de Tablero de control | I23: Cantidad de cargue de datos realizados/(n)*Cantidad de cargue de datos programadas a realizar en el periodo | J23: 1 | K23: Link Tablero de Control con datos cargados | L23: \\rnec-fs-00\Planeacion\Tablero_Control | M23: 0.1666666667 | N23: 0.1666666667 | O23: 0.1666666667 | P23: 0.1666666667 | Q23: 0.1666666667 | R23: 0.1666666667 | S23: José Fernando Flórez Ruiz | T23: 2021-01-02 | U23: 2021-12-31
A24: Planeación y Direccionamiento Estratégico | B24: Planeación de la gestión institucional | C24: 1 | D24: Consolidar y hacer seguimeinto al Plan de Acción Institucional de la RNEC | E24: N/A | H24: Realizar el 100% de las actividades para gestionar el Plan de Acción Institucional de la RNEC | I24: Cantidad de actividades realizadas en periodo para gestionar el PAI / (n*Cantidad de actividades programdas para gestionar el PAI) | J24: 1 | K24: Reporte de segumiento del PAI 6 Bimestre de 2020 PAI de la vigencia 2021 publicado en la página WEB de la entidad Reportes de seguimiento a PAI bimestres 1,2,3, 4 y 5 de la vigencia 2021 | L24: Sharepoint Vinculo de publicacion del PAI en la WEB institucional | M24: 0.1666666667 | N24: 0.1666666667 | O24: 0.1666666667 | P24: 0.1666666667 | Q24: 0.1666666667 | R24: 0.1666666667 | S24: José Fernando Flórez Ruiz | T24: 2021-01-02 | U24: 2021-12-31
A25: Planeación y Direccionamiento Estratégico | B25: Planeación de la gestión institucional | C25: 1 | D25: Actualizar el plan de gestión ambiental del entidad | E25: Plan de Gestión Ambiental | F25: Objetivo_5._Hacer_de_la_RNEC_una_entidad_respetuosa_del_medio_ambiente_que_contribuya_a_la_mitigación_del_cambio_climático | G25: 1. Elaborar el Plan de Gestión Ambiental (PGA) de la entidad para el cuatrienio | H25: Realizar el 100% de las activiades para actualizar el PIGA | I25: Cantidad de actividades realizadas en el periodo para actualizar el PIGA/(n*Cantidad de actividades programadas para actualizar el PIGA) | J25: 1 | K25: PIGA actualizado y publicado | L25: Intranet | N25: 1 | S25: José Fernando Flórez | T25: 2021-03-01 | U25: 2021-04-30
A26: Planeación y Direccionamiento Estratégico | B26: Planeación de la gestión institucional | C26: 2 | D26: Elaborar un modelo de adquisición sostenible de bienes y servicios para la entidad | E26: Plan de Gestión Ambiental | F26: Objetivo_5._Hacer_de_la_RNEC_una_entidad_respetuosa_del_medio_ambiente_que_contribuya_a_la_mitigación_del_cambio_climático | G26: 2. Desarrollar un modelo sostenible de adquisición de bienes y servicios | H26: Realizar el 100% de las actividades para elaborar un modelo de adquisición sostenible de bienes y servicios para la entidad | I26: Cantidad de actividades realizadas en el periodo para actualizar el PIGA/(n*Cantidad de actividades programadas para actualizar el PIGA) | J26: 1 | K26: Documento modelo de adquisición sostenible de bienes y servicios | L26: Archivo Oficina de Planeación | O26: 0.5 | R26: 0.5 | S26: José Fernando Flórez | T26: 2021-05-01 | U26: 2021-06-30
A27: Planeación y Direccionamiento Estratégico | B27: Planeación de la gestión institucional | C27: 3 | D27: Gestionar convenios con Asociaciones de recicladores de oficio, para la entrega de los Residuos Aprovechables generados en la entidad | E27: Plan de Gestión Ambiental | F27: Objetivo_5._Hacer_de_la_RNEC_una_entidad_respetuosa_del_medio_ambiente_que_contribuya_a_la_mitigación_del_cambio_climático | G27: 3. Fortalecer el esquema de disminución y disposición de residuos sólidos | H27: Gestionar el 100% de los convenios con Asociaciones de recicladores de oficio, programados | I27: Cantidad de convenios ejecutados en el periodo/(n*Cantidad de convenios progamados a gestionar en el periodo ) | J27: 1 | K27: Informe de gestión de actividad | L27: Archivo Oficina de Planeación | O27: 0.5 | R27: 0.5 | S27: José Fernando Flórez | T27: 2021-05-01 | U27: 2021-12-31
A28: Planeación y Direccionamiento Estratégico | B28: Planeación de la gestión institucional | C28: 4 | D28: Realizar capacitaciones y/o sensibilizaciones sobre la promoción de respeto y el cuidado del medioambiente | E28: Plan de Gestión Ambiental | F28: Objetivo_5._Hacer_de_la_RNEC_una_entidad_respetuosa_del_medio_ambiente_que_contribuya_a_la_mitigación_del_cambio_climático | G28: 4. Fomentar la cultura y ciudadanía ambiental, así como el uso razonable de los recursos naturales entre servidores y usuarios | H28: Realizar le 100% de las campañas de sencibilización programadas | I28: Cantidad de campañas de sencibilización realizadas en el peridod / (n*Cantidad de campañas de sencibilización programadas en el periodo) | J28: 1 | K28: Informe de gestión de actividad | L28: Archivo Oficina de Planeación | N28: 0.2 | O28: 0.2 | P28: 0.2 | Q28: 0.2 | R28: 0.2 | S28: José Fernando Flórez | T28: 2021-03-01 | U28: 2021-12-31
A29: Planeación y Direccionamiento Estratégico | B29: Planeación de la gestión institucional | C29: 5 | D29: Desarrollar el plan de gestión integral de residuos aprovechables en sede central y Delegaciones | E29: Plan de Gestión Ambiental | F29: Objetivo_5._Hacer_de_la_RNEC_una_entidad_respetuosa_del_medio_ambiente_que_contribuya_a_la_mitigación_del_cambio_climático | G29: 3. Fortalecer el esquema de disminución y disposición de residuos sólidos | H29: Realizar el 100% de las acciones para desarrollar el plan de gestión integral de residuos aprovechables en sede central y Delegaciones | I29: Cantidad de actividades realizadas en el periodo para desarrollar el plan de gestión integral de residuos aprovechables en sede central y Delegaciones /(n*Cantidad de actividades programadas para desarrollar el plan de gestión integral de residuos aprovechables en sede central y Delegaciones) | J29: 1 | K29: Plan de gestión integral de residuos aprovechables | L29: Archivo Oficina de Planeación | N29: 0.2 | O29: 0.2 | P29: 0.2 | Q29: 0.2 | R29: 0.2 | S29: José Fernando Flórez | T29: 2021-07-01 | U29: 2021-08-31
A30: Planeación y Direccionamiento Estratégico | B30: Planeación de la gestión institucional | C30: 6 | D30: Incentivar en los servidores el uso de medios de transporte sostenibles | E30: Plan de Gestión Ambiental | F30: Objetivo_5._Hacer_de_la_RNEC_una_entidad_respetuosa_del_medio_ambiente_que_contribuya_a_la_mitigación_del_cambio_climático | G30: 7. Fortalecer la estrategia de sustitución de medios de movilidad contaminante por el uso de medios de transporte ecológicos alternativos entre los servidores de la entidad | H30: Otorgar el 100% de los incentivos a que tengan derecho los servidores por el usos de medios de transporte sostenible | I30: Cantidad de incentivos entregados en el perido / (n*Cantidad de incentivos programados en el periodo) | J30: 1 | K30: Informe de gestión de actividad | L30: Archivo Oficina de Planeación | O30: 0.5 | R30: 0.5 | S30: José Fernando Flórez | T30: 2021-05-01 | U30: 2021-12-31
A31: Planeación y Direccionamiento Estratégico | B31: Planeación de la gestión institucional | C31: 7 | D31: Identificar mejores practicas ambientales sobre el consumo de agua y energía. | E31: Plan de Gestión Ambiental | F31: Objetivo_5._Hacer_de_la_RNEC_una_entidad_respetuosa_del_medio_ambiente_que_contribuya_a_la_mitigación_del_cambio_climático | G31: 8. Implementar tecnologías y sistemas que permitan el ahorro y la reutilización del agua en la entidad | H31: Realizar el 100% de las activividades para identificar las mejores prácticas de consumo de agua y energia en la entidad | I31: Cantidad de actividades realizadas en el periodo para identificar las mejores prácticas de consumo de agua y energia en la entidad /(n*Cantidad de actividades programadas para identificar las mejores prácticas de consumo de agua y energia en la entidad) | J31: 1 | K31: Informe de gestión de actividad | L31: Archivo Oficina de Planeación | R31: 1 | S31: José Fernando Flórez | T31: 2021-11-01 | U31: 2021-12-31
A32: Planeación y Direccionamiento Estratégico | B32: Planeación de la gestión institucional | C32: 8 | D32: Gestionar a través de terceros la disposición final de RAEES, residuos peligrosos y residuos especiales que se generen en la entidad | E32: Plan de Gestión Ambiental | F32: Objetivo_5._Hacer_de_la_RNEC_una_entidad_respetuosa_del_medio_ambiente_que_contribuya_a_la_mitigación_del_cambio_climático | G32: 3. Fortalecer el esquema de disminución y disposición de residuos sólidos | H32: Realizar el 100% de las actividades para gestionar a través de terceros la disposición final de RAEES, residuos peligrosos y residuos especiales que se generen en la entidad | I32: Cantidad de actividades realizadas en el periodo para gestionar la disposición final de RAEES, residuos peligrosos y residuos especiales que se generen en la entidad/(n*Cantidad de actividades programadas para gestionar la disposición final de RAEES, residuos peligrosos y residuos especiales que se generen en la entidad) | J32: 1 | K32: Certificados de disposición final | L32: Archivo Oficina de Planeación | R32: 1 | S32: José Fernando Flórez | T32: 2021-11-01 | U32: 2021-12-31
A33: Planeación y Direccionamiento Estratégico | B33: Planeación de la gestión institucional | C33: 10 | D33: Implementar la calificación digital en las convocatorias laborales en la RNEC, cuando se realicen elecciones | E33: Plan de Gestión Ambiental | F33: Objetivo_5._Hacer_de_la_RNEC_una_entidad_respetuosa_del_medio_ambiente_que_contribuya_a_la_mitigación_del_cambio_climático | G33: 5. Fortalecer la política de cero papel en la entidad | H33: Digitalizar el 100% de las convocatorias laborales realizadas en la RNEC para las elecciones . | I33: Cantidad de convocatorias laborales digitalizadas en el periodo/(n*Cantidad de convocatorias laborales programadas) | J33: 1 | K33: Informe de gestión de actividad | L33: Archivo Oficina de Planeación | R33: 1 | S33: José Fernando Flórez | T33: 2021-11-01 | U33: 2021-12-31
A34: Planeación y Direccionamiento Estratégico | B34: Planeación de la gestión institucional | C34: 1 | D34: Elaborar un documento prospectivo sobre posibles proyectos de análisis de datos e inteligencia artificial en la RNEC | E34: Plan Estratégico | F34: Objetivo_2._Optimizar_y_modernizar_los_procesos_misionales_y_de_apoyo_de_la_entidad_gracias_al_uso_de_nuevas_tecnologías | G34: 6. Crear el grupo de trabajo de Innovación Tecnológica, Analítica de Datos e Inteligencia Articial | H34: Realizar el 100% de las actividades programadas para elaborar un documento prospectivo sobre posibles proyectos de análisis de datos e inteligencia artificial en la RNEC | I34: Cantidad de actividades realizadas en el periodo para elaborar un documento prospectivo sobre posibles proyectos de análisis de datos e inteligencia artificial en la RNEC / (n*Cantidad de actividades programadas en el periodo para elaborar un documento prospectivo sobre posibles proyectos de análisis de datos e inteligencia artificial en la RNEC) | J34: 1 | K34: Documento | L34: Of. de Planeación | M34: =1/3 -> 0.3333333333 | N34: =1/3 -> 0.3333333333 | O34: =1/3 -> 0.3333333333 | S34: José Fernando Flórez Ruiz | T34: 2021-01-01 | U34: 2021-06-30
A35: Planeación y Direccionamiento Estratégico | B35: Planeación de la gestión institucional | C35: 11 | D35: Realizar en el nivel central y desconcentrado un diagnóstico para la formulación y ejecución de un esquema de disminución y disposición de residuos sólidos generados en los procesos electorales. | E35: Plan de Gestión Ambiental | F35: Objetivo_5._Hacer_de_la_RNEC_una_entidad_respetuosa_del_medio_ambiente_que_contribuya_a_la_mitigación_del_cambio_climático | G35: 6. Diseñar e implementar un plan de recolección, remate, reciclaje, destrucció y disposición nal del material electoral sobrante de los procesos electorales | H35: Desarrollar el 100% de las activiades para realizar un diagnóstico para la formulación y ejecución de un esquema de disminución y disposición de residuos sólidos generados en los procesos electorales. | I35: Cantidad de actividades ejecutadas en el periodo para realizar un diagnóstico para la formulación y ejecución de un esquema de disminución y disposición de residuos sólidos generados en los procesos electorales./(n*Cantidad de actividades programadas para realizar un diagnóstico para la formulación y ejecución de un esquema de disminución y disposición de residuos sólidos generados en los procesos electorales.) | J35: 1 | K35: Informe de gestión de actividad | L35: Archivo Oficina de Planeación | Q35: 0.5 | R35: 0.5 | S35: José Fernando Flórez | T35: 2021-09-01 | U35: 2021-12-31
A36: Planeación y Direccionamiento Estratégico | B36: Sistema de gestión y mejoramiento Institucional | C36: 17 | D36: Elaborar el informe de revisión por la dirección la dirección del sistema de gestión de calidad | E36: N/A | H36: Elaborar el informe de revisión por la dirección la dirección del sistema de gestión de calidad | I36: Cantidad de informes realizados en el periodo/(n*Cantidad de informes programados en el perido) | J36: 1 | K36: Informe | L36: Oficina de Planeación | P36: 1 | S36: José Fernando Flórez | T36: 2021-08-01 | U36: 2021-08-31
A37: Planeación y Direccionamiento Estratégico | B37: Sistema de gestión y mejoramiento Institucional | C37: 18 | D37: Realizar todas las acciones necesarias de preparación para la realización de la auditoria externa de calidad | E37: N/A | H37: Realizar el 100% de las actividades para preparar la realización de la auditoria externa de calidad | I37: Cantidad de actividades realizadas en el periodo /(n*Cantidad de actividades programdas en el periodo) | J37: 1 | K37: Correos electrónicos listas de asistencia | L37: Oficina de Planeación | Q37: 1 | S37: José Fernando Flórez | T37: 2021-09-01 | U37: 2021-10-31
A38: Planeación y Direccionamiento Estratégico | B38: Sistema de gestión y mejoramiento Institucional | C38: 19 | D38: Realizar acompañamiento en la realización de la auditoria interna de calidad | E38: N/A | H38: Realizar el 100% de los acompañamientos programdos para la realización de la auditoria interna de calidad | I38: Cantidad de acompañamientos realizados en el periodo/(n*Cantidad de acompañamientos programddos en el periodo) | J38: 1 | K38: Listas de asistencia | L38: Oficina de Planeación | Q38: 1 | S38: José Fernando Flórez | T38: 2021-09-01 | U38: 2021-10-31
A39: Planeación y Direccionamiento Estratégico | B39: Sistema de gestión y mejoramiento Institucional | C39: 20 | D39: Asesorar, revisar y dar viabilidad a los macroprocesos en todos lo temas y documento inherentes al Sistema de Gestión de calidad | E39: N/A | H39: Realizar el 100% de las asesorias, revisiones y conceptos de viabilidad requeridos por los macroprocesos en los temas y documento inherentes al Sistema de Gestión de calidad | I39: Cantidad de asesorias, revisiones y conceptos de viabilidad realizados en el periodo/(n*Cantidad de asesorias, revisiones y conceptos de viabilidad requeridas en el periodo) | J39: 1 | K39: Listado maestro de documentos | L39: Oficina de Planeación | M39: =1/6 -> 0.1666666667 | N39: =1/6 -> 0.1666666667 | O39: 0.1666666667 | P39: 0.1666666667 | Q39: 0.1666666667 | R39: 0.1666666667 | S39: José Fernando Flórez | T39: 2021-01-02 | U39: 2021-12-31
A40: Planeación y Direccionamiento Estratégico | B40: Sistema de gestión y mejoramiento Institucional | C40: 1 | D40: Crear, modificar, controlar y socializar los documentos del Sistema de Gestión de Calidad de acuerdo con las solicitudes presentadas y aprobadas | E40: N/A | H40: Crear, modificar, controlar y socializar el 100% de los documentos del Sistema de Gestión de Calidad de acuerdo con las solicitudes presentadas y aprobadas | I40: cantidad de documentos socializados /(n)* cantidad de documentos solicitados | J40: 1 | K40: Reporte | L40: Oficina de Planeación | M40: =1/6 -> 0.1666666667 | N40: =1/6 -> 0.1666666667 | O40: 0.1666666667 | P40: 0.1666666667 | Q40: 0.1666666667 | R40: 0.1666666667 | S40: José Fernando Floréz Ruíz | T40: 2021-01-01 | U40: 2021-12-31
A41: Planeación y Direccionamiento Estratégico | B41: Sistema de gestión y mejoramiento Institucional | C41: 1 | D41: Desarrollar cursos virtuales sobre el SGC para el nivel desconcentrado | E41: N/A | H41: Realizar el 100% de los curso virtuales programados | I41: Cantidad de cursos virtuales realizados/(n)*Cantidad de cursos virtuales programadas a realizar en el periodo | J41: 1 | K41: Estadisticas de aporobación de los cursos | L41: Oficina de Planeación | O41: 0.5 | P41: 0.5 | S41: José Fernando Flórez Ruiz | T41: 2021-05-01 | U41: 2021-08-31
A42: Gestión de Comunicación Publica y Estratégica | B42: Comunicación organizacional | C42: 1 | D42: Emitir la rendición de cuentas utilizando herramientas virtuales. | E42: Plan Estratégico | F42: Objetivo_4._Priorizar_el_servicio_al_usuario_como_eje_central_para_la_creación_de_valor_público | G42: 1. Virtualizar aceleradamente los procesos de servicio al usuario, fortalecer los servicios digitales y eliminar al máximo los trámites presenciales | H42: Realizar el 100% de las actividades para emitir la rendición de cuentas | I42: Cantidad de actividades realizadas en el periodo para emitir la rendición de cuentas / (n* cantidad de actividades programadas en el periodo para emitir la rendición de cuentas) | J42: 1 | K42: Material Audiovisual producido-Transmisión en las redes-Video publicado en la págiba web | L42: Página web - redes sociales | R42: 1 | S42: Oficina de Comunicaciones y Prensa | T42: 2021-11-01 | U42: 2021-12-31
A43: Gestión de Comunicación Publica y Estratégica | B43: Comunicación organizacional | C43: 2 | D43: Monitorear el canal y mejorar la comunicación con los ciudadanos mediante el uso del Chat bot | E43: Plan Estratégico | F43: Objetivo_4._Priorizar_el_servicio_al_usuario_como_eje_central_para_la_creación_de_valor_público | G43: 1. Virtualizar aceleradamente los procesos de servicio al usuario, fortalecer los servicios digitales y eliminar al máximo los trámites presenciales | H43: Realizar el 100% de las actividades para monitorear el chat bot | I43: Cantidad de actividades realizadads en el periodo para monitorear el chat bot/(n *Cantidad de actividades programadas en el periodo para monitorearel chat bot) | J43: 1 | K43: 12 reportes de monitoreo | L43: Página web - redes sociales | M43: 0.1666 | N43: 0.1666 | O43: 0.1666 | P43: 0.1666 | Q43: 0.1666 | R43: 0.1666 | S43: Oficina de Comunicaciones y Prensa | T43: 2021-01-01 | U43: 2021-12-31
A44: Gestión de Comunicación Publica y Estratégica | B44: Comunicación organizacional | C44: 3 | D44: Realizar actividades de sensibilización dirigida a los servidores de la Entidad orientada a trabajar los temas de sentido de pertenencia, vocación de servicio, buen trato al servidor y al ciudadano, empatia. | E44: Plan Estratégico | F44: Objetivo_4._Priorizar_el_servicio_al_usuario_como_eje_central_para_la_creación_de_valor_público | G44: 2. Cambiar el paradigma cultural de los servidores en cuanto al servicio al usuario teniendo en cuenta nuevos valores institucionales, entre otros factores | H44: Realizar el 100% de las actividades de sensibilización dirigida a los servidores de la Entidad orientada a trabajar los temas de sentido de pertenencia, vocación de servicio, buen trato al servidor y al ciudadano, empatia. | I44: Cantidad de actividades de sensibilización realizadas en el periodo / (n *cantidad de actividades de sensibilización programadas en el periodo) | J44: 1 | K44: Videos alojados en las plataformas de emisión | L44: Oficina de Comunicaciones y Prensa | N44: 0.2 | O44: 0.2 | P44: 0.2 | Q44: 0.2 | R44: 0.2 | S44: Oficina de Comunicaciones y Prensa | T44: 2021-03-01 | U44: 2021-12-31
A45: Gestión de Comunicación Publica y Estratégica | B45: Comunicación organizacional | C45: 4 | D45: Promover la red social interna bidireccional que permita la participación de los servidores - YAMMER | E45: Plan Estratégico | F45: Objetivo_4._Priorizar_el_servicio_al_usuario_como_eje_central_para_la_creación_de_valor_público | G45: 2. Cambiar el paradigma cultural de los servidores en cuanto al servicio al usuario teniendo en cuenta nuevos valores institucionales, entre otros factores | H45: Realizar el 100% de las actividades programadas para promover YAMMER | I45: Cantidad de actividades realizadas en el periodo para promover YAMMER / (n *Cantidad de actividades programadas en el periodo para promover YAMMER) | J45: 1 | K45: Banner publicado en la intranet y/o correo institucional | L45: Oficina de Comunicaciones y Prensa | N45: 0.2 | O45: 0.2 | P45: 0.2 | Q45: 0.2 | R45: 0.2 | S45: Oficina de Comunicaciones y Prensa | T45: 2021-03-01 | U45: 2021-12-31
A46: Gestión de Comunicación Publica y Estratégica | B46: Comunicación organizacional | C46: 5 | D46: Levantar el registro audiovisual del Registrador (internos-externos) | E46: Plan Estratégico | F46: Objetivo_4._Priorizar_el_servicio_al_usuario_como_eje_central_para_la_creación_de_valor_público | G46: 3. Usar metodologías de diseño del servicio centradas en el ciudadano y los usuarios | H46: Realizar el 100% de los registros audiovisuales en los contactos del registrador | I46: Cantidad de actividades realizadas en el periodo para promover YAMMER / (n *Cantidad de actividades programadas en el periodo para promover YAMMER) | J46: 1 | K46: videos realizados de los contactos | L46: Oficina de Comunicaciones y Prensa | M46: 0.1666 | N46: 0.1666 | O46: 0.1666 | P46: 0.1666 | Q46: 0.1666 | R46: 0.1666 | S46: Oficina de Comunicaciones y Prensa | T46: 2021-01-01 | U46: 2021-12-31
A47: Gestión de Comunicación Publica y Estratégica | B47: Comunicación organizacional | C47: 6 | D47: Realizar publicaciones en las redes sociales sobre el quehacer de la RNEC | E47: Plan Estratégico | F47: Objetivo_4._Priorizar_el_servicio_al_usuario_como_eje_central_para_la_creación_de_valor_público | G47: 1. Virtualizar aceleradamente los procesos de servicio al usuario, fortalecer los servicios digitales y eliminar al máximo los trámites presenciales | H47: Realizar el 100% de las publicaciones programadas en las redes sociales sobre el quehacer de la RNEC | I47: Cantidad de publicaciones realizadas en el periodo para promover el quehacer de la RENEC / (n *Cantidad de publicaciones programadas en el periodo para promover el quehacer de la RNEC) | J47: 1 | K47: 6 Reporte de publicaciones realizadas | L47: Oficina de Comunicaciones y Prensa | M47: 0.1666 | N47: 0.1666 | O47: 0.1666 | P47: 0.1666 | Q47: 0.1666 | R47: 0.1666 | S47: Oficina de Comunicaciones y Prensa | T47: 2021-01-01 | U47: 2021-12-31
A48: Gestión de Comunicación Publica y Estratégica | B48: Comunicación organizacional | C48: 7 | D48: Escribir y publicar comunicados de prensa | E48: Plan Estratégico | F48: Objetivo_4._Priorizar_el_servicio_al_usuario_como_eje_central_para_la_creación_de_valor_público | G48: 1. Virtualizar aceleradamente los procesos de servicio al usuario, fortalecer los servicios digitales y eliminar al máximo los trámites presenciales | H48: Escribir y publicar el 100% de los comunicados | I48: Cantidad de comunicados escritos y publicados en el periodo/(n*Cantidad de comunicados programados para publicar en el periodo) | J48: 1 | K48: comunicadoas publicados | L48: Oficina de Comunicaciones y Prensa | M48: 0.1666 | N48: 0.1666 | O48: 0.1666 | P48: 0.1666 | Q48: 0.1666 | R48: 0.1666 | S48: Oficina de Comunicaciones y Prensa | T48: 2021-01-01 | U48: 2021-12-31
A49: Gestión de Comunicación Publica y Estratégica | B49: Comunicación organizacional | C49: 8 | D49: Promover la imagen institucional a través del material impreso | E49: N/A | H49: Realizar el 100% de los impresos programados en la vigencia | I49: Cantidad realizada de impresos en el periodo / (n*cantidad programada de impresos en el periodo) | J49: 1 | K49: 6 Reporte de materiales impresos | L49: Oficina de Comunicaciones y Prensa | M49: 0.1666 | N49: 0.1666 | O49: 0.1666 | P49: 0.1666 | Q49: 0.1666 | R49: 0.1666 | S49: Oficina de Comunicaciones y Prensa | T49: 2021-01-01 | U49: 2021-12-31
A50: Gestión de Comunicación Publica y Estratégica | B50: Comunicación organizacional | C50: 9 | D50: Publicar contenidos en la web | E50: Plan Estratégico | F50: Objetivo_4._Priorizar_el_servicio_al_usuario_como_eje_central_para_la_creación_de_valor_público | G50: 1. Virtualizar aceleradamente los procesos de servicio al usuario, fortalecer los servicios digitales y eliminar al máximo los trámites presenciales | H50: Realizar el 100% de las publicaciones realizadas en la web | I50: Cantidad de publicaciones en la web realizadas en el periodo/ (n*cantidad de publicaciones en la web programadas en el periodo) | J50: 1 | K50: 6 Reporte de publicaciones en la web | L50: Oficina de Comunicaciones y Prensa | M50: 0.1666 | N50: 0.1666 | O50: 0.1666 | P50: 0.1666 | Q50: 0.1666 | R50: 0.1666 | S50: Oficina de Comunicaciones y Prensa | T50: 2021-01-01 | U50: 2021-12-31
A51: Gestión de Comunicación Publica y Estratégica | B51: Comunicación organizacional | C51: 10 | D51: Desarrollar micrositios para la página web y/o intranet | E51: Plan Estratégico | F51: Objetivo_4._Priorizar_el_servicio_al_usuario_como_eje_central_para_la_creación_de_valor_público | G51: 1. Virtualizar aceleradamente los procesos de servicio al usuario, fortalecer los servicios digitales y eliminar al máximo los trámites presenciales | H51: Desarrollar el 100% de los micrositios para la página web | I51: Cantidad de micrositios desarrollados en el periodo/ (n*Cantidad de micrositios programados en el periodo) | J51: 1 | K51: 2 reportes de los micrositios desarrollados | L51: Oficina de Comunicaciones y Prensa | O51: 0.5 | R51: 0.5 | S51: Oficina de Comunicaciones y Prensa | T51: 2021-01-01 | U51: 2021-12-31
A52: Gestión de Comunicación Publica y Estratégica | B52: Comunicación organizacional | C52: 11 | D52: Realizar la traducción inmediata de los mensajes auadiovisuales a lenguaje de señas | E52: Plan Anticorrupción y de Atención al Ciudadano | F52: Objetivo_4._Priorizar_el_servicio_al_usuario_como_eje_central_para_la_creación_de_valor_público | G52: 1. Virtualizar aceleradamente los procesos de servicio al usuario, fortalecer los servicios digitales y eliminar al máximo los trámites presenciales | H52: Traducir el 100% de los mensajes audiovisuales publicados en las redes | I52: Cantidad de mensajes traducidos en el periodo/ (n* cantidad de mensajes a traducir en el periodo) | J52: 1 | K52: 6 reportes de traducciones de señas realizadas | L52: Oficina de Comunicaciones y Prensa | M52: =-N1824 -> 0 | N52: 0.1666 | O52: 0.1666 | P52: 0.1666 | Q52: 0.1666 | R52: 0.1666 | S52: Oficina de Comunicaciones y Prensa | T52: 2021-01-01 | U52: 2021-12-31
A53: Gestión de Comunicación Publica y Estratégica | B53: Comunicación organizacional | C53: 12 | D53: Gestionar la parrilla de publicación en las redes sociales de la entidad | E53: Plan Estratégico | F53: Objetivo_4._Priorizar_el_servicio_al_usuario_como_eje_central_para_la_creación_de_valor_público | G53: 1. Virtualizar aceleradamente los procesos de servicio al usuario, fortalecer los servicios digitales y eliminar al máximo los trámites presenciales | H53: Realizar el 100% de las publicaciones programadas en la parrilla | I53: Cantidad de publicaciones realizadas en el periodo/ (n*Cantidad de publicaciones programadas en la parrilla en el periodo) | J53: 1 | K53: 6 reportes de publicaciones realizadas | L53: Oficina de Comunicaciones y Prensa | M53: 0.1666 | N53: 0.1666 | O53: 0.1666 | P53: 0.1666 | Q53: 0.1666 | R53: 0.1666 | S53: Oficina de Comunicaciones y Prensa | T53: 2021-01-01 | U53: 2021-12-31
A54: Electoral | B54: Debates Electorales | C54: 1 | D54: Dirigir, organizar y realizar las votaciones nuevas, complementarias y de mecanismos de participación convocados | E54: N/A | F54: Objetivo_3._Fortalecer_la_democracia_mediante_reformas_legales_estratégicas_el_posicionamiento_del_nuevo_sistema_democrático_juvenil_y_la_adopción_de_un_enfoque_diferencial | G54: N/A | H54: Realizar el 100% de los eventos electorales porgramados | I54: Cantidad de eventos electorales realizados en el periodo / (n*Cantidad de eventos electorales programados en el periodo) | J54: 1 | K54: Reporte de candidatos inscritos Reporte de jurados designados Declaratoria de votación (E26) Material para capacitación jurados | L54: Registraduria Delegada en lo Electoral | M54: 0.1666666667 | N54: 0.1666666667 | O54: 0.1666666667 | P54: 0.1666666667 | Q54: 0.1666666667 | R54: 0.1666666667 | S54: Registrador Delegado en lo Electoral | T54: 2021-01-01
A55: Electoral | B55: Debates electorales | C55: 2 | D55: Dirigir y organizar las elecciones de Congreso, Presidente y Vicepresidente de la República de 2022 | E55: N/A | F55: Objetivo_3._Fortalecer_la_democracia_mediante_reformas_legales_estratégicas_el_posicionamiento_del_nuevo_sistema_democrático_juvenil_y_la_adopción_de_un_enfoque_diferencial | G55: N/A | H55: Desarrollar el 100% de las actividades para la realización de las elecciones de Congreso, Presidente y Vicepresidente de la República de 2022 | I55: Cantidad de actividades desarrolladas en el periodo/(n*Cantidad de actividades programadas en el periodo) | J55: 1 | K55: Reporte de ciudadanos inscritos Reporte de GSC y promotores del voto en blanco registrados Reporte de Fimas Verificadas Reporte de Candidatos Inscritos Reporte trabajo de campo de empresas e instituciones educativas convocadas para designacion de jurados de votación | L55: Dirección Censo Electoral Dirección Gestión Electoral | M55: 0 | N55: 0.2 | O55: 0.2 | P55: 0.2 | Q55: 0.2 | R55: 0.2 | S55: Director Censo Electoral Director Gestión Electoral | T55: 2021-03-01
A56: Electoral | B56: Debates Electorales | C56: 3 | D56: Apoyar la realización de las elecciones de otras entidades | E56: N/A | F56: Objetivo_3._Fortalecer_la_democracia_mediante_reformas_legales_estratégicas_el_posicionamiento_del_nuevo_sistema_democrático_juvenil_y_la_adopción_de_un_enfoque_diferencial | G56: N/A | H56: Realizar el 100% de los eventos electorales porgramados en otras entidades | I56: Cantidad de eventos electorales realizados en otras entidades en el periodo / (n*Cantidad de eventos electorales programados en otras entidades en el periodo) | J56: 1 | K56: Certificación de apoyo prestado | L56: Dirección de Gestión Electoral | M56: 0.1666666667 | N56: 0.1666666667 | O56: 0.1666666667 | P56: 0.1666666667 | Q56: 0.1666666667 | R56: 0.1666666667 | S56: Director de Gestión Electoral | T56: 2021-01-01
A57: Electoral | B57: Debates Electorales | C57: 4 | D57: Conformar y actualizar la Divipole a traves de la herramienta web diseñada | E57: Plan Estratégico | F57: Objetivo_2._Optimizar_y_modernizar_los_procesos_misionales_y_de_apoyo_de_la_entidad_gracias_al_uso_de_nuevas_tecnologías | G57: 8. Desarrollar una herramienta para actualizar la DIVIPOLE y fortalecer la zonicación electoral | H57: Realizar el 100% de la actividades programadas para la conformación de la Divipole | I57: Cantidad de activiades realizados en el periodo para las conformación de la Divipole / (n*Cantidad de actividades programadas en el periodo para la conformación de la Divipole) | J57: 1 | K57: Reporte arrojado por la herramienta | L57: Dirección de Gestión Electoral | M57: 0 | N57: 1 | O57: 0 | P57: 0 | Q57: 0 | R57: 0 | S57: Director de Gestión Electoral | T57: 2021-03-01
A58: Electoral | B58: Debates Electorales | C58: 5 | D58: Actualizar la circular única en materia electoral | E58: N/A | F58: Objetivo_3._Fortalecer_la_democracia_mediante_reformas_legales_estratégicas_el_posicionamiento_del_nuevo_sistema_democrático_juvenil_y_la_adopción_de_un_enfoque_diferencial | G58: N/A | H58: Realizar el 100% de las activdades para elaborar segunda versión de la circular única electoral | I58: Cantidad de actividades realizadas en el periodo para actualizar la circular única en materia electoral / (n* Cantidad de actividades programadas en el periodo para actualizar la circular única en materia electoral) | J58: 1 | K58: 2da versión circular única electoral | L58: Registraduria Delegada en lo Electoral | M58: 0 | N58: 0 | O58: 0 | P58: 0 | Q58: 0 | R58: 1 | S58: Registrador Delegado en lo Electoral | T58: 2021-11-01
A59: Electoral | B59: Debates Electorales | C59: 6 | D59: Depurar y actualizar el censo electoral | E59: N/A | F59: Objetivo_3._Fortalecer_la_democracia_mediante_reformas_legales_estratégicas_el_posicionamiento_del_nuevo_sistema_democrático_juvenil_y_la_adopción_de_un_enfoque_diferencial | G59: N/A | H59: Realizar el 100% de las actividades programas para actualizar y depurar el Censo Electoral | I59: Cantidad de actividades realizadas en el periodo para actualizar y depurar el Censo electoral / (n*Cantidad de actividades programadas en el periodo para actualizar y depurar el Censo electoral) | J59: 1 | K59: Reportes del Censo Electoral | L59: Dirección de Censo Electoral | M59: 0.1666666667 | N59: 0.1666666667 | O59: 0.1666666667 | P59: 0.1666666667 | Q59: 0.1666666667 | R59: 0.1666666667 | S59: Director de Censo Electoral | T59: 2021-01-01
A60: Electoral | B60: Debates Electorales | C60: 7 | D60: Elaborar material y protocolos de atención y sensibilización para garantizar derechos en materia electoral a las personas en situación de discapacidad | E60: Plan Anticorrupción y de Atención al Ciudadano | F60: Objetivo_3._Fortalecer_la_democracia_mediante_reformas_legales_estratégicas_el_posicionamiento_del_nuevo_sistema_democrático_juvenil_y_la_adopción_de_un_enfoque_diferencial | G60: N/A | H60: Realizar el 100% de la actividades programadas para elaborar materiales y protocolos de atención y sencibilización para personas en situación de discapacidad | I60: Cantidad de actividades realizadas en el periodo para elaborar los materiales y protocolos de atención y sencibilización para personas en situación de discapacidad / (n*Cantidad de actividades programados en el periodo para elaborar los materiales y protocolos de atención y sencibilización para personas en situación de discapacidad) | J60: 1 | K60: Material y protocolos elaborados | L60: Registraduria Delegada en lo Electoral | M60: 0 | N60: 0 | O60: 0 | P60: 0 | Q60: 1 | R60: 0 | S60: Registrador Delegado en lo Electoral | T60: 2021-09-01
A61: Electoral | B61: Debates Electorales | C61: 8 | D61: Verificar los apoyos presentados por los Comités Promotores de Mecanismos de Participación Ciudadana | E61: Plan Anticorrupción y de Atención al Ciudadano | F61: Objetivo_3._Fortalecer_la_democracia_mediante_reformas_legales_estratégicas_el_posicionamiento_del_nuevo_sistema_democrático_juvenil_y_la_adopción_de_un_enfoque_diferencial | G61: N/A | H61: Realizar el 100% de la actividades programadas para rediseñar el Sistema Integral de Capacitación Electoral | I61: Cantidad de actividades realizadas en el periodo para rediseñar el Sistema Integral de Capacitación Electoral/ (n*Cantidad de actividades programadas en el periodo para rediseñar el Sistema Integral de Capacitación Electoral) | J61: 1 | K61: SICE en pagina web con nuevo diseño | L61: Dirección de Gestión Electoral | M61: 0 | N61: 0 | O61: 0 | P61: 1 | Q61: 0 | R61: 0 | S61: Director de Gestión Electoral | T61: 2021-07-01
A62: Electoral | B62: Debates Electorales | C62: 9 | D62: Realizar mesas de diálogo con partes interesaadas, instituciones y agrupaciones políticas para identificar acciones de mejora de servicios en materia electoral | E62: Plan Anticorrupción y de Atención al Ciudadano | F62: Objetivo_3._Fortalecer_la_democracia_mediante_reformas_legales_estratégicas_el_posicionamiento_del_nuevo_sistema_democrático_juvenil_y_la_adopción_de_un_enfoque_diferencial | G62: N/A | H62: Realizar el 100% de las mesas de dialogo | I62: Cantidad de mesas de diaologo con partes interesadas realizadas en el periodo / (n*Cantidad de mesas de dialogo con partes interesadas programadas en el periodo) | J62: 1 | K62: 'Certificación con los compromisos en materia de mejoramiento de servicios. | L62: Registraduria Delegada en lo Electoral | M62: 0.1666666667 | N62: 0.1666666667 | O62: 0.1666666667 | P62: 0.1666666667 | Q62: 0.1666666667 | R62: 0.1666666667 | S62: Registrador Delegado en lo Electoral | T62: 2021-01-01
A63: Electoral | B63: Mecanismos de Participación | C63: 10 | D63: Verificar los apoyos presentados por los Comités Promotores de Mecanismos de Participación Ciudadana | E63: Plan Estratégico | F63: Objetivo_3._Fortalecer_la_democracia_mediante_reformas_legales_estratégicas_el_posicionamiento_del_nuevo_sistema_democrático_juvenil_y_la_adopción_de_un_enfoque_diferencial | G63: 6. Promover y racionalizar el uso de los mecanismos de participación ciudadana | H63: Verificar el 100% de las firmas de apoyo que respaldan los mecansismos de particpación ciudadana | I63: Cantidad de apoyos revisados de los Comités Promotores de Mecanismos de Participación/(n*Cantidad de apoyos presentados por los Comités Promotores de Mecanismos de Participación) | J63: 1 | K63: Informe Tecnico de verificación de firmas | L63: Dirección de Censo Electoral | M63: 0.1666666667 | N63: 0.1666666667 | O63: 0.1666666667 | P63: 0.1666666667 | Q63: 0.1666666667 | R63: 0.1666666667 | S63: Director de Censo Electoral | T63: 2021-01-01
A64: Electoral | B64: Mecanismos de participación | C64: 11 | D64: Automatizar la inscripción de los comites promotores mecanismos de participación ciudadana | E64: Plan Estratégico | F64: Objetivo_3._Fortalecer_la_democracia_mediante_reformas_legales_estratégicas_el_posicionamiento_del_nuevo_sistema_democrático_juvenil_y_la_adopción_de_un_enfoque_diferencial | G64: 6. Promover y racionalizar el uso de los mecanismos de participación ciudadana | H64: Realizar el 100% de activiades programadas para automatizar el proceso de inscripción de iniciativas ciudadanas de MPC | I64: Cantidad de actividades realizadas en el periodo para automatizar el proceso de inscripción de iniciativas ciudadanas de MPC/ (n*Cantidad de actividades programadas en el periodo para automatizar el proceso de inscripción de iniciativas ciudadanas de MPC) | J64: 1 | K64: Aplicativo web para la inscripción de mecanismos de participación desarrollado | L64: Dirección Censo Electoral Dirección Gestión Electoral | M64: 33.33% | N64: 33.33% | O64: 33.34% | P64: 0 | Q64: 0 | R64: 0 | S64: Director Censo Electoral Director Gestión Electoral | T64: 2021-01-01
A65: Electoral | B65: Debates electorales | C65: 12 | D65: Analizar el diseño de la tarjeta electoral para elecciones de corporaciones públicas con el fin de reducir la cantidad de votos nulos | E65: Plan Estratégico | F65: Objetivo_3._Fortalecer_la_democracia_mediante_reformas_legales_estratégicas_el_posicionamiento_del_nuevo_sistema_democrático_juvenil_y_la_adopción_de_un_enfoque_diferencial | G65: 3. Diseñar e implementar estrategias para reducir la cantidad de votos nulos en las elecciones | H65: Realizar el 100% de las actividades programadas para analizar el diseño de la tarjeta electoral para elecciones de corporaciones públicas con el fin de reducir la cantidad de votos nulos | I65: Cantidad de actividades realizadas en el periodo para analizar el diseño de la tarjeta electoral para elecciones de corporaciones públicas / (n*Cantidad de actividades programadas en el periodo para para analizar el diseño de la tarjeta electoral para elecciones de corporaciones públicas) | J65: 1 | K65: Documento de análisis desarrollado | L65: Registraduria Delegada en lo Electoral | M65: 0 | N65: 0 | O65: 0 | P65: 0 | Q65: 1 | R65: 0 | S65: Registrador Delegado en lo Electoral | T65: 2021-09-01
A66: Electoral | B66: Debates electorales | C66: 13 | D66: Promocion y divulgación de los Consejos de Juventud a traves del SICE | E66: Plan Estratégico | F66: Objetivo_3._Fortalecer_la_democracia_mediante_reformas_legales_estratégicas_el_posicionamiento_del_nuevo_sistema_democrático_juvenil_y_la_adopción_de_un_enfoque_diferencial | G66: 4. Implementar, posicionar y hacer pedagogía del nuevo sistema de democracia juvenil | H66: Realizar el 100% de las activiades programadas para promover y divulgar los consejos munipales y locales de juventud | I66: Cantidad de actividades realizadas en el periodo para promover y divulgar los consejos munipales y locales de juventud / (n*Cantidad de actividades programadas en el periodo para promover y divulgar los consejos munipales y locales de juventud) | J66: 1 | K66: Plataforma del Sistema Integral de Capacitación Electoral actualizada | L66: Registraduria Delegada en lo Electoral | M66: 0 | N66: 0 | O66: 0 | P66: 1 | Q66: 0 | R66: 0 | S66: Registrador Delegado en lo Electoral | T66: 2021-07-01
A67: Registro civil e Identificación | B67: Registro y actualización del sistema | C67: 1 | D67: Tramitar los duplicados de cédula de ciudadanía amarilla con hologramas y tarjetas de identidad azul biométrica en el aplicativo en línea de la página web ( solicitudes de documentos que fueron aprobados par a ingresar al flujo de producción ) | E67: N/A | H67: Tramitar el 100% de los duplicados de cédula de ciudadanía amarilla con hologramas y tarjetas de identidad azul biométrica en el aplicativo en línea de la página web | I67: Cantidad de trámites de duplicado de cédulas de ciudadanía y tarjeta de identidad recibidas en línea / (n) * Cantidad de solicitudes de duplicado de cédulas de ciudadanía y tarjeta de identidad recibidas en línea | J67: 1 | K67: Reporte estadístico | L67: Aplicativo " Trámites web" | M67: 0.1666666667 | N67: 0.1666666667 | O67: 0.1666666667 | P67: 0.1666666667 | Q67: 0.1666666667 | R67: 0.1666666667 | S67: Dirección Nacional de Identificación. DNI | T67: 2021-01-02 | U67: 2021-12-31
A68: Registro civil e Identificación | B68: Registro y actualización del sistema | C68: 2 | D68: Producir las tarjetas de identidad cargadas en el flujo de producción que cumplieron los requisitos de calidad. | E68: N/A | H68: Producir el 100% de las tarjetas de identidad cargadas en el flujo de producción que cumplieron los requisitos de calidad. | I68: Cantidad de tarjetas de identidad que cumplieron con requisitos para impresión / (n) * Cantidad de tarjetas de identidad producidas | J68: 1 | K68: Reporte estadístico | L68: Reporte Producción - IDEMIA | M68: 0.1666666667 | N68: 0.1666666667 | O68: 0.1666666667 | P68: 0.1666666667 | Q68: 0.1666666667 | R68: 0.1666666667 | S68: Dirección Nacional de Identificación. DNI | T68: 2021-01-02 | U68: 2021-12-31
A69: Registro civil e Identificación | B69: Registro y actualización del sistema | C69: 3 | D69: Producir las cédulas de ciudadanía amarillas con hologramas cargadas en el flujo de producción que cumplieron los requisitos de calidad. | E69: N/A | H69: Producir el 100% de las cédulas de ciudadanía amarillas con hologramas cargadas en el flujo de producción | I69: Cantidad de Cédula de ciudadanía amarillas con hologramas que cumplieron con requisitos para impresión producidas / (n) * Cantidad de Cédula de ciudadanía amarillas con hologramas cargadas en el flujo de producción en el período | J69: 1 | K69: Reporte estadístico | L69: Reporte Producción - IDEMIA | M69: 0.1666666667 | N69: 0.1666666667 | O69: 0.1666666667 | P69: 0.1666666667 | Q69: 0.1666666667 | R69: 0.1666666667 | S69: Dirección Nacional de Identificación. DNI | T69: 2021-01-02 | U69: 2021-12-31
A70: Registro civil e Identificación | B70: Registro y actualización del sistema | C70: 4 | D70: Producir las cédulas de seguridad personalizada en policarbonato cargadas en el flujo de producción que cumplieron los requisitos de calidad. | E70: N/A | H70: Producir el 100% de las cédulas de seguridad personalizada en policarbonato producidas cargadas en el flujo de producción | I70: Cantidad de Cédulas de seguridad personalizadas en policarbonato que cumplieron con requisitos para impresión producidas / (n) * Cantidad de cédulas de seguridad personalizadas en policarbonato cargadas en el flujo de producción en el período | J70: 1 | K70: Reporte estadístico | L70: Reporte Producción - IDEMIA | M70: 0.1666666667 | N70: 0.1666666667 | O70: 0.1666666667 | P70: 0.1666666667 | Q70: 0.1666666667 | R70: 0.1666666667 | S70: Dirección Nacional de Identificación. DNI | T70: 2021-01-02 | U70: 2021-12-31
A71: Registro civil e Identificación | B71: Registro y actualización del sistema | C71: 5 | D71: Elaborar documentos técnicos para fortalecer la gestión de la Dirección Nacional de Identificación | E71: N/A | H71: Elaborar el 100% de los documentos técnico para fortalecer la gestión de la Dirección Nacional de Identificación programados | I71: Cantidad de documentos técnicos elaborados/n*(Cantidad de documentos técnico elaborados | J71: 1 | K71: Documento técnico Requisitos para la interoperabilidad de la cédula de ciudadanía digital y de biometría facial con entidades externas Documento técnico Requisitos para la gestión de los recursos para implementar un sistema de expedición de documentos de identidad seguros para las fuerzas militares y de policía | L71: Dirección Nacional de Identificación | R71: 1 | S71: Dirección Nacional de Identificación. DNI | T71: 2021-01-02 | U71: 31/12/2021
A72: Registro civil e Identificación | B72: Registro y actualización del sistema | C72: 5 | D72: Elaborar un documento técnico que defina los requisitos necesarios para la interoperabilidad de la cédula de ciudadanía digital y de biometría facial con entidades externas | E72: N/A | H72: Definición de documento técnico para la interoperabilidad de entidades externas con la cédula de ciudadanía digital | I72: Documento técnico aprobado | J72: 1 | K72: Documentos aprobado | L72: Dirección Nacional de Identificación | R72: 1 | S72: Dirección Nacional de Identificación. DNI | T72: 2021-01-02 | U72: 31/12/2021
A73: Registro civil e Identificación | B73: Registro y actualización del sistema | C73: 6 | D73: Elaborar un documento técnico que establezca los requisitos necesarios para la gestión de los recursos con el fin de implementar un sistema de identificación para la expedición de documentos de identidad seguros para las fuerzas militares y de policía | E73: N/A | H73: Definición de documento técnico para la implementación de la cédula militar y de policía | I73: Documento técnico aprobado | J73: 1 | K73: Documentos aprobado | L73: Dirección Nacional de Identificación | R73: 1 | S73: Dirección Nacional de Identificación. DNI | T73: 2021-01-02 | U73: 2021-12-31
A74: Registro civil e Identificación | B74: Registro y actualización del sistema | C74: 7 | D74: Gestionar los recursos para el proyecto requerido para la nueva arquitectura que soporte la base de datos del Archivo Nacional de Identificación y la información de las tarjetas de identidad, para la actualización de sus novedades y la remisión por interoperabilidad para la generación y actualización permanente de los censos electorales | E74: Plan Estratégico | F74: Objetivo_3._Fortalecer_la_democracia_mediante_reformas_legales_estratégicas_el_posicionamiento_del_nuevo_sistema_democrático_juvenil_y_la_adopción_de_un_enfoque_diferencial | G74: 9. Modernizar los procesos de Registro Civil e Identicación como presupuestos de la democracia | H74: Gestionar el 100% de los recursos requeridos poara la ejecicion de los proyectos para modernizar los procesos de Registro Civil e Identificación como presupuestos de la democrácia | I74: Recursos asignados | J74: 1 | K74: Documento de aprobación de recursos | L74: Dirección Nacional de Identificación | R74: 1 | S74: Dirección Nacional de Identificación. DNI | T74: 2021-01-02 | U74: 2021-12-31
A75: Registro civil e Identificación | B75: Registro y actualización del sistema | C75: 8 | D75: Gestionar los recursos necesarios para el despliegue de las herramientas requeridas que permitan la generación de solicitudes de cédula de seguridad personalizada en policarbonato y digital desde los consulados en el exterior y su entrega en condiciones de integridad, disponibilidad y confidencialidad. | E75: N/A | H75: Disponibilidad recursos para el nuevo proyecto | I75: Recursos asignados | J75: 1 | K75: Documento de aprobación de recursos | L75: Dirección Nacional de Identificación | R75: 1 | S75: Dirección Nacional de Identificación. DNI | T75: 2021-01-02 | U75: 2021-12-31
A76: Registro civil e Identificación | B76: Registro y actualización del sistema | C76: 9 | D76: Documento de directrices para la transformación de los centros de acopio | E76: N/A | H76: Documento de directrices formalizado y socializado | I76: Documento aprobado | J76: 1 | K76: Documento publicado en intranet | L76: Intranet institucional | R76: 1 | S76: Dirección Nacional de Identificación. DNI | T76: 2021-01-02 | U76: 2021-12-31
A77: Registro civil e Identificación | B77: Registro y actualización del sistema | C77: 10 | D77: Desarrollar el proyecto de racionalización del tiempo de los trámites cédula de ciudadanía por primera vez, duplicado, rectificación y renovación realizados en el exterior. Proyecto “Web Service para generación de NIST de Cancillería" | E77: Plan Anticorrupción y de Atención al Ciudadano | H77: Trámites de cédula de ciudadanía con interoperabilidad entre Registraduría y Sistema Integral de Trámites-SITAC a través de “Web Service para generación de NIST de Cancillería" | I77: Cantidad de Trámites racionalizados, actualizados en formato integrado SUIT del Departamento Administrativo de la Función Pública/n*Cantidad de trámites por racionalizar | J77: 1 | K77: Formato integrado actualizado / Información publicada en pagina web | L77: SUIT / pagina web | R77: 1 | S77: Dirección Nacional de Identificación. DNI | T77: 2021-01-02 | U77: 2021-12-31
A78: Registro civil e Identificación | B78: Registro y actualización del sistema | C78: 11 | D78: Implementar la estación integrada de Servicios EIS para enrolamiento de los trámites de CC y TI ( primera vez, duplicado, renovación y rectificación) | E78: Plan Anticorrupción y de Atención al Ciudadano | H78: Cédulas y tarjetas de identidad tramitadas en EIS | I78: Cantidad de Trámites racionalizados, actualizados en formato integrado SUIT del Departamento Administrativo de la Función Pública/Cantidad de trámites por racionalizar | J78: 1 | K78: Formato integrado actualizado / Información publicada en pagina web | L78: SUIT / pagina web | R78: 1 | S78: Dirección Nacional de Identificación. DNI | T78: 2021-01-02 | U78: 2021-12-31
A79: Registro civil e Identificación | B79: Registro y actualización del sistema | C79: 12 | D79: Implementar una aplicación para tramitar duplicado de cedula de ciudadanía desde un dispositivo electrónico, con autenticación y reconocimiento facial y con pago en línea. | E79: Plan Anticorrupción y de Atención al Ciudadano | H79: Duplicados de cédulas de ciudadanía tramitadas a través de desde un dispositivo electrónico | I79: Cantidad de Trámites racionalizados, actualizados en formato integrado SUIT del Departamento Administrativo de la Función Pública/Cantidad de trámites por racionalizar | J79: 1 | K79: Formato integrado actualizado / Información publicada en pagina web | L79: SUIT / pagina web | R79: 1 | S79: Dirección Nacional de Identificación. DNI | T79: 2021-01-02 | U79: 2021-12-31
A80: Registro civil e Identificación | B80: Registro y actualización del sistema | C80: 13 | D80: Implementar el proyecto de cédula electrónica y digital para los trámites de duplicado y rectificación de cédula de ciudadanía. | E80: Plan Anticorrupción y de Atención al Ciudadano | H80: Cédula electrónica y digital implementada para duplicado y rectificación | I80: Cantidad de Trámites racionalizados, actualizados en formato integrado SUIT del Departamento Administrativo de la Función Pública/Cantidad de trámites por racionalizar | J80: 1 | K80: Formato integrado actualizado / Información publicada en pagina web | L80: SUIT / pagina web | R80: 1 | S80: Dirección Nacional de Identificación. DNI | T80: 2021-01-02 | U80: 2021-12-31
A81: Registro civil e Identificación | B81: Registro y actualización del sistema | C81: 14 | D81: Implementar el módulo para la expedición de certificación digital de nacionalidad en las Estaciones integradas de Servicios EIS | E81: Plan Anticorrupción y de Atención al Ciudadano | H81: Certificado de nacionalidad digital en estaciones EIS | I81: Cantidad de Trámites racionalizados, actualizados en formato integrado SUIT del Departamento Administrativo de la Función Pública/Cantidad de trámites por racionalizar | J81: 1 | K81: Formato integrado actualizado / Información publicada en página web | L81: SUIT / pagina web | R81: 1 | S81: Dirección Nacional de Identificación. DNI | T81: 2021-01-02 | U81: 2021-12-31
A82: Registro civil e Identificación | B82: Registro y actualización del sistema | C82: 15 | D82: Programar otras acciones de racionalización de trámites. | E82: Plan Anticorrupción y de Atención al Ciudadano | H82: Listado de trámites a racionalizar en la vigencia 2022 | I82: Matriz de racionalización de trámites elaborada. | J82: 1 | K82: Matriz de racionalización de trámites elaborada. | L82: RDRCI - DNI | R82: 1 | S82: Registraduría Delegada para el Registro Civil y Dirección Nacional de Identificación. | T82: 2021-01-02 | U82: 2021-12-31
A83: Registro civil e Identificación | B83: Certificación, documentación y servicios | C83: 16 | D83: Expedir certificados excepcionales de información no sujeta a reserva legal. | E83: N/A | H83: Certificaciones de documentos de identidad expedidos | I83: Cantidad de certificados excepcionales de información sujeta a reserva legal expedidos/ (n) * Cantidad de certificados excepcionales de información sujeta a reserva legal recibidos en el período | J83: 1 | K83: Reporte estadístico - Nivel central | L83: SCR | M83: 0.1666666667 | N83: 0.1666666667 | O83: 0.1666666667 | P83: 0.1666666667 | Q83: 0.1666666667 | R83: 0.1666666667 | S83: Dirección Nacional de Identificación. DNI | T83: 2021-01-02 | U83: 2021-12-31
A84: Registro civil e Identificación | B84: Registro y actualización del sistema | C84: 17 | D84: Digitalizar las primeras copias de Registros Civiles de Nacimiento, Matrimonio y Defunción (RCX), remitidas por las Delegaciones a la Dirección Nacional de Registro Civil. | E84: N/A | H84: Digitalizar el 100% de copias de RCX | I84: (cantidad de primeras copias de RCX digitalizadas del periodo anterior + cantidad de primeras copias de RCX digitalizadas en el periodo actual)/ n*(cantidad de primeras copias de RCX recibidas para digitalizar) | J84: 1 | K84: Reporte estadístico del SNI de copias de RCX digitalizadas en el bimestre | L84: DNRC | M84: 0.16667 | N84: 0.16667 | O84: 0.16667 | P84: 0.16667 | Q84: 0.16667 | R84: 0.16667 | S84: Dirección Nacional de Registro Civil. DNRC | T84: 2021-01-02 | U84: 2021-12-31
A85: Registro civil e Identificación | B85: Registro y actualización del sistema | C85: 18 | D85: Indexar los Registros Civiles de Nacimiento, Matrimonio y Defunción (RCX) que no han sido incorporadas a la base de datos. | E85: N/A | H85: Indexar el 100% de copias de RCX | I85: (Cantidad de primeras copias de RCX indexadas periodo anterior + cantidad de primeras copias de RCX indexadas en el periodo actual)/ n* (cantidad de primeras copias de RCX recibidas para Indexar) | J85: 1 | K85: Reporte estadístico del SNI de copias de RCX indexadas en el bimestre | L85: DNRC | M85: 0.16667 | N85: 0.16667 | O85: 0.16667 | P85: 0.16667 | Q85: 0.16667 | R85: 0.16667 | S85: Dirección Nacional de Registro Civil. DNRC | T85: 2021-01-02 | U85: 2021-12-31
A86: Registro civil e Identificación | B86: Registro y actualización del sistema | C86: 19 | D86: Realizar visitas administrativas a partir de los resultados obtenidos en los cruces de bases de datos respecto a posibles irregularidades, presentadas en las oficinas registrales | E86: Plan Anticorrupción y de Atención al Ciudadano | H86: Cumplir el 100% de las visitas programadas | I86: Cantidad de visitas realizadas/n*(Cantidad de visitas programadas) | J86: 1 | K86: informes de visitas administrativas realizadas | L86: DNRC | N86: 0.2 | O86: 0.2 | P86: 0.2 | Q86: 0.2 | R86: 0.2 | S86: Dirección Nacional de Registro Civil. DNRC | T86: 2021-01-02 | U86: 2021-12-31
A87: Registro civil e Identificación | B87: Certificación, documentación y servicios | C87: 20 | D87: Certificar la firma de los registradores del estado civil en los registros civiles de Nacimiento, Matrimonio y Defunción (RCX). | E87: N/A | H87: Certificar el 100% de Registros que cumplan con los requisitos para ser certificados | I87: Cantidad de certificaciones realizadas del periodo anterior + cantidad de certificaciones del periodo actual/n*(cantidad de solicitudes de certificación que cumplen con los requisitos) | J87: 1 | K87: Reporte del Grupo de Validación y Producción de solicitudes y certificaciones realizadas | L87: DNRC | M87: 0.16667 | N87: 0.16667 | O87: 0.16667 | P87: 0.16667 | Q87: 0.16667 | R87: 0.16667 | S87: Dirección Nacional de Registro Civil. DNRC | T87: 2021-01-02 | U87: 2021-12-31
A88: Registro civil e Identificación | B88: Certificación, documentación y servicios | C88: 21 | D88: Expedir copias y certificación de registros civiles de Nacimiento desde la GED en oficinas autorizadas | E88: N/A | H88: Expedir el 100% de las copias y certificaciones de nacimiento solicitadas que se encuentre imagen en la GED | I88: Cantidad de copias y certificaciones de nacimiento expedidas desde la GED/n*(cantidad de copias y certificaciones de nacimiento solicitadas cuya imagen se encuentre en la GED) | J88: 1 | K88: Cruce de bases de datos de usuarios habilitados para imprimir RCN desde la GED | L88: DNRC | M88: 0.16667 | N88: 0.16667 | O88: 0.16667 | P88: 0.16667 | Q88: 0.16667 | R88: 0.16667 | S88: Dirección Nacional de Registro Civil. DNRC | T88: 2021-01-02 | U88: 2021-12-31
A89: Registro civil e Identificación | B89: Certificación, documentación y servicios | C89: 22 | D89: Expedir copias y certificación de registros civiles de Matrimonio desde la GED | E89: N/A | H89: Expedir el 100% de las copias y certificaciones de matrimonio solicitadas que se encuentre imagen en la GED | I89: Cantidad de copias y certificaciones de matrimonio expedidas desde la GED/n*(Cantidad de copias y certificaciones de matrimonio solicitadas cuya imagen se encuentre en la GED) | J89: 1 | K89: Cruce de bases de datos de usuarios habilitados para imprimir RCM desde la GED | L89: DNRC | M89: 0.16667 | N89: 0.16667 | O89: 0.16667 | P89: 0.16667 | Q89: 0.16667 | R89: 0.16667 | S89: Dirección Nacional de Registro Civil. DNRC | T89: 2021-01-02 | U89: 2021-12-31
A90: Registro civil e Identificación | B90: Certificación, documentación y servicios | C90: 23 | D90: Expedir copias y certificación de registros civiles de Defunción desde la GED | E90: N/A | H90: Expedir el 100% de las copias y certificaciones de defunción solicitadas que se encuentre imagen en la GED | I90: Cantidad de copias y certificaciones de defunción expedidas desde la GED/n*(Cantidad de copias y certificaciones de defunción solicitadas cuya imagen se encuentre en la GED) | J90: 1 | K90: Cruce de bases de datos de usuarios habilitados para imprimir RCD desde la GED | L90: DNRC | M90: 0.16667 | N90: 0.16667 | O90: 0.16667 | P90: 0.16667 | Q90: 0.16667 | R90: 0.16667 | S90: Dirección Nacional de Registro Civil. DNRC | T90: 2021-01-02 | U90: 2021-12-31
A91: Registro civil e Identificación | B91: Certificación, documentación y servicios | C91: 24 | D91: Suscribir y legalizar el documento que establece los términos y condiciones para el Acceso a la Información biográfica y/o biométrica por parte de las Entidades públicas y privadas. | E91: N/A | H91: Suscribir y legalizar el 100% de los documento que establece los términos y condiciones para el Acceso a la Información biográfica y/o biométrica por parte de las Entidades públicas y privadas. | I91: Cantidad de documentos suscritos y legalizados en el período/ (n)*cantidad de documentos para suscribir y legalizar recibidos en el período | J91: 1 | K91: Informe estadístico | L91: Términos y condiciones suscritos en el año | M91: 0.16667 | N91: 0.16667 | O91: 0.16667 | P91: 0.16667 | Q91: 0.16667 | R91: 0.16667 | S91: Grupo de Acceso a la Información y Protección de Datos. GAIPDP | T91: 2021-01-18 | U91: 2021-12-31
A92: Registro civil e Identificación | B92: Proyecto: Fortalecimiento de la plataforma tecnológica que soporta el sistema de identificación y registro civil PMT II | C92: 25 | D92: Implementar el registro civil en línea | E92: Plan Estratégico | F92: Objetivo_2._Optimizar_y_modernizar_los_procesos_misionales_y_de_apoyo_de_la_entidad_gracias_al_uso_de_nuevas_tecnologías | G92: 2. Impulsar la transformación digital de los procesos de la entidad a través de innovaciones como registro civil en línea, cédula electrónica, cédula digital y voto mixto, entre otros | H92: Ejecutar el 100% de las actividades para la implementación del Registro Civil en línea programadas | I92: Cantidad de actividades realizadas para la implementación del Registro civil en línea/n*(Cantidad de actividades programas para implementación del Registro civil en línea) | J92: 0.35 | K92: Documentos resultado del análisis diseño y arquitectura del Registro civil en línea, Resultado prueba pilo de tomo y folio y Resultado de depuración. | L92: Registraduría Delegada para el Registro Civil y la Identificación | R92: 0.35 | S92: Registraduría Delegada para el Registro Civil y la Identificación Gerente de Informática | T92: 2021-01-01 | U92: 2021-12-31
A93: Registro civil e Identificación | B93: Registro y actualización del sistema | C93: 26 | D93: Realizar atención preferencial a través de la Unidad de Atención a Población Vulnerable -UDAPV- a los diferentes grupos poblacionales que por su condición de vulnerabilidad y/o por sus condiciones económicas no pueden acceder a las oficinas de la Registraduría Nacional a nivel nacional para realizar la inscripción en el registro civil de nacimiento - RCN y tramitar la contraseña de tarjeta de identidad y/o cédula de ciudadanía. | E93: Plan Anticorrupción y de Atención al Ciudadano | H93: Realizar el 100% de las Jornadas de registro civil e identificación programadas durante la vigencia | I93: Cantidad de jornadas de Registro Civil e Identificación realizadas./ (n)*Cantidad de jornadas de Registro Civil e Identificación programadas en el período | J93: 1 | K93: Informe ejecutivo del SPI | L93: Informe ejecutivo del SPI | R93: 1 | S93: Unidad de Atención a Población Vulnerable. UDAPV | T93: 2021-01-01 | U93: 2021-12-31
A94: Registro civil e Identificación | B94: Registro y actualización del sistema | C94: 27 | D94: Realizar las actividades del proyecto de fortalecimiento de la capacidad de atención en Identificación para la población en condición de vulnerabilidad, APD. Nacional | E94: N/A | H94: Realizar el 100% de las actividades del proyecto de fortalecimiento de la capacidad de atención en Identificación para la población en condición de vulnerabilidad, APD. Nacional | I94: Cantidad de inactividades del proyecto realizadas en el periodo / Cantidad de actividades del proyecto programadas en el periodo | J94: 1 | K94: Informe ejecutivo del SPI | L94: Informe ejecutivo del SPI | M94: =1/6 -> 0.1666666667 | N94: 0.1666666667 | O94: 0.1666666667 | P94: 0.1666666667 | Q94: 0.1666666667 | R94: 0.1666666667 | S94: Unidad de Atención a Población Vulnerable. UDAPV | T94: 2021-01-01 | U94: 2021-12-31
A95: Registro civil e Identificación | B95: Fortalecimiento del sistema de información de registro civil nacional | C95: 28 | D95: Desarrollar estrategias de divulgación a población perteneciente a comunidades indígenas y de negritudes, respecto a la importancia del registro civil. | E95: Plan Estratégico | F95: Objetivo_4._Priorizar_el_servicio_al_usuario_como_eje_central_para_la_creación_de_valor_público | G95: 3. Usar metodologías de diseño del servicio centradas en el ciudadano y los usuarios | H95: Desarrollo del 100% de eventos programados para la socialización sobre la importancia del registro civil a la población perteneciente a comunidades indígenas y de negritudes | I95: Cantidad de eventos de capacitación desarrollados/n*(Cantidad de eventos de capacitación programados | J95: 1 | K95: Informe ejecutivo del SPI | L95: Lista de asistentes a los eventos de capacitación | Q95: 0.5 | R95: 0.5 | S95: Dirección Nacional de Registro Civil. DNRC | T95: 2021-01-01 | U95: 2021-12-31
A96: Gestión Administrativa y Financiera | B96: Gestión de los recursos financieros | C96: 1 | D96: Registrar en el SIIF Nación y publicar en la página WEB de la Entidad, la ejecución presupuestal de la RNEC+CNE y el FRR, correspondiente al sexto bimestre de la vigencia 2020 | E96: N/A | F96: Objetivo_1._Rediseñar_la_arquitectura_organizacional_de_la_entidad_para_fortalecer_sus_capacidades | H96: Registrar y publicar el 100% de la ejecución presupuestal de la RNEC+CNE y el FRR, correspondiente al sexto bimestre de la vigencia 2020, en la pagina web de la entidad | I96: Cantidad de informes publicados en el período / (n*Cantidad de informes programados para publicar en el período) | J96: 1 | K96: Enlace de publicación ejecución Presupuestal RNEC+CNE y FRR | L96: Página Web | M96: =1/(1*1) -> 1 | S96: Sonia Fajardo Medina - Directora Financiera | T96: 2021-01-02 | U96: 2021-02-28
A97: Gestión Administrativa y Financiera | B97: Gestión de los recursos financieros | C97: 2 | D97: Registrar en el SIIF Nación y publicar en la página WEB de la Entidad, la ejecución presupuestal de la RNEC+CNE y el FRR, correspondiente a los 5 primeros bimestres de la vigencia 2021 | E97: N/A | F97: Objetivo_1._Rediseñar_la_arquitectura_organizacional_de_la_entidad_para_fortalecer_sus_capacidades | H97: Registrar y publicar el 100% de la ejecución presupuestal de la RNEC+CNE y el FRR, correspondiente a los 5 primeros bimestres de la vigencia 2021, en la pagina web de la entidad | I97: Cantidad de informes publicados en el período / (n*Cantidad de informes programados para publicar en el período) | J97: 1 | K97: Enlace de publicación ejecución Presupuestal RNEC+CNE y FRR | L97: Página Web | N97: =1/(1*5) -> 0.2 | O97: =1/(1*5) -> 0.2 | P97: =1/(1*5) -> 0.2 | Q97: =1/(1*5) -> 0.2 | R97: =1/(1*5) -> 0.2 | S97: Sonia Fajardo Medina - Directora Financiera | T97: 2021-03-01 | U97: 2021-12-31
A98: Gestión Administrativa y Financiera | B98: Gestión de los recursos financieros | C98: 3 | D98: Elaborar, presentar y transmitir a la Contaduría General de la Nación, los Estados Financieros de la RNEC y el FRR correspondientes al cuarto trimestre de la vigencia 2020 | E98: N/A | F98: Objetivo_1._Rediseñar_la_arquitectura_organizacional_de_la_entidad_para_fortalecer_sus_capacidades | H98: Transmitir a la Contaduría General de la Nación, el 100% de los Estados Financieros de la RNEC y el FRR, correspondientes al cuarto trimestre de la vigencia 2020 | I98: Cantidad de Estados Financieros transmitidos en el período / (n*Cantidad de Estados Financieros programados para transmitir en el período) | J98: 1 | K98: Constancia de transmisión a la Contaduría General de la Nación (CGN) | L98: Página Web | M98: =1/(1*1) -> 1 | S98: Sonia Fajardo Medina - Directora Financiera | T98: 2021-01-02 | U98: 2021-02-28
A99: Gestión Administrativa y Financiera | B99: Gestión de los recursos financieros | C99: 4 | D99: Elaborar, presentar y transmitir a la Contaduría General de la Nación, los Estados Financieros de la RNEC y el FRR correspondientes a los 3 primeros trimestres de la vigencia 2021 | E99: N/A | F99: Objetivo_1._Rediseñar_la_arquitectura_organizacional_de_la_entidad_para_fortalecer_sus_capacidades | H99: Transmitir a la Contaduría General de la Nación, el 100% de los Estados Financieros de la RNEC y el FRR, correspondientes a los 3 primeros trimestres de la vigencia 2021 | I99: Cantidad de Estados Financieros transmitidos en el período / (n*Cantidad de Estados Financieros programados para transmitir en el período) | J99: 1 | K99: Constancia de transmisión a la Contaduría General de la Nación (CGN) | L99: Página Web | N99: =1/(1*3) -> 0.3333333333 | P99: =1/(1*3) -> 0.3333333333 | Q99: =1/(1*3) -> 0.3333333333 | S99: Sonia Fajardo Medina - Directora Financiera | T99: 2021-03-01 | U99: 2021-10-31
A100: Gestión Administrativa y Financiera | B100: Gestión de los recursos financieros | C100: 5 | D100: Conciliar, clasificar y registrar en el SIIF Nación, la ejecución del presupuesto de ingresos del FRR, correspondiente al sexto bimestre de la vigencia 2020 | E100: N/A | F100: Objetivo_1._Rediseñar_la_arquitectura_organizacional_de_la_entidad_para_fortalecer_sus_capacidades | H100: Conciliar, clasificar y registrar en el SIIF Nación, el 100% del Reporte Ejecución de Ingresos del FRR, correspondiente al sexto bimestre de la vigencia 2020 | I100: Cantidad de informes registrados en el SIIF Nación, en el período / (n*Cantidad de informes programados para registrar en el SIIF Nación, en el período) | J100: 1 | K100: Informe de Ingresos Recaudados | L100: SharePoint | M100: =1/(1*1) -> 1 | S100: Sonia Fajardo Medina - Directora Financiera | T100: 2021-01-02 | U100: 2021-02-28
A101: Gestión Administrativa y Financiera | B101: Gestión de los recursos financieros | C101: 6 | D101: Conciliar, clasificar y registrar en el SIIF Nación, la ejecución del presupuesto de ingresos del FRR, correspondiente a los 5 primeros bimestres de la vigencia 2021 | E101: N/A | F101: Objetivo_1._Rediseñar_la_arquitectura_organizacional_de_la_entidad_para_fortalecer_sus_capacidades | H101: Conciliar, clasificar y registrar en el SIIF Nación, el 100% del Reporte Ejecución de Ingresos del FRR, correspondiente a los 5 primeros bimestres de la vigencia 2021 | I101: Cantidad de informes registrados en el SIIF Nación, en el período / (n*Cantidad de informes programados para registrar en el SIIF Nación, en el período) | J101: 1 | K101: Informe de Ingresos Recaudados | L101: SharePoint | N101: =1/(1*5) -> 0.2 | O101: =1/(1*5) -> 0.2 | P101: =1/(1*5) -> 0.2 | Q101: =1/(1*5) -> 0.2 | R101: =1/(1*5) -> 0.2 | S101: Sonia Fajardo Medina - Directora Financiera | T101: 2021-03-01 | U101: 2021-12-31
A102: Gestión Administrativa y Financiera | B102: Gestión contractual | C102: 7 | D102: Ejecución presupuestal del Plan Anual de Adquisiciones | E102: Plan Anual de Adquisiciones | H102: Ejecutar el 100% del PAA | I102: Valor del presupuesto del PAA comprometido/(n*Total del presupuesto del PAA en el bimestre) | J102: 1 | K102: Publicación Reporte SIIF de Compromisos Control de solicitudes PAA | L102: Coordinación de Compras | M102: 0.166 | N102: 0.166 | O102: 0.166 | P102: 0.166 | Q102: 0.166 | R102: 0.166 | S102: Dily Marina Maestre Zabala | T102: 2021-01-04 | U102: 2021-12-31
A103: Gestión Administrativa y Financiera | B103: Gestión de los recursos físicos | C103: 8 | D103: Consolidar el inventario de la vigencia 2020 | E103: N/A | H103: Consolidar el 100% del levantamiento físico de inventario | I103: Cantidad de reporte recibidos en el periodo/ (n *Cantidad de reportes solicitados en el periodo) | J103: 1 | K103: Base de datos del inventario de la vigencia 2020 | L103: Coordinación de Almacén e Inventarios | M103: 1 | S103: Dily Marina Maestre Zabala | T103: 2021-01-04 | U103: 2021-02-26
A104: Gestión Administrativa y Financiera | B104: Gestión Documental | C104: 9 | D104: Medir en metros lineales la cantidad de series eliminadas realizadas a Nivel Nacional | E104: N/A | H104: Consolidar el 100% de los metros lineales de eliminación del nivel desconcentrado | I104: Cantidad e de metros lineales eliminados en el periodo / (n* Cantidad de metros lineales aprobados para eliminar en el periodo) | J104: 1 | K104: Base de datos de los metros lineales eliminados | L104: Coordinación Gestión Documental y Archivos | R104: 1 | S104: Dily Marina Maestre Zabala | T104: 2021-11-02 | U104: 2021-12-31
A105: Gestión Administrativa y Financiera | B105: Gestión Documental | C105: 10 | D105: Medir en metros lineales la cantidad de transferencias realizadas a Nivel Nacional | E105: N/A | H105: Consolidar el 100% de los metros lineales de transferencia del nivel desconcentrado | I105: Cantidad de metros lineales transferidos en el perido / (n*Cantidad de de metros lineales que cumplieron su término de retención) | J105: 1 | K105: Base de datos de los metros lineales transferencias | L105: Coordinación Gestión Documental y Archivos | R105: 1 | S105: Dily Marina Maestre Zabala | T105: 2021-11-02 | U105: 2021-12-31
A106: Gestión Administrativa y Financiera | B106: Gestión documental | C106: 11 | D106: Digitalizar de cartillas, folletos, separatas y demás material bibliográfico | E106: N/A | H106: Digitalizar el 100% de material bibliográfico como cartillas, folletos, separatas, entre otros a digitalizar en 2021 | I106: cantidad de material bibliográfico digitalizado en el periodo/ (n*cantidad de material bibliográfico a digitalizar en el periodo) | J106: 1 | K106: Documentos en formato pdf | L106: Biblioteca Gustavo Ardila Duarte | M106: 0.166 | N106: 0.166 | O106: 0.166 | P106: 0.166 | Q106: 0.166 | R106: 0.166 | S106: Benjamín Ortiz | T106: 2021-01-04 | U106: 2021-12-31
A107: Gestión Administrativa y Financiera | B107: Gestión documental | C107: 12 | D107: Diseñar y divulgar mediante banner de nuevas adquisiciones bibliográficas, físicas y digitales | E107: N/A | H107: Divulgar el 100% de las nuevas adquisiciones y servicios | I107: Cantidad de Banner publicados en el periodo/(n*Cantidad de banner a publicar en el periodo) | J107: 1 | K107: Banner publicados | L107: Biblioteca Gustavo Ardila Duarte | M107: 0.166 | N107: 0.166 | O107: 0.166 | P107: 0.166 | Q107: 0.166 | R107: 0.166 | S107: Benjamín Ortiz | T107: 2021-01-04 | U107: 2021-12-31
A108: Gestión del Talento Humano | B108: Permanencia del talento humano | C108: 1 | D108: Presentar ante el Despacho del Señor Registrador Nacional, el documento metodológico con la propuesta de Estructura Organizacional final y de alineación del modelo de operación | E108: Plan Estratégico | F108: Objetivo_1._Rediseñar_la_arquitectura_organizacional_de_la_entidad_para_fortalecer_sus_capacidades | G108: 1. Reestructurar orgánica y funcionalmente la RNEC en los niveles central y desconcentrado | H108: 100% de documentos metodológicos finales presentados ante el Despacho del Señor Registrador Nacional, con la propuesta de Estructura Organizacional y de alineación del modelo de operación. | I108: Cantidad de Documentos metodológicos presentados / (n * Cantidad de Documentos metodológicos a entregar) | J108: =+M108+N108+O108+P108+Q108+R108 -> 1 | K108: Documento en .pdf | L108: Archivo de gestión Supervisión del Contrato 059 de 2020 | N108: =100/100 -> 1 | S108: Gerente del Talento Humano Asesora D.R.N. | T108: 2021-01-01 | U108: 2021-04-30
A109: Gestión del Talento Humano | B109: Permanencia del talento humano | C109: 2 | D109: Presentar ante el Despacho del Señor Registrador Nacional, el documento metodológico con los resultados finales del levantamiento de cargas de trabajo a nivel nacional. | E109: Plan Estratégico | F109: Objetivo_1._Rediseñar_la_arquitectura_organizacional_de_la_entidad_para_fortalecer_sus_capacidades | G109: 1. Reestructurar orgánica y funcionalmente la RNEC en los niveles central y desconcentrado | H109: 100% del documento metodológico final presentado ante el Despacho del Señor Registrador Nacional, del levantamiento de cargas de trabajo a nivel nacional. | I109: Cantidad de Documentos metodológicos presentados / (n * Cantidad de Documentos metodológicos a entregar) | J109: =+M109+N109+O109+P109+Q109+R109 -> 1 | K109: Documento en .pdf | L109: Archivo de gestión Supervisión del Contrato 059 de 2020 | N109: =100/100 -> 1 | S109: Gerente del Talento Humano Asesora D.R.N. | T109: 2021-01-01 | U109: 2021-04-30
A110: Gestión del Talento Humano | B110: Permanencia del talento humano | C110: 3 | D110: Gestionary presentar ante las autoridades competentes, el documento metodológico con la propuesta de modificacion de la Estructura Organizacional de la Regisrtraduiria Nacional del Estado Civil | E110: Plan Estratégico | F110: Objetivo_1._Rediseñar_la_arquitectura_organizacional_de_la_entidad_para_fortalecer_sus_capacidades | G110: 1. Reestructurar orgánica y funcionalmente la RNEC en los niveles central y desconcentrado | H110: 100% de documentos metodológicos finales presentados ante las autoridades competentes, para avanzar en la reestructuración orgánica y funcional de la RNEC | I110: Cantidad de Documentos metodológicos presentados / (n * Cantidad de Documentos metodológicos a entregar) | J110: 1 | K110: Documento en .pdf | L110: Archivo de Gestión GTH | N110: =100/100 -> 1 | S110: Registrador Nacional del Estado Civil Gerente del Talento Humano Asesora D.R.N. | T110: 2021-01-01 | U110: 2021-04-30
A111: Gestión del Talento Humano | B111: Permanencia del talento humano | C111: 4 | D111: Presentar ante el Despacho del Señor Registrador Nacional, los documentos metodológicos con el proyecto de Manual de Funciones y Competencias Laborales; la propuesta de distribución de la planta, actos administrativos de modificación de la planta e implementación. | E111: Plan Estratégico | F111: Objetivo_1._Rediseñar_la_arquitectura_organizacional_de_la_entidad_para_fortalecer_sus_capacidades | G111: 2. Fortalecer y redistribuir la planta de personal en los niveles central y desconcentrado | H111: 100% de documentos metodológicos finales presentados ante el Despacho del Señor Registrador Nacional, del proyecto de Manual de Funciones y Competencias Laborales, propuesta de distribución de la planta, actos administrativos de modificación de la planta e implementación. | I111: Cantidad de Documentos metodológicos presentados / (n * Cantidad de Documentos metodológicos a entregar) | J111: 1 | K111: Documento en .pdf | L111: Archivo de gestión Supervisión del Contrato 059 de 2020 | N111: =100/100 -> 1 | S111: Gerente del Talento Humano Asesora D.R.N. | T111: 2021-01-01 | U111: 2021-04-30
A112: Gestión del Talento Humano | B112: Permanencia del talento humano | C112: 5 | D112: Solicitar a la Dirección de Presupuesto Nacional del Ministerio de Hacienda y Crédito Público el levantamiento de la suspensión de la aprobación presupuestal para efectuar el reajuste salarial a los servidores públicos de la R.N.E.C. | E112: Plan Estratégico | F112: Objetivo_1._Rediseñar_la_arquitectura_organizacional_de_la_entidad_para_fortalecer_sus_capacidades | G112: 3. Lograr el reajuste salarial de los servidores públicos de la RNEC | H112: Documento con la solicitud de levantamiento de suspensión de aprobación presupuestal presentado an el M.H.C.P. | I112: Cantidad de Documentos metodológicos presentados / (n * Cantidad de Documentos metodológicos a entregar) | J112: 1 | K112: Documento en .pdf | L112: Archivo de Gestión GTH | M112: =100/100 -> 1 | S112: Gerente del Talento Humano Asesora D.R.N. | T112: 2021-01-01 | U112: 2021-04-30
A113: Gestión del Talento Humano | B113: Permanencia del talento humano | C113: 6 | D113: Realizar las actividades de presupuesto e inclusión en la base de datos de nómina de servidores con base en el cronograma de nómina el reajuste salarial aprobado para la RNEC. (Una vez expedido el Decreto de las nuevas asignaciones básicas para la RNEC por parte del D.A.F.P.). | E113: Plan Estratégico | F113: Objetivo_1._Rediseñar_la_arquitectura_organizacional_de_la_entidad_para_fortalecer_sus_capacidades | G113: 3. Lograr el reajuste salarial de los servidores públicos de la RNEC | H113: 100% de la base de datos Kactus con la inclusión de la nómina con el reajuste aprobado. | I113: Base de datos Kactus proceso de nómina actualizada con el reajuste salarial | J113: 1.000001875 | K113: Base de Datos Kactus con nómina de reajuste salarial validada | L113: Sistemas de Información Salarios y Prestaciones | M113: =1/4 -> 0.25 | N113: =1/1.33333 -> 0.750001875 | S113: Gerente del Talento Humano Asesora D.R.N. Coordinador Grupo de Salarios y Prestaciones | T113: 2021-01-01 | U113: 2021-04-30
A114: Gestión del Talento Humano | B114: Permanencia del talento humano | C114: 7 | D114: Realizar las actividades de monitoreo y control y establecer las acciones de mejora correspondientes a los protocolos de bioseguridad de competencia de la GTH cuando apliquen. | E114: Plan Estratégico | F114: Objetivo_1._Rediseñar_la_arquitectura_organizacional_de_la_entidad_para_fortalecer_sus_capacidades | G114: 5. Adoptar protocolos sanitarios y de bioseguridad que permitan mantener “espacios sanos” frente a la pandemia en las instalaciones de la entidad | H114: Informe de ejecución de actividades (SGFL01) que contiene el monitoreo, control y acciones al cumplimiento de los protocolos de bioseguridad | I114: Cantidad de actividades realizadas / (n * Cantidad de actividades programadas) | J114: 1 | K114: Informe de ejecución de actividades-SGFL01 con el monitoreo al cumplimiento de los protocolos de bioseguirdad. | L114: Archivo de gestión de la Coordinación de Desarrollo Integral | M114: =1/10 -> 0.1 | N114: =1/5 -> 0.2 | O114: =1/5 -> 0.2 | P114: =1/5 -> 0.2 | Q114: =1/5 -> 0.2 | R114: =1/10 -> 0.1 | S114: Gerente del Talento Humano Coordinador (a) Grupo Desarrollo Integral | T114: 2021-01-01 | U114: 2021-12-31
A115: Gestión del Talento Humano | B115: Permanencia del talento humano | C115: 8 | D115: Realizar actividades de reorientación de los servidores a la cultura organizacional en virtud de los cambios institucionales producidos y generados en su entorno estructural, funcional, normativo, conceptual, tecnológico y sociocultural a través de la reinducción | E115: Plan Estratégico | F115: Objetivo_1._Rediseñar_la_arquitectura_organizacional_de_la_entidad_para_fortalecer_sus_capacidades | G115: 7. Robustecer la estrategia de capacitación de funcionarios en la entidad, con especial énfasis en su inducción y reinducción | H115: Actividades de Reinducción realizadas al 100% | I115: Cantidad de actividades realizadas / (n * Cantidad de actividades programadas) | J115: 1 | K115: Informe de seguimiento SGFL01 y acciones de mejora | L115: Sistemas de Información / Archivo de gestión de la Coordinación de Desarrollo Integral | M115: =1/5 -> 0.2 | O115: =1/2.5 -> 0.4 | P115: =1/2.5 -> 0.4 | S115: Gerente del Talento Humano Coordinador (a) Grupo Desarrollo Integral | T115: 2021-01-01 | U115: 31/0/2021
A116: Gestión del Talento Humano | B116: Permanencia del talento humano | C116: 9 | D116: Realizar actividades de capacitación de alto nivel en la norma NTC ISO 37001:2017, dirigidas al equipo de Trabajo de Gestión ética de la RNEC. | E116: Plan Estratégico | F116: Objetivo_1._Rediseñar_la_arquitectura_organizacional_de_la_entidad_para_fortalecer_sus_capacidades | G116: 8. Crear y desarrollar la estrategia de lucha anticorrupción en la entidad y obtener la certicación en la norma de gestión antisoborno ISO 37001 | H116: 100% de actividades de capacitación realizadas en la norma NTC ISO 37001:2017 al equipo de trabajo de gestión ética de RNEC | I116: Cantidad de actividades realizadas / (n * Cantidad de actividades programadas) | J116: 1 | K116: Formato asistencia a eventos de formación / Capacitación-PTFT18 | L116: Archivo de gestión de la Coordinación de Desarrollo Integral | O116: =100/100 -> 1 | S116: Gerente del Talento Humano Coordinador (a) Grupo Desarrollo Integral | T116: 2021-05-01 | U116: 2021-06-30
A117: Gestión del Talento Humano | B117: Permanencia del talento humano | C117: 10 | D117: Realizar las actividades relacionadas con la elaboración del documento del Plan de Gestión Ética, actualización, aprobación y divulgación del Código de Ética y Buenas Prácticas y desarrollo de las actividades de aplicación en práctica ética. | E117: Plan Anticorrupción y de Atención al Ciudadano | F117: Objetivo_1._Rediseñar_la_arquitectura_organizacional_de_la_entidad_para_fortalecer_sus_capacidades | G117: 8. Crear y desarrollar la estrategia de lucha anticorrupción en la entidad y obtener la certicación en la norma de gestión antisoborno ISO 37001 | H117: 100% de las actividades realizadas y relacionadas con el plan de gestión ética | I117: Documentos actualizados / (n * Documentos aprobados) | J117: 1.0000006 | K117: Documento publicado | L117: Pagina web y/o Intranet | M117: =1/6.66666 -> 0.15000015 | N117: 0.15000015 | O117: 0.15000015 | P117: 0.15000015 | Q117: =1/5 -> 0.2 | R117: =1/5 -> 0.2 | S117: Gerente del Talento Humano Coordinador (a) Grupo Desarrollo Integral | T117: 2021-03-01 | U117: 2021-04-30
A118: Gestión del Talento Humano | B118: Permanencia del talento humano | C118: 11 | D118: Llevar a cabo actividades de implementación, actualización y apropiación de la información documentada del SGSST, armonizada con la norma NTC ISO 45001:2018 y realización de capacitaciones al equipo de trabajo del SGSST con profundización en la norma NTC ISO 45001:2018. | E118: Plan Estratégico | F118: Objetivo_1._Rediseñar_la_arquitectura_organizacional_de_la_entidad_para_fortalecer_sus_capacidades | G118: 9. Gestionar y obtener la certicación de la entidad en la norma de gestión de seguridad y salud en el trabajo ISO 45001 | H118: 100% de las actividades de implementación, actualización, aprobación y capacitación respecto a la norma NTC ISO 45001:2018. | I118: Cantidad de actividades realizadas /(n* Cantidad de actividades programadas) | J118: 1.0000006 | K118: Manual del SGSST aprobado y divulgado | L118: Pagina web | M118: 0.15000015 | N118: 0.15000015 | O118: =1/5 -> 0.2 | P118: =1/5 -> 0.2 | Q118: 0.15000015 | R118: 0.15000015 | S118: Gerente del Talento Humano Coordinador (a) Grupo Desarrollo Integral | T118: 2021-03-01 | U118: 2021-04-30
A119: Gestión del Talento Humano | B119: Permanencia del talento humano | C119: 12 | D119: Aplicar el procedimiento del sistema de evaluación de desempeño laboral del los servidores públicos de carrera administrativa activos en la vigencia | E119: Plan Estratégico de Talento Humano | F119: N/A | G119: N/A | H119: 100% de las Evaluaciones de desempeño laboral de los servidores públicos, de carrera administrativa, de la sede central y activos en el período | I119: Cantidad de evaluaciones realizadas/ (n)*Cantidad de evaluaciones programadas en el período | J119: =+M119+N119+O119+P119+Q119+R119 -> 1.0000006 | K119: Certificación expedida por el Coordinador del Grupo de Carrera Administrativa Especial con la cantidad de evaluaciones realizadas | L119: SharePoint y/o Archivo de Gestión documental de la Coordinación de Carrera Administrativa | M119: =1/3.33333 -> 0.3000003 | N119: =1/10 -> 0.1 | O119: =1/10 -> 0.1 | P119: =1/3.33333 -> 0.3000003 | Q119: =1/10 -> 0.1 | R119: =1/10 -> 0.1 | S119: Gerencia del Talento Humano Coordinación Grupo Carrera Administrativa Especial | T119: 2021-01-01 | U119: 2021-12-31 | Z119: Plan de Trabajo Anual en Seguridad y Salud en el Trabajo
A120: Gestión del Talento Humano | B120: Permanencia del talento humano | C120: 13 | D120: Actualizar el Registro Público de la Carrera | E120: Plan Estratégico de Talento Humano | F120: N/A | G120: N/A | H120: 100% de las Anotaciones realizadas en el registro público de movimientos que afectan derechos de carrera administrativo en el periodo. | I120: Cantidad de anotaciones realizadas en el registro público durante período/(n)*Cantidad de anotaciones en el registro público programadas a realizar en el periodo | J120: =+M120+N120+O120+P120+Q120+R120 -> 1.0000006 | K120: Certificación expedida por el Coordinador del Grupo de Carrera Administrativa Especial con la cantidad de anotaciones el registro público. | L120: SharePoint y/o Archivo de Gestión documental de la Coordinación de Carrera Administrativa | M120: =1/6.66666 -> 0.15000015 | N120: =1/6.66666 -> 0.15000015 | O120: =1/6.66666 -> 0.15000015 | P120: =1/6.66666 -> 0.15000015 | Q120: =1/5 -> 0.2 | R120: =1/5 -> 0.2 | S120: Gerente del Talento Humano Coordinación Grupo de Carrera Administrativa Registradores Distritales - Delegados Departamentales - Encargados del Talento Humano en cada Circunscripción. | T120: 2021-01-01 | U120: 2021-12-31 | Z120: Plan Anticorrupción y de Atención al Ciudadano
A121: Gestión del Talento Humano | B121: Permanencia del talento humano | C121: 14 | D121: Realizar las actividades relacionadas con la elaboración del documento del plan de trabajo anual del SGSST y desarrollar el plan correspondiente. | E121: Plan de Trabajo Anual en Seguridad y Salud en el Trabajo | F121: N/A | G121: N/A | H121: 100% de las actividades del plan de trabajo anual del SGSST realizadas | I121: Cantidad de actividades realizadas /(n* Cantidad de actividades programadas) | J121: =+M121+N121+O121+P121+Q121+R121 -> 1.0000006 | K121: * Documento plan de trabajo anual publicado * Formato asistencia a eventos de formación | L121: Pagina web y/o Intranet | M121: =1/20 -> 0.05 | N121: =1/10 -> 0.1 | O121: =1/3.33333 -> 0.3000003 | P121: =1/5 -> 0.2 | Q121: =1/3.33333 -> 0.3000003 | R121: =1/20 -> 0.05 | S121: Gerente del Talento Humano Coordinador (a) Grupo Desarrollo Integral | T121: 2021-01-01 | U121: 2021-02-28 | Z121: Plan Estratégico de Tecnológias de la Información y las comunicaciónes PETI
A122: Gestión del Talento Humano | B122: Permanencia del talento humano | C122: 15 | D122: Realizar las actividades relacionadas con la elaboración del documento del Programa de Bienestar Social y desarrollar el programa correspondiente. | E122: Plan Estratégico de Talento Humano | F122: N/A | G122: N/A | H122: 100% de las actividades del Programa de Bienestar Social realizadas | I122: Cantidad de actividades realizadas /(n* Cantidad de actividades programadas) | J122: =+M122+N122+O122+P122+Q122+R122 -> 1.0000006 | K122: * Documento programa de bienestar publicado * Formato asistencia a eventos de formación | L122: Pagina web y/o Intranet | M122: =1/20 -> 0.05 | N122: =1/10 -> 0.1 | O122: =1/3.33333 -> 0.3000003 | P122: =1/5 -> 0.2 | Q122: =1/3.33333 -> 0.3000003 | R122: =1/20 -> 0.05 | S122: Gerente del Talento Humano Coordinador (a) Grupo Desarrollo Integral | T122: 2021-01-01 | U122: 2021-02-28 | Z122: Plan Estratégico de Tecnológias de la Información y las comunicaciónes PETI
A123: Gestión del Talento Humano | B123: Permanencia del talento humano | C123: 16 | D123: Desarrollar actividades de enfoque diferencial como método de análisis para hacer visible la calidad de la relación entre hombres, mujeres y otras identidades en la RNEC | E123: Plan Estratégico de Talento Humano | F123: N/A | G123: N/A | H123: 100% de las Actividades de enfoque diferencial desarrolladas | I123: Cantidad de actividades realizadas /(n* Cantidad de actividades programadas) | J123: 1 | K123: Documento Plan de trabajo enfoque diferencial e informe de las actividades. | L123: Archivo de gestión de la Coordinación de Desarrollo Integral | M123: =1/20 -> 0.05 | N123: =1/10 -> 0.1 | O123: =1/3.33333 -> 0.3000003 | P123: =1/5 -> 0.2 | Q123: =1/3.33333 -> 0.3000003 | R123: =1/20 -> 0.05 | S123: Gerente del Talento Humano Coordinador (a) Grupo Desarrollo Integral | T123: 2021-01-01 | U123: 2021-12-31
A124: Gestión del Talento Humano | B124: Permanencia del talento humano | C124: 17 | D124: Elaborar, aprobar y divulgar el documento del Programa de Inclusión y Politicas Laborales. | E124: Plan Estratégico de Talento Humano | F124: N/A | G124: N/A | H124: 100% del Documento de inclusión y políticas laborales aprobado. | I124: Cantidad de Documentos elaborados / (n * Cantidad de Documentos aprobados) | J124: =+M124+N124+O124+P124+Q124+R124 -> 1 | K124: Documento programa de inclusión y políticas laborales publicado | L124: Pagina web y/o Intranet | N124: =1/2 -> 0.5 | O124: =1/2 -> 0.5 | S124: Gerente del Talento Humano Coordinador (a) Grupo Desarrollo Integral | T124: 2021-03-01 | U124: 2021-06-30
A125: Gestión del Talento Humano | B125: Permanencia del talento humano | C125: 18 | D125: Elaborar, aprobar y divulgar el documento del programa de desvinculación laboral asistida (Prepensionados). | E125: Plan Estratégico de Talento Humano | F125: N/A | G125: N/A | H125: 100% del documento programa dedesvicnulación laboral aprobado | I125: Cantidad de Documentos elaborados / (n * Cantidad de Documentos aprobados) | J125: =+M125+N125+O125+P125+Q125+R125 -> 1 | K125: Documento del programa de desvinculación laboral aprobado. | L125: Pagina web y/o Intranet | N125: =1/2 -> 0.5 | O125: =1/2 -> 0.5 | S125: Gerente del Talento Humano Coordinador (a) Grupo Desarrollo Integral | T125: 2021-03-01 | U125: 2021-06-30 | Z125: Plan de Gestión Ambiental
A126: Gestión del Talento Humano | B126: Permanencia del talento humano | C126: 19 | D126: Realizar las actividades relacionadas con la elaboración del documento del Plan Institucional de Formación y Capacitación-PIFC y desarrollar el plan correspondiente. | E126: Plan Institucional de Capacitación | F126: N/A | G126: N/A | H126: 100% de las actividades del Plan Institucional de Formación y Capacitación-PIFC realizadas | I126: Cantidad de Documentos elaborados / (n * Cantidad de Documentos aprobados) | J126: 1.0000006 | K126: * Documento del PIFC publicado * Formato asistencia a eventos de formación | L126: Pagina web y/o Intranet | M126: =1/20 -> 0.05 | N126: =1/10 -> 0.1 | O126: =1/3.33333 -> 0.3000003 | P126: =1/3.33333 -> 0.3000003 | Q126: =1/5 -> 0.2 | R126: =1/20 -> 0.05 | S126: Gerente del Talento Humano Coordinador (a) Grupo Desarrollo Integral | T126: 2021-03-01 | U126: 2021-04-30
A127: Gestión del Talento Humano | B127: Permanencia del talento humano | C127: 20 | D127: Realizar actividades de monitoreo y documentación del control de la operación del manejo, expedición y compra de tiquetes aéreos realizados con el contratista y de la legalización de comisiones de servicio durante el periodo. | E127: Plan Estratégico de Talento Humano | F127: N/A | G127: N/A | H127: 100% de las actividades de monitoreo y control de operación tiquetes y legalización comisiones de servicio | I127: Cantidad de actividades realizadas / (n*Cantidad de actividades programadas) | J127: 1 | K127: * Informe ejecución de actividades-SGFL01 * Base de datos operación tiquetes aéreos *Indicador de Gestión PT24-Tablero de Control | L127: Archivo de gestióndocumental del área de viáticos | M127: =1/6 -> 0.1666666667 | N127: =1/6 -> 0.1666666667 | O127: 0.1666666667 | P127: 0.1666666667 | Q127: 0.1666666667 | R127: 0.1666666667 | S127: Gerente del Talento Humano Encargado(a) Área de Viáticos | T127: 2021-01-01 | U127: 2021-12-30 | Z127: Plan de Gestión Ambiental
A128: Gestión del Talento Humano | B128: Permanencia del talento humano | C128: 21 | D128: Realizar la digitalización y cargue en el sistema del 20% de las Historias Laborales pendientes por digitalizar de los Servidores activos de la Planta de Personal que laboran en Sede Central | E128: Plan Estratégico de Talento Humano | F128: N/A | G128: N/A | H128: 100% de las Hojas de Control Generadas | I128: Cantidad de hojas de control generadas / (n* Cantidad de hojas de control programadas) | J128: 1 | K128: Certificación expedida por el Coordinador del Grupo de Registro y Control del total de hojas de control generadas | L128: SharePoint y/o Archivo de Gestión documental de la Coordinación de Registro y Control | M128: =1/6 -> 0.1666666667 | N128: 0.1666666667 | O128: 0.1666666667 | P128: 0.1666666667 | Q128: 0.1666666667 | R128: 0.1666666667 | S128: Gerente del Talento Humano Coordinación Grupo Registro y Control | T128: 2021-01-01 | U128: 2021-12-31
A129: Gestión del Talento Humano | B129: Permanencia del talento humano | C129: 22 | D129: Diligenciar el formato único de inventario documental de las Historias Laborales de Servidores Supernumerarios, vinculados en el 2020 | E129: Plan Estratégico de Talento Humano | F129: N/A | G129: N/A | H129: 100% de Formatos Únicos de Inventario Documental Diligenciados | I129: Cantidad de Formatos Únicos de Inventario Documental - FUID diligenciados / (n* Cantidad de Formatos Únicos de Inventario Documental-FUID Programados) | J129: 1 | K129: Certificación expedida por el Coordinador del Grupo de Registro y Control del total de Formatos Únicos de Inventario Documental diligenciados. | L129: SharePoint y/o Archivo de Gestión documental de la Coordinación de Registro y Control | O129: =100/100 -> 1 | S129: Gerente del Talento Humano Coordinación Grupo Registro y Control | T129: 2021-05-01 | U129: 2021-06-30
A130: Gestión del Talento Humano | B130: Permanencia del talento humano | C130: 23 | D130: Realizar la transferencia al archivo central del inventario documental. | E130: Plan Estratégico de Talento Humano | F130: N/A | G130: N/A | H130: 100% de las Actas de entrega de Trasferencia primaria realizadas | I130: Cantidad de Actas e Historias Laborales entregadas al archivo central / ( n* Cantidad de Actas e Historias Laborales Programadas a Entregar al archivo central) | J130: 1 | K130: Acta de entrega Trasferencia primaria. | L130: SharePoint y/o Archivo de Gestión documental de la Coordinación de Registro y Control | O130: =100/100 -> 1 | S130: Gerente del Talento Humano Coordinación Grupo Registro y Control | T130: 2021-05-01 | U130: 2021-06-30
A131: Gestión del Talento Humano | B131: Permanencia del talento humano | C131: 24 | D131: Llevar a cabo las actividades de monitoreo sobre la digitalización, FUID y transferencia por parte del nivel desconcentrado en el periodo. | E131: Plan Estratégico de Talento Humano | F131: N/A | G131: N/A | H131: 100% de las Actividades de monitoreo realizadas | I131: Cantidad de actividades realizadas / (n*Cantidad de actividades programadas) | J131: 1 | K131: Certificación de las actividades de monitoreo, expedida por el Coordinador de Registro y Control | L131: SharePoint y/o Archivo de Gestión documental de la Coordinación de Registro y Control | M131: =1/6 -> 0.1666666667 | N131: 0.1666666667 | O131: 0.1666666667 | P131: 0.1666666667 | Q131: 0.1666666667 | R131: 0.1666666667 | S131: Gerente del Talento Humano Nivel Central: Coordinador Grupo de Registro y Control Nivel Desconcentrado: Delegados Departamentales, Registradores Distritales y Responsable del Talento Humano | T131: 2021-01-01 | U131: 2021-12-31
A132: Gestión del Talento Humano | B132: Permanencia del talento humano | C132: 25 | D132: Realizar una campaña de sensibilización dirigida a fomentar la cultura ambiental con el uso razonable de los recursos naturales entre los servidores de la entidad. | E132: Plan de Gestión Ambiental | F132: Objetivo_5._Hacer_de_la_RNEC_una_entidad_respetuosa_del_medio_ambiente_que_contribuya_a_la_mitigación_del_cambio_climático | G132: 4. Fomentar la cultura y ciudadanía ambiental, así como el uso razonable de los recursos naturales entre servidores y usuarios | H132: Campaña de sensibilización para el fomento de la cultura ambiental realizada al 100% | I132: Cantidad de campañas realizadas /(n* Cantidad de campañas programadas) | J132: 1 | K132: Piezas gráficas | L132: Pagina web y/o Intranet | N132: =100/100 -> 1 | S132: Gerente del Talento Humano Coordinador (a) Grupo Desarrollo Integral | T132: 2021-03-01 | U132: 2021-04-30
A133: Gestión Tecnológica de la Información y las Comunicaciones | B133: Soporte técnico | C133: 1 | D133: Atender los requerimientos e incidentes asociados a los servicios de software. | E133: Plan Estratégico | F133: Objetivo_2._Optimizar_y_modernizar_los_procesos_misionales_y_de_apoyo_de_la_entidad_gracias_al_uso_de_nuevas_tecnologías | G133: 1. Virtualizar aceleradamente los procesos de gestión, fortalecer el teletrabajo y exibilizar los horarios para elevar la productividad de los servidores e impactar positivamente el medio ambiente | H133: Atender el 100% de los requerimientos de e incidentes asociados a los servicios de software | I133: Cantidad de requerimientos atendidos /(n)*Cantidad de requerimientos solicitados | J133: 1 | K133: 12 Reportes Herramienta mesa de ayuda | L133: http://regisredsp:8080/sites/CENTRAL/CI/Soportes/Paginas/Soportes.aspx | M133: 0.1666666667 | N133: 0.1666666667 | O133: 0.1666666667 | P133: 0.1666666667 | Q133: 0.1666666667 | R133: 0.1666666667 | S133: Alejandro Alberto Campo Valero. | T133: 2021-01-01 | U133: 2021-12-31
A134: Gestión Tecnológica de la Información y las Comunicaciones | B134: Soporte técnico | C134: 2 | D134: Atender los requerimientos presentados por usuarios para la prestación del servicio ANI-PMT | E134: Plan Estratégico | F134: Objetivo_2._Optimizar_y_modernizar_los_procesos_misionales_y_de_apoyo_de_la_entidad_gracias_al_uso_de_nuevas_tecnologías | G134: 1. Virtualizar aceleradamente los procesos de gestión, fortalecer el teletrabajo y exibilizar los horarios para elevar la productividad de los servidores e impactar positivamente el medio ambiente | H134: Atender el 100% de los requerimientos presentados por usuarios para la prestación del servicio ANI-PMT | I134: Cantidad de requerimientos atendidos/(n)*Requerimientos solicitados. | J134: 1 | K134: 12 Reportes Herramienta mesa de ayuda | L134: http://regisredsp:8080/sites/CENTRAL/CI/Soportes/Paginas/Soportes.aspx | M134: 0.1666666667 | N134: 0.1666666667 | O134: 0.1666666667 | P134: 0.1666666667 | Q134: 0.1666666667 | R134: 0.1666666667 | S134: Alejandro Alberto Campo Valero. | T134: 2021-01-01 | U134: 2021-12-31
A135: Gestión Tecnológica de la Información y las Comunicaciones | B135: Soporte técnico | C135: 3 | D135: Atender los requerimientos ofimáticos y de hardware recibidos a través de línea de atención y correo electrónico de la RNEC. | E135: Plan Estratégico | F135: Objetivo_2._Optimizar_y_modernizar_los_procesos_misionales_y_de_apoyo_de_la_entidad_gracias_al_uso_de_nuevas_tecnologías | G135: 1. Virtualizar aceleradamente los procesos de gestión, fortalecer el teletrabajo y exibilizar los horarios para elevar la productividad de los servidores e impactar positivamente el medio ambiente | H135: Atender el 100% de los los requerimientos ofimáticos y de hardware recibidos a través de línea de atención y correo electrónico de la RNEC. | I135: Cantidad de requerimientos atendidos/(n)*Requerimientos solicitados. | J135: 1 | K135: 12 Reportes Herramienta mesa de ayuda | L135: http://regisredsp:8080/sites/CENTRAL/CI/Soportes/Paginas/Soportes.aspx | M135: 0.1666666667 | N135: 0.1666666667 | O135: 0.1666666667 | P135: 0.1666666667 | Q135: 0.1666666667 | R135: 0.1666666667 | S135: Alejandro Alberto Campo Valero. | T135: 2021-01-01 | U135: 2021-12-31
A136: Gestión Tecnológica de la Información y las Comunicaciones | B136: Soporte técnico | C136: 4 | D136: Seguimiento al cumplimiento de los ANS establecidos para la mesa de ayuda del aliado tecnológico. | E136: Plan Estratégico | F136: Objetivo_2._Optimizar_y_modernizar_los_procesos_misionales_y_de_apoyo_de_la_entidad_gracias_al_uso_de_nuevas_tecnologías | G136: 4. Automatizar procesos y virtualizar servicios | H136: Realizar el 100% del Seguimiento al cumplimiento de los ANS establecidos para la mesa de ayuda del aliado tecnológico. | I136: Cantidad de Requerimientos atendidos dentro de los ANS /(n)* Cantidad Requerimientos solicitados | J136: 1 | K136: 12 Reportes Herramienta De Gestión. | L136: http://regisredsp:8080/sites/CENTRAL/CI/Soportes/Paginas/Soportes.aspx | M136: 0.1666666667 | N136: 0.1666666667 | O136: 0.1666666667 | P136: 0.1666666667 | Q136: 0.1666666667 | R136: 0.1666666667 | S136: Alejandro Alberto Campo Valero. | T136: 2021-01-01 | U136: 2021-12-31
A137: Gestión Tecnológica de la Información y las Comunicaciones | B137: Soporte técnico | C137: 5 | D137: Monitoreo y seguimiento a la disponibilidad de los canales de comunicación de la entidad. | E137: Plan Estratégico | F137: Objetivo_2._Optimizar_y_modernizar_los_procesos_misionales_y_de_apoyo_de_la_entidad_gracias_al_uso_de_nuevas_tecnologías | G137: 4. Automatizar procesos y virtualizar servicios | H137: Realizar el 100% de Monitoreo y seguimiento a la disponibilidad de los canales de comunicación de la entidad. | I137: Cantidad de Informes de Monitoreo y Seguimiento reportados / n* cantidad de informes de monitoreo y seguimiento programados. | J137: 1 | K137: 12 Reportes de Monitoreo y Seguimiento presentados. | L137: http://regisredsp:8080/sites/CENTRAL/CI/Soportes/Paginas/Soportes.aspx | M137: 0.1666666667 | N137: 0.1666666667 | O137: 0.1666666667 | P137: 0.1666666667 | Q137: 0.1666666667 | R137: 0.1666666667 | S137: Alejandro Alberto Campo Valero. | T137: 2021-01-01 | U137: 2021-12-31
A138: Gestión Tecnológica de la Información y las Comunicaciones | B138: Gestión de software | C138: 1 | D138: Entregar el desarrollo o modificaciones a los software atendidos. | E138: Plan Estratégico | F138: Objetivo_2._Optimizar_y_modernizar_los_procesos_misionales_y_de_apoyo_de_la_entidad_gracias_al_uso_de_nuevas_tecnologías | G138: 3. Portabilizar sistemas y herramientas informáticas mediante la creación de nuevas aplicaciones | H138: Entregar el 100% de los desarrollos atendidos. | I138: Cantidad de desarrollos y modificaciones atendidas /n* cantidad de de desarrollos y modificaciones recibidas. | J138: 1 | K138: Formato de entrega de Desarrollo. | L138: http://regisredsp:8080/sites/CENTRAL/CI/Soportes/Paginas/Soportes.aspx | O138: 0.5 | R138: 0.5 | S138: Alejandro Alberto Campo Valero. | T138: 2021-05-01 | U138: 2021-12-31
A139: Gestión Tecnológica de la Información y las Comunicaciones | B139: Gestión de software | C139: 2 | D139: Mantener operativo y actualizado los aplicativos de apoyo administrativos y misionales de acuerdo a los solicitudes que se presenten. | E139: Plan Estratégico | F139: Objetivo_2._Optimizar_y_modernizar_los_procesos_misionales_y_de_apoyo_de_la_entidad_gracias_al_uso_de_nuevas_tecnologías | G139: 4. Automatizar procesos y virtualizar servicios | H139: Mantener operativo y actualizado el 100% los aplicativos de apoyo administrativos. | I139: Cantidad de Reporte de operación de aplicativos realizados / n* cantidad de informes de Reporte de operación de aplicativos programados. | J139: 1 | K139: 12 Reporte de operación de aplicativos. Estadisticas de solicitudes aplicativos misionales. | L139: http://regisredsp:8080/sites/CENTRAL/CI/Soportes/Paginas/Soportes.aspx | M139: 0.1666666667 | N139: 0.1666666667 | O139: 0.1666666667 | P139: 0.1666666667 | Q139: 0.1666666667 | R139: 0.1666666667 | S139: Alejandro Alberto Campo Valero. | T139: 2021-01-01 | U139: 2021-12-31
A140: Gestión Tecnológica de la Información y las Comunicaciones | B140: Gestión de software | C140: 3 | D140: Realizar las actualizaciones y ajustes al software y procesos necesarios para las elecciones atipicas, nuevas o complementarias convocadas. | E140: Plan Estratégico | F140: Objetivo_2._Optimizar_y_modernizar_los_procesos_misionales_y_de_apoyo_de_la_entidad_gracias_al_uso_de_nuevas_tecnologías | G140: 3. Portabilizar sistemas y herramientas informáticas mediante la creación de nuevas aplicaciones | H140: Realizar el 100% de las actualizaciones y ajustes al software y procesos necesarios para las elecciones atipicas, nuevas o complementarias convocadas. | I140: Cantidad de planes de trabajo realizados / n* cantidad de planes de trabajo programados. | J140: 1 | K140: Plan de trabajo para elecciones. | L140: http://regisredsp:8080/sites/CENTRAL/CI/Soportes/Paginas/Soportes.aspx | M140: 0.1666666667 | N140: 0.1666666667 | O140: 0.1666666667 | P140: 0.1666666667 | Q140: 0.1666666667 | R140: 0.1666666667 | S140: Alejandro Alberto Campo Valero. | T140: 2021-01-01 | U140: 2021-12-31
A141: Gestión Tecnológica de la Información y las Comunicaciones | B141: Gestión de software | C141: 4 | D141: Apoyo técnico a la supervisión de los contratos que se suscriban para la ejecución de los mantenimientos y actualizaciones de software adquirido a terceros | E141: Plan Estratégico | F141: Objetivo_2._Optimizar_y_modernizar_los_procesos_misionales_y_de_apoyo_de_la_entidad_gracias_al_uso_de_nuevas_tecnologías | G141: 4. Automatizar procesos y virtualizar servicios | H141: Apoyo técnico a la supervisión del 100 % de los contratos que se suscriban para la ejecución de los mantenimientos y actualizaciones de software adquirido a terceros | I141: Cantidad de Informes de supervisión reportados / n* cantidad de informes de supervisión programados. | J141: 1 | K141: 12 Informes de supervisión realizados. | L141: http://regisredsp:8080/sites/CENTRAL/CI/Soportes/Paginas/Soportes.aspx | Q141: 50 | R141: 50 | S141: Alejandro Alberto Campo Valero. | T141: 2021-10-01 | U141: 2021-12-31
A142: Gestión Tecnológica de la Información y las Comunicaciones | B142: Gestión de infraestructura tecnológica | C142: 1 | D142: Mantener la disponibilidad y el soporte de los servicios de infraestructura tecnológica que brinda la entidad para su permanente operación. | E142: Plan Estratégico | F142: Objetivo_2._Optimizar_y_modernizar_los_procesos_misionales_y_de_apoyo_de_la_entidad_gracias_al_uso_de_nuevas_tecnologías | G142: 4. Automatizar procesos y virtualizar servicios | H142: Mantener el 100% de la disponibilidad y el soporte de los servicios de infraestructura tecnológica que brinda la entidad para su permanente operación. | I142: Cantidad de Informes de operación reportados / n* cantidad de informes de operación programados | J142: 1 | K142: 12 Reportes de operación Presentados. | L142: http://regisredsp:8080/sites/CENTRAL/CI/Soportes/Paginas/Soportes.aspx | M142: 0.1666666667 | N142: 0.1666666667 | O142: 0.1666666667 | P142: 0.1666666667 | Q142: 0.1666666667 | R142: 0.1666666667 | S142: Alejandro Alberto Campo Valero. | T142: 2021-01-01 | U142: 2021-12-31
A143: Gestión Tecnológica de la Información y las Comunicaciones | B143: Gestión de infraestructura tecnológica | C143: 2 | D143: Gestionar y programar mantenimientos para todos los sistemas y dispositivos que integran la infraestructura tecnológica de la entidad. | E143: Plan Estratégico | F143: Objetivo_2._Optimizar_y_modernizar_los_procesos_misionales_y_de_apoyo_de_la_entidad_gracias_al_uso_de_nuevas_tecnologías | G143: 4. Automatizar procesos y virtualizar servicios | H143: Realizar el 100 % de los mantenimientos programados para todos los sistemas y dispositivos que integran la infraestructura tecnológica de la entidad. | I143: Cantidad de Informes de mantenimiento reportados / n* cantidad de informes de mantenimiento programados. | J143: 1 | K143: 10 Reportes de mantenimientos realizados. | L143: http://regisredsp:8080/sites/CENTRAL/CI/Soportes/Paginas/Soportes.aspx | N143: 0.2 | O143: 0.2 | P143: 0.2 | Q143: 0.2 | R143: 0.2 | S143: Alejandro Alberto Campo Valero. | T143: 2021-03-01 | U143: 2021-12-31
A144: Gestión Tecnológica de la Información y las Comunicaciones | B144: Gestión de infraestructura tecnológica | C144: 3 | D144: Realizar copias de respaldo periódicas de conformidad con los requerimientos, así como su almacenamiento y custodia a través de servicios de terceros. | E144: Plan Estratégico | F144: Objetivo_2._Optimizar_y_modernizar_los_procesos_misionales_y_de_apoyo_de_la_entidad_gracias_al_uso_de_nuevas_tecnologías | G144: 4. Automatizar procesos y virtualizar servicios | H144: Realizar el 100% de las copias de respaldo periódicas de conformidad con los requerimientos, así como su almacenamiento y custodia a través de servicios de terceros. | I144: Cantidad de Reportes de información respaldada / n* cantidad de reportes de información respaldada programadas. | J144: 1 | K144: 12 Reportes de información respaldada. | L144: http://regisredsp:8080/sites/CENTRAL/CI/Soportes/Paginas/Soportes.aspx | M144: 0.1666666667 | N144: 0.1666666667 | O144: 0.1666666667 | P144: 0.1666666667 | Q144: 0.1666666667 | R144: 0.1666666667 | S144: Alejandro Alberto Campo Valero. | T144: 2021-01-01 | U144: 2021-12-31
A145: Gestión Tecnológica de la Información y las Comunicaciones | B145: Gestión de infraestructura tecnológica | C145: 4 | D145: Crear y gestionar los servidores virtuales de acuerdo a los requerimientos presentados. | E145: Plan Estratégico | F145: Objetivo_2._Optimizar_y_modernizar_los_procesos_misionales_y_de_apoyo_de_la_entidad_gracias_al_uso_de_nuevas_tecnologías | G145: 4. Automatizar procesos y virtualizar servicios | H145: Crear y gestionar el 100% los servidores virtuales de acuerdo a los requerimientos presentados. | I145: Cantidad de servidores creados y/o gestionados/(n)*Cantidad de solicitudes de creación y/o gestión de servidores | J145: 1 | K145: 12 Reportes de cantidad de servidores creados y gestionados | L145: http://regisredsp:8080/sites/CENTRAL/CI/Soportes/Paginas/Soportes.aspx | M145: 0.1666666667 | N145: 0.1666666667 | O145: 0.1666666667 | P145: 0.1666666667 | Q145: 0.1666666667 | R145: 0.1666666667 | S145: Alejandro Alberto Campo Valero. | T145: 2021-01-01 | U145: 2021-12-31
A146: Gestión Tecnológica de la Información y las Comunicaciones | B146: Gestión de infraestructura tecnológica | C146: 5 | D146: Elaboración de los estudios previos de acuerdo a las necesidades que se presenten. | E146: Plan Estratégico | F146: Objetivo_2._Optimizar_y_modernizar_los_procesos_misionales_y_de_apoyo_de_la_entidad_gracias_al_uso_de_nuevas_tecnologías | G146: 4. Automatizar procesos y virtualizar servicios | H146: Presentar el 100% de los Estudios previos Solicitados. | I146: Cantidad de estudios previos realizados / n* cantidad de estudios previos programados. | J146: 1 | K146: Estudios Previos elaborados | L146: http://regisredsp:8080/sites/CENTRAL/CI/Soportes/Paginas/Soportes.aspx | O146: 0.5 | R146: 0.5 | S146: Alejandro Alberto Campo Valero. | T146: 2021-05-01 | U146: 2021-12-31
A147: Gestión Jurídica | B147: Representación judicial | C147: 1 | D147: Ejercer apropiadamente la defensa de la Entidad en los procesos Judiciales, administrativos, conciliaciones extrajudiciales, y demás que se adelanten. Así mismo, se realiza revisión a todos los procesos judiciales cuya competencia esté asignada a las Delegaciones Departamentales y Registraduría Distrital de conformidad con el reporte de procesos judiciales que realizan mensualmente, con el fin de consolidar la información de provisión contable. De igual manera, se administra el aplicativo e-Kogui y se ejerce control y revisión de que los apoderados a nivel nacional realicen de forma oportuna las actualizaciones de calificación del riesgo y provisión. | E147: N/A | H147: Ejercer la defensa técnica de la RNEC en el 100% de los procesos Judiciales, administrativos, conciliaciones extrajudiciales, y demás que se adelanten durante la vigencia | I147: Cantidad de informes de seguimeinto realizados/n*(Cantiddad de informes de seguimientos programados). | J147: 1 | K147: Informes de seguimiento de los procesos judiciales | L147: Archivo del Grupo Defensa Judicial | M147: =1/6 -> 0.1666666667 | N147: =1/6 -> 0.1666666667 | O147: 0.1666666667 | P147: 0.1666666667 | Q147: 0.1666666667 | R147: 0.1666666667 | S147: Luis Francisco Gaitán Puentes | T147: 2021-01-01 | U147: 2021-12-31
A148: Gestión Jurídica | B148: Representación judicial | C148: 2 | D148: Dar respuesta clara, oportuna y de fondo a las diferentes consultas radicadas ante la Oficina Jurídica, de conformidad con los imperativos normativos que regulan cada caso en concreto. Asimismo, prestar asesoría y apoyo al nivel desconcentrado para efectos de ejercer la defensa dentro de los procesos judiciales y procedimientos administrativos, así como velar y atender otros temas de interés que puedan afectar a la Entidad. | E148: N/A | H148: Responder el 100% de las consultas radicadas ante la Oficina Jurídica | I148: Cantidad de conceptos emitidos/(n)*Cantidad de conceptos requeridos durante el periodo. | J148: 1 | K148: Conceptos emitidos | L148: Archivo de la Oficina Jurídica | M148: =1/6 -> 0.1666666667 | N148: 0.1666666667 | O148: 0.1666666667 | P148: 0.1666666667 | Q148: 0.1666666667 | R148: 0.1666666667 | S148: Luis Francisco Gaitán Puentes | T148: 2021-01-01 | U148: 2021-12-31
A149: Gestión Jurídica | B149: Representación judicial | C149: 3 | D149: Sustanciar resoluciones de competencia del Señor Registrador Nacional, como: segundas instancias disciplinarios, segundas instancias imposición sanciones a jurados de votación del Distrito, trámites Ley moralidad administrativa etc. Igualmente se realiza revisión de todos los Actos Administrativos que son suscritos por el señor Registrador Nacional del Estado Civil. | E149: N/A | H149: Sustanciar el 100% de las resoluciones programadas durente la vigencia | I149: Cantidad de resoluciones sustanciadad en el periodo/ n*(Cantidiad de resoluciones a sustanciar programadas) | J149: 1 | K149: Actos administrativos expedidos | L149: Archivo del Grupo Defensa Judicial | M149: 0.1666666667 | N149: 0.1666666667 | O149: 0.1666666667 | P149: 0.1666666667 | Q149: 0.1666666667 | R149: 0.1666666667 | S149: Luis Francisco Gaitán Puentes | T149: 2021-01-01 | U149: 2021-12-31
A150: Gestión Jurídica | B150: Representación judicial | C150: 4 | D150: Seguir e implementar Políticas de Prevención del Daño Antijurídico 2020- septiembre de 2021. | E150: N/A | H150: Realizar seguimiento al 100% de las acciones de Prevención del Daño antijurídico implimentadas durante la vigencia | I150: Cantidad de actividades de Prevención del Daño antijurídico realizadas / n*Cantidad de actividades de Prevención del Daño antijurídico programadas | J150: 1 | K150: Informe implementación de actividades de Prevención del Daño antijurídico realizadas | L150: Archivo de la Secretaria Técnica del Comité de Conciliación y Defensa Judicial | N150: =1/3 -> 0.3333333333 | P150: =1/3 -> 0.3333333333 | R150: =1/3 -> 0.3333333333 | S150: Luis Francisco Gaitan Puentes | T150: 2021-01-01 | U150: 2021-12-31
A151: Gestión Jurídica | B151: Representación judicial | C151: 5 | D151: Desarrollar las Políticas de Prevención del Daño Antijurídico 2022-2023 | E151: N/A | H151: Formular en un 100% la politica de prevención del daño antijurídico 2022-2023 | I151: Cantidad de actividades realizadas para la formulación de laPolítica de Prevención de Daño Antijurídico 2022-2023 / n*Cantidad de actividades de Prevención del Daño antijurídico programadas | J151: 1 | K151: Reporte cumplimiento actividades del cronograma | L151: Archivo de la Secretaria Técnica del Comité de Conciliación y Defensa Judicial | M151: 0.1666666667 | N151: 0.1666666667 | O151: 0.1666666667 | P151: 0.1666666667 | Q151: 0.1666666667 | R151: 0.1666666667 | S151: Luis Francisco Gaitan Puentes | T151: 2021-01-01 | U151: 2021-12-31
A152: Gestión Jurídica | B152: Representación judicial | C152: 6 | D152: Dar respuesta oportuna a las acciones de tutela, garantizando la defensa de los intereses de la Entidad. | E152: N/A | H152: Dar respuesta en un 100% a las acciones de tutelas allegadas | I152: Cantidad de tutelas tramitados / ((n)*Cantidad de tutelas recibidos en el periodo) | J152: 1 | K152: Tutelas respondidas | L152: Archivo Grupo Tutelas | M152: 0.1666666667 | N152: 0.1666666667 | O152: 0.1666666667 | P152: 0.1666666667 | Q152: 0.1666666667 | R152: 0.1666666667 | S152: Luis Francisco Gaitán Puentes | T152: 2021-01-01 | U152: 2021-12-31
A153: Gestión Jurídica | B153: Representación judicial | C153: 7 | D153: Proyectar las impugnaciones contra los fallos adversos a la entidad cuando haya lugar. | E153: N/A | H153: Tramitar en un 100% las impugnaciones a que hay lugar | I153: Cantidad de impugnaciones tramitados / ((n)*Cantidad de fallos en contra de la RNEC recibidos en el periodo) | J153: 1 | K153: Impugnaciones realizadas | L153: Archivo Grupo Tutelas | M153: 0.1666666667 | N153: 0.1666666667 | O153: 0.1666666667 | P153: 0.1666666667 | Q153: 0.1666666667 | R153: 0.1666666667 | S153: Luis Francisco Gaitán Puentes | T153: 2021-01-01 | U153: 2021-12-31
A154: Gestión Jurídica | B154: Representación judicial | C154: 8 | D154: Realizar seguimiento a cumplimiento de fallos de tutela, evitando que se promuevan incidentes de desacato, por omisión de la Entidad. | E154: N/A | H154: Seguimiento en un 100% a los fallos de tutela | I154: Cantidad de fallos tramitados / ((n)*Cantidad de fallos recibidos en el periodo) | J154: 1 | K154: Fallos de las acciones de tutela | L154: Archivo Grupo Tutelas | M154: 0.1666666667 | N154: 0.1666666667 | O154: 0.1666666667 | P154: 0.1666666667 | Q154: 0.1666666667 | R154: 0.1666666667 | S154: Luis Francisco Gaitán Puentes | T154: 2021-01-01 | U154: 2021-12-31
A155: Gestión Jurídica | B155: Representación judicial | C155: 9 | D155: Realizar vigilancia, seguimiento y control de los procesos sancionatorios y de cobro coactivo a través de los aplicativos. | E155: N/A | H155: Realizar el 100% de las actividades de seguimientos a los procesos sancionatorios y de cobro coactivo | I155: Cantidad de seguimientos realizados en el periodo / (n)* cantidad de seguimientos a realizar en el periodo | J155: 1 | K155: Certificación expedida por coordinación de cobro coactivo | L155: Archivo Grupo Cobro Coactivo | M155: 0.1666666667 | N155: 0.1666666667 | O155: 0.1666666667 | P155: 0.1666666667 | Q155: 0.1666666667 | R155: 0.1666666667 | S155: Luis Francisco Gaitán Puentes | T155: 2021-01-01 | U155: 2021-12-31
A156: Gestión Jurídica | B156: Representación judicial | C156: 10 | D156: Impulsar los procesos de Cobros Coactivos, generando un efectivo recaudo. | E156: N/A | H156: Recaudo efectivo en un 100% de los procesos de cobro coactivo | I156: Cantidad de procesos impulsados / ((n)*Cantidad de procesos programados en el periodos) | J156: 1 | K156: Muestreo de un proceso de cobro coactivo | L156: Archivo Grupo Cobro Coactivo | M156: 0.1666666667 | N156: 0.1666666667 | O156: 0.1666666667 | P156: 0.1666666667 | Q156: 0.1666666667 | R156: 0.1666666667 | S156: Luis Francisco Gaitán Puentes | T156: 2021-01-01 | U156: 2021-12-31
A157: Gestión Jurídica | B157: Representación judicial | C157: 11 | D157: Realizar supervisión del Contrato Interadministrativo Marco de Compraventa de Cartera CM-041-2017 y de sus actas de incorporación. | E157: N/A | H157: Supervisar el 100% de las obligaciones | I157: (Cantidad de actividades supervisadas en el periodo) / ((n)*Cantidad de actividades programadas para supervisar en el periodo) | J157: 1 | K157: Certificación expedida por coordinación de cobro coactivo | L157: Archivo Grupo Cobro Coactivo | M157: 0.1666666667 | N157: 0.1666666667 | O157: 0.1666666667 | P157: 0.1666666667 | Q157: 0.1666666667 | R157: 0.1666666667 | S157: Luis Francisco Gaitán Puentes | T157: 2021-01-01 | U157: 2021-12-31
A158: Gestión Jurídica | B158: Representación judicial | C158: 12 | D158: Reportar las novedades y conciliaciones de los ingresos reportados por las diferentes Entidades Bancarias de los Procesos de Cobro Coactivo a la Dirección Financiera de manera mensual. | E158: N/A | H158: Reportar el 100% de las Novedades y conciliaciones de los procesos de los cobros coactivos | I158: Cantidad de reportes remitidos en el periodo / (n* Cantidad de reportes programados en el periodo) | J158: 1 | K158: Reportes emitidos | L158: Archivo Grupo Cobro Coactivo | M158: 0.1666666667 | N158: 0.1666666667 | O158: 0.1666666667 | P158: 0.1666666667 | Q158: 0.1666666667 | R158: 0.1666666667 | S158: Luis Francisco Gaitán Puentes | T158: 2021-01-01 | U158: 2021-12-31
A159: Gestión Jurídica | B159: Gestión contractual | C159: 1 | D159: Atender en el marco de sus competencias las solicitudes (Minutas, modificaciones y liquidaciones suscritas)relativas a la contratación administrativa de la RNEC y el FRR. | E159: Plan Estratégico | F159: Objetivo_4._Priorizar_el_servicio_al_usuario_como_eje_central_para_la_creación_de_valor_público | H159: Atender el 100% de las solicitudes relavivas a contratos, modificaciones contractuales, y liquidaciones | I159: (Cantidad de solicitudes atendidas en el periodo) / ((n)*Cantidad de solicitudes recibidas en el periodo) | J159: 1 | K159: Certificación expedida por coordinación de contratos | L159: Archivo Grupo Cobro Coactivo | M159: 0.1666666667 | N159: 0.1666666667 | O159: 0.1666666667 | P159: 0.1666666667 | Q159: 0.1666666667 | R159: 0.1666666667 | S159: Luis Francisco Gaitán Puentes | T159: 2021-01-01 | U159: 2021-12-31
A160: Gestión Jurídica | B160: Gestión contractual | C160: 2 | D160: Atender las posibles solicitudes relacionadas con imposiciones de multas, sanciones y declaratorias de incumplimiento que se remitan y sean competencia de la oficina jurídica. | E160: N/A | H160: Atender el 100% de la solicitudes relativas a imposisiones de multas, sanciones o declaratorias de incumplimiento | I160: (Cantidad de solicitudes atendidas en el periodo) / ((n)*Cantidad de solicitudes recibidas en el periodo) | J160: 1 | K160: Acto administrativo si se presenta | L160: Archivo Grupo Cobro Coactivo | M160: 0.1666666667 | N160: 0.1666666667 | O160: 0.1666666667 | P160: 0.1666666667 | Q160: 0.1666666667 | R160: 0.1666666667 | S160: Luis Francisco Gaitán Puentes | T160: 2021-01-01 | U160: 2021-12-31
A161: Gestión y Control Disciplinario | B161: Actuaciones disciplinarias | C161: 1 | D161: Atender quejas recibidas de los procesos disciplinarios en curso | E161: N/A | F161: Objetivo_4._Priorizar_el_servicio_al_usuario_como_eje_central_para_la_creación_de_valor_público | G161: 1. Reestructurar orgánica y funcionalmente la RNEC en los niveles central y desconcentrado | H161: Autos de trámite | I161: (Cantidad de quejas atendidas durante el periodo)/(n*Cantidad de quejas recibidas durante el perido) | J161: 1 | K161: Certificación de trámite en razón a la reserva de los procesos | L161: Archivo de gestión de la oficina de control disciplinario - Expedientes Disciplinarios - Autos Inhibitorios | M161: =1/6 -> 0.1666666667 | N161: =1/6 -> 0.1666666667 | O161: =1/6 -> 0.1666666667 | P161: 0.1666666667 | Q161: 0.1666666667 | R161: 0.1666666667 | S161: Leyla Lizarazo Valencia | T161: 2021-01-01 | U161: 2021-12-31
A162: Gestión y Control Disciplinario | B162: Actuaciones disciplinarias | C162: 2 | D162: Llevar procesos en curso de la etapa de indagación preliminar a la etapa de investigación disciplinaria | E162: N/A | F162: Objetivo_4._Priorizar_el_servicio_al_usuario_como_eje_central_para_la_creación_de_valor_público | H162: Autos de trámite | I162: (Cantidad de procesos llevados a una siguiente etapa durante el periodo)/(n*Cantidad procesos en curso en etapa de indagación preliminar) | J162: 1 | K162: Certificación de trámite en razón a la reserva de los procesos | L162: Expedientes Disciplinarios | M162: =1/6 -> 0.1666666667 | N162: 0.1666666667 | O162: 0.1666666667 | P162: 0.1666666667 | Q162: 0.1666666667 | R162: 0.1666666667 | S162: Leyla Lizarazo Valencia | T162: 2021-01-01 | U162: 2021-12-31
A163: Gestión y Control Disciplinario | B163: Actuaciones disciplinarias | C163: 3 | D163: Llevar procesos en curso de la etapa de investigación disciplinario a la etapa de cierre | E163: N/A | F163: Objetivo_4._Priorizar_el_servicio_al_usuario_como_eje_central_para_la_creación_de_valor_público | H163: Autos de trámite | I163: (Cantidad de procesos llevados a una siguiente etapa durante el periodo)/(n*Cantidad de procesos en curso en etapa de indagación disciplinaria) | J163: 1 | K163: Certificación de trámite en razón a la reserva de los procesos | L163: Expedientes Disciplinarios | M163: 0.1666666667 | N163: 0.1666666667 | O163: 0.1666666667 | P163: 0.1666666667 | Q163: 0.1666666667 | R163: 0.1666666667 | S163: Leyla Lizarazo Valencia | T163: 2021-01-01 | U163: 2021-12-31
A164: Gestión y Control Disciplinario | B164: Actuaciones disciplinarias | C164: 4 | D164: Llevar procesos en curso de la etapa de cierre a la etapa de formulación de cargos | E164: N/A | F164: Objetivo_4._Priorizar_el_servicio_al_usuario_como_eje_central_para_la_creación_de_valor_público | H164: Autos de fondo | I164: (Cantidad de procesos llevados a una siguiente etapa durante el periodo)/(n*Cantidad de procesos en curso en etapa de cierre) | J164: 1 | K164: Certificación de trámite en razón a la reserva de los procesos | L164: Expedientes Disciplinarios | M164: 0.1666666667 | N164: 0.1666666667 | O164: 0.1666666667 | P164: 0.1666666667 | Q164: 0.1666666667 | R164: 0.1666666667 | S164: Leyla Lizarazo Valencia | T164: 2021-01-01 | U164: 2021-12-31
A165: Gestión y Control Disciplinario | B165: Actuaciones disciplinarias | C165: 5 | D165: Llevar procesos en curso de la etapa de formulación de cargos a la etapa de alegatos | E165: N/A | F165: Objetivo_4._Priorizar_el_servicio_al_usuario_como_eje_central_para_la_creación_de_valor_público | H165: Autos de trámite | I165: (Cantidad de procesos llevados a una siguiente etapa durante el periodo)/(n*Cantidad de procesos en curso en etapa de fromulación de cargos) | J165: 1 | K165: Certificación de trámite | L165: Expedientes Disciplinarios | M165: 0.1666666667 | N165: 0.1666666667 | O165: 0.1666666667 | P165: 0.1666666667 | Q165: 0.1666666667 | R165: 0.1666666667 | S165: Leyla Lizarazo Valencia | T165: 2021-01-01 | U165: 2021-12-31
A166: Gestión y Control Disciplinario | B166: Actuaciones disciplinarias | C166: 6 | D166: Llevar procesos en curso, de la etapa de alegatos a fallo de primera instancia | E166: N/A | F166: Objetivo_4._Priorizar_el_servicio_al_usuario_como_eje_central_para_la_creación_de_valor_público | H166: Autos de fondo | I166: (Cantidad de procesos llevados a una siguiente etapa durante el periodo)/(n*Cantidad de procesos en curso en etapa de fromulación de alegatos) | J166: 1 | K166: Certificación de trámite | L166: Expedientes Disciplinarios | M166: 0.1666666667 | N166: 0.1666666667 | O166: 0.1666666667 | P166: 0.1666666667 | Q166: 0.1666666667 | R166: 0.1666666667 | S166: Leyla Lizarazo Valencia | T166: 2021-01-01 | U166: 2021-12-31
A167: Gestión y Control Disciplinario | B167: Actuaciones disciplinarias | C167: 7 | D167: Archivar los procesos disciplinarios correspondientes | E167: N/A | F167: Objetivo_4._Priorizar_el_servicio_al_usuario_como_eje_central_para_la_creación_de_valor_público | H167: Autos de fondo | I167: Cantidad de procesos archivados durante el periodo | J167: 1 | K167: Certificación de trámite | L167: Expedientes Disciplinarios | M167: 0.1666666667 | N167: 0.1666666667 | O167: 0.1666666667 | P167: 0.1666666667 | Q167: 0.1666666667 | R167: 0.1666666667 | S167: Leyla Lizarazo Valencia | T167: 2021-01-01 | U167: 2021-12-31
A168: Gestión y Control Disciplinario | B168: Actuaciones disciplinarias | C168: 8 | D168: Realizar reuniones con los operadores disciplinarios del país de manera virtual, a fin de afianzar el procedimiento de acompañamiento de la actividad disciplinaria | E168: N/A | F168: Objetivo_4._Priorizar_el_servicio_al_usuario_como_eje_central_para_la_creación_de_valor_público | H168: Eventos de reunión | I168: Cantidad de eventos realizados | J168: 1 | K168: Certificación de trámite | L168: Archivos de gestión electrónicos de la oficina de control disciplinario: citaciones reunión - videos Teams | M168: 0.1666666667 | N168: 0.1666666667 | O168: 0.1666666667 | P168: 0.1666666667 | Q168: 0.1666666667 | R168: 0.1666666667 | S168: Leyla Lizarazo Valencia | T168: 2021-01-01 | U168: 2021-12-31
A169: Gestión y Control Disciplinario | B169: Actuaciones disciplinarias | C169: 9 | D169: Realizar las observaciones pertinentes a los informes de los procesos disciplinarios que se siguen en el país | E169: N/A | F169: Objetivo_4._Priorizar_el_servicio_al_usuario_como_eje_central_para_la_creación_de_valor_público | H169: Reporte de seguimiento | I169: Cantidad de observaciones realizadas | J169: 1 | K169: Certificación de trámite | L169: Archivos de gestión electrónicos de la oficina de control disciplinario: correo electrónico - videoconferencia | M169: 0.1666666667 | N169: 0.1666666667 | O169: 0.1666666667 | P169: 0.1666666667 | Q169: 0.1666666667 | R169: 0.1666666667 | S169: Leyla Lizarazo Valencia | T169: 2021-01-01 | U169: 2021-12-31
A170: Gestión y Control Disciplinario | B170: Actuaciones disciplinarias | C170: 10 | D170: Realizar actividades de control preventivo a través de tips disciplinarios, a fin de evitar la ocurrencia de hechos que contraríen los principios de la función pública, por parte de los servidores de la Registraduría Nacional del Estado Civil | E170: N/A | F170: Objetivo_4._Priorizar_el_servicio_al_usuario_como_eje_central_para_la_creación_de_valor_público | H170: Reporte de publicación de Tips disciplinarios | I170: Cantidad de reportes publicados | J170: 1 | K170: Certificación de trámite | L170: Archivos de gestión electrónicos de la oficina de control disciplinario: correo electrónico de publicación del tip disciplinario | M170: 0.1666666667 | N170: 0.1666666667 | O170: 0.1666666667 | P170: 0.1666666667 | Q170: 0.1666666667 | R170: 0.1666666667 | S170: Leyla Lizarazo Valencia | T170: 2021-01-01 | U170: 2021-12-31
A171: Gestión del Sistema de Control Interno | B171: Auditoria Interna | C171: 1 | D171: Coordinar y realizar auditorías a procesos, actividades u operaciones, no contempladas en el Plan Anual de Auditorías- PAI, cuando sea necesario o a solicitud de los responsables de los procesos o el Señor Registrador. | E171: Plan Estratégico | F171: Objetivo_1._Rediseñar_la_arquitectura_organizacional_de_la_entidad_para_fortalecer_sus_capacidades | G171: 9. Gestionar y obtener la certicación de la entidad en la norma de gestión de seguridad y salud en el trabajo ISO 45001 | H171: Realizar el 100% de las auditorias, actividades u operaciones, no contempladas en plan anual de auditorias | I171: Cantidad de informes de auditorías realizadas por solicitud / (n*Cantidad de informes de auditorias solicitadas) | J171: 1 | K171: 5 Informes de Auditoría AIFT18 | L171: SharePoint | R171: 1 | S171: LILIA AURORA ROMERO LARA | T171: 2021-01-04 | U171: 2021-12-31
A172: Gestión del Sistema de Control Interno | B172: Auditoria Interna | C172: 2 | D172: Realizar seguimiento al Sistema de Gestión de Calidad - Auditoria de Calidad. | E172: Plan Estratégico | F172: Objetivo_1._Rediseñar_la_arquitectura_organizacional_de_la_entidad_para_fortalecer_sus_capacidades | G172: 9. Gestionar y obtener la certicación de la entidad en la norma de gestión de seguridad y salud en el trabajo ISO 45001 | H172: Realizar el 100% de los Ciclo de auditorias internas planificadas | I172: Cantidad de Ciclo de auditorias internas planificadas en el periodo / (n* Cantidad de Ciclo de auditorias internas calidad programadas en el periodo) | J172: 1 | K172: Informe de auditoría AIFT18 | L172: SharePoint | P172: 1 | S172: LILIA AURORA ROMERO LARA | T172: 2021-01-04 | U172: 2021-08-31
A173: Gestión del Sistema de Control Interno | B173: Seguimiento a la gestión institucional | C173: 3 | D173: Realizar seguimiento a los planes de mejoramiento (Institucional y por procesos) | E173: Plan Estratégico | F173: Objetivo_1._Rediseñar_la_arquitectura_organizacional_de_la_entidad_para_fortalecer_sus_capacidades | G173: 9. Gestionar y obtener la certicación de la entidad en la norma de gestión de seguridad y salud en el trabajo ISO 45001 | H173: Realizar seguimiento al 100% de los planes de mejoramiento (Institucional y por procesos) | I173: Cantidad de acciones de seguimiento a los planes de mejoramiento realidazadas en el periodo / (n*Cantidad de actividades suscritas en el periodo) | J173: 1 | K173: 4 Informes de auditoría AIFT18 | L173: SharePoint | M173: 0.25 | N173: 0.25 | O173: 0.25 | Q173: 0.25 | S173: LILIA AURORA ROMERO LARA | T173: 2021-01-04 | U173: 2021-12-31
A174: Gestión del Sistema de Control Interno | B174: Seguimiento a la gestión institucional | C174: 4 | D174: Ejecutar el Plan Anual de Auditorías Internas - PAI | E174: Plan Estratégico | F174: Objetivo_1._Rediseñar_la_arquitectura_organizacional_de_la_entidad_para_fortalecer_sus_capacidades | G174: 8. Crear y desarrollar la estrategia de lucha anticorrupción en la entidad y obtener la certicación en la norma de gestión antisoborno ISO 37001 | H174: Realizar el 100% de las actividades del Plan Anual de Auditorías Internas | I174: Cantidad de informes de seguimiento y evaluación de los planes, programas y proyectos realizados y presentados en el periodo / (n* Cantidad de informes de seguimiento y evaluación de los planes, programas y proyectos a realizar y entregar en el periodo) | J174: 1 | K174: 191 Informes de seguimiento Sift01 | L174: SharePoint | M174: 29,8%(57) | N174: 14,1%(27) | O174: 11%(21) | P174: 21,45%(41) | Q174: 14,65%(28) | R174: 9%(17) | S174: LILIA AURORA ROMERO LARA | T174: 2021-01-04 | U174: 2021-12-31
A175: N/A | B175: Oficina de asuntos internaciones | C175: 1 | D175: Presentar propuestas de cooperación internacional a organismos del sistema internacional. | E175: Plan Estratégico | F175: Objetivo_3._Fortalecer_la_democracia_mediante_reformas_legales_estratégicas_el_posicionamiento_del_nuevo_sistema_democrático_juvenil_y_la_adopción_de_un_enfoque_diferencial | G175: 7. Crear una dependencia encargada de fomentar la participación ciudadana y la democracia con enfoque diferencial | H175: Aplicar al 100% de las propuestas priorizadas | I175: Cantidad de propuestas presentadas / n*(Cantidad de propuestas priorizadas) | J175: 1 | K175: Proyecto de cooperación encaminado al fortalecimiento de la participación política ciudadana. Presentación de propuestas de cooperación. Elaborar y socializar estado del arte sobre buenas prácticas a nivel internacional en materia participación política ciudadana. | L175: Archivo de la Oficina de Asuntos Internacionales | N175: 0.2 | O175: 0.2 | P175: 0.2 | Q175: 0.2 | R175: 0.2 | S175: Johana Fandiño Casas | T175: 2021-03-01 | U175: 2021-12-31
A176: N/A | B176: Oficina de asuntos internaciones | C176: 2 | D176: Identificar líneas de acción de los actores del sistema internacional. | E176: Plan Estratégico | F176: Objetivo_4._Priorizar_el_servicio_al_usuario_como_eje_central_para_la_creación_de_valor_público | G176: 3. Usar metodologías de diseño del servicio centradas en el ciudadano y los usuarios | H176: Incluir el 100% de los nuevos contactos identificados en el Directorio de aliados para la RNEC | I176: Cantidad de contactos actualizados / n* (Cantidad de contactos identificados) | J176: 1 | K176: Directorio actualizado de aliados y cooperantes de la RNEC. Actas de mesas de trabajo con actores del sistema internacional. | L176: Archivo de la Oficina de Asuntos Internacionales | M176: =1/6 -> 0.1666666667 | N176: =1/6 -> 0.1666666667 | O176: 0.1666666667 | P176: 0.1666666667 | Q176: 0.1666666667 | R176: 0.1666666667 | S176: Johana Fandiño Casas | T176: 2021-01-01 | U176: 2021-12-31
A177: N/A | B177: Oficina de asuntos internaciones | C177: 3 | D177: Desarrollar acciones que posicionen estratégicamente el papel de la RNEC en el sistema Internacional. | E177: Plan Estratégico | F177: Objetivo_1._Rediseñar_la_arquitectura_organizacional_de_la_entidad_para_fortalecer_sus_capacidades | G177: 6. Crear una dependencia encargada de asuntos internacionales y fortalecer el servicio al usuario en el exterio | H177: Desarrollar el 100% acciones programadas para posicionar el papel de la RNEC en el sistema internacional | I177: Cantidad de acciones ejecutadas en el periodo/(n)*Cantidad de acciones programadas a desarrollar | J177: 1 | K177: Documento de consolidación de acciones. | L177: Archivo de la Oficina de Asuntos Internacionales | M177: =1/6 -> 0.1666666667 | N177: 0.1666666667 | O177: 0.1666666667 | P177: 0.1666666667 | Q177: 0.1666666667 | R177: 0.1666666667 | S177: Johana Fandiño Casas | T177: 2021-01-01 | U177: 2021-12-31
A178: N/A | B178: Oficina de asuntos internaciones | C178: 4 | D178: Articular alianzas estratégicas con Cancilleria y otras entidades del Estado colombiano. | E178: Plan Estratégico | F178: Objetivo_1._Rediseñar_la_arquitectura_organizacional_de_la_entidad_para_fortalecer_sus_capacidades | G178: 6. Crear una dependencia encargada de asuntos internacionales y fortalecer el servicio al usuario en el exterio | H178: Desarrollar el 100% de las alianzas estratégicas acordadas | I178: Cantidad de alianzas ejecutadas en el periodo/(n)*Cantidad de alianzas programadas | J178: 1 | K178: Comunicaciones. Actas de reuniones. | L178: Archivo de la Oficina de Asuntos Internacionales | N178: 0.2 | O178: 0.2 | P178: 0.2 | Q178: 0.2 | R178: 0.2 | S178: Johana Fandiño Casas | T178: 2021-03-01 | U178: 2021-12-31
A179: N/A | B179: Oficina de asuntos internaciones | C179: 5 | D179: Supervisar la ejecución de las actividades y recursos producto de la cooperación internacional en el marco de cada proyecto. | E179: Plan Estratégico | F179: Objetivo_1._Rediseñar_la_arquitectura_organizacional_de_la_entidad_para_fortalecer_sus_capacidades | G179: 6. Crear una dependencia encargada de asuntos internacionales y fortalecer el servicio al usuario en el exterio | H179: Desarrollar el 100% de las acciones de supervisiòn | I179: Cantidad de acciones de supervisión desarrolladas en el periodo/(n)*Cantidad de acciones de supervisión programadas | J179: 1 | K179: Documento de seguimiento a las actividades y recursos producto de la cooperación internacional en el marco de cada proyecto. Actas de mesas de trabajo y seguimento | L179: Archivo de la Oficina de Asuntos Internacionales | M179: =1/6 -> 0.1666666667 | N179: =1/6 -> 0.1666666667 | O179: 0.1666666667 | P179: 0.1666666667 | Q179: 0.1666666667 | R179: 0.1666666667 | S179: Johana Fandiño Casas | T179: 2021-01-01 | U179: 2021-12-31
A180: N/A | B180: Oficina de asuntos internaciones | C180: 6 | D180: Desarrollar la ejecución de las actividades y recursos producto de los proyectos ejecutados durante la vigencia. | E180: Plan Estratégico | F180: Objetivo_1._Rediseñar_la_arquitectura_organizacional_de_la_entidad_para_fortalecer_sus_capacidades | G180: 6. Crear una dependencia encargada de asuntos internacionales y fortalecer el servicio al usuario en el exterio | H180: Desarrollar el 100% de las actividades desarrolladas | I180: Cantidad de actividades desarrolladas en el periodo/(n)*Cantidad de actividades programadas a realizar | J180: 1 | K180: Documento de ejecución de las actividades y recursos producto de la cooperación internacional en el marco de cada proyecto. Actas de mesas de trabajo y seguimento | L180: Archivo de la Oficina de Asuntos Internacionales | M180: =1/6 -> 0.1666666667 | N180: 0.1666666667 | O180: 0.1666666667 | P180: 0.1666666667 | Q180: 0.1666666667 | R180: 0.1666666667 | S180: Johana Fandiño Casas | T180: 2021-01-01 | U180: 2021-12-31
A181: N/A | B181: Oficina de asuntos internaciones | C181: 7 | D181: Generar contenido para la elaboración de piezas de comunicación de la Oficina de Asuntos Internacionales | E181: Plan Estratégico | F181: Objetivo_1._Rediseñar_la_arquitectura_organizacional_de_la_entidad_para_fortalecer_sus_capacidades | G181: 6. Crear una dependencia encargada de asuntos internacionales y fortalecer el servicio al usuario en el exterio | H181: Desarrollar el 100% de contenido para la elaboración de piezas de comunicación de la Oficina de Asuntos Internacionales | I181: Cantidad de piezas de comunicación elaboradas /(n)*Cantidad de piezas de comunicación programadas | J181: 1 | K181: Piezas de comunicación de la Oficina de Asuntos Internacionales | L181: Archivo de la Oficina de Asuntos Internacionales | M181: =1/6 -> 0.1666666667 | N181: 0.1666666667 | O181: 0.1666666667 | P181: 0.1666666667 | Q181: 0.1666666667 | R181: 0.2 | S181: Johana Fandiño Casas | T181: 2021-01-01 | U181: 2021-12-31
A182: N/A | B182: Oficina de asuntos internaciones | C182: 8 | D182: Socializar los resultados de sostenibilidad de la Registraduría Nacional del Estado Civil. | E182: Plan Estratégico | F182: Objetivo_5._Hacer_de_la_RNEC_una_entidad_respetuosa_del_medio_ambiente_que_contribuya_a_la_mitigación_del_cambio_climático | G182: 4. Fomentar la cultura y ciudadanía ambiental, así como el uso razonable de los recursos naturales entre servidores y usuarios | H182: Desarrollar el 100% de las actividades de socialización | I182: Cantidad de actividades de socialización ejecutas/(n)*Cantidad de actividades de socialización programadas | J182: 1 | K182: Informe de sostenibilidad vigencia 2020 de la RNEC | L182: Archivo de la Oficina de Asuntos Internacionales | R182: 1 | S182: Johana Fandiño Casas | T182: 2021-01-01 | U182: 2021-12-31
A183: N/A | B183: Oficina de asuntos internaciones | C183: 9 | D183: Desarrollar acciones para la gestión interna y mejora continua de la Oficina de Asuntos Internacionales | E183: Plan Estratégico | F183: Objetivo_1._Rediseñar_la_arquitectura_organizacional_de_la_entidad_para_fortalecer_sus_capacidades | G183: 6. Crear una dependencia encargada de asuntos internacionales y fortalecer el servicio al usuario en el exterio | H183: Desarrollar el 100 % de las acciones de gestión y mejora programadas | I183: Cantidad de acciones para la gestión interna y mejora continua de la Oficina de Asuntos Internacionales ejecutadas en el periodo/(n)*Cantidad de acciones para la gestión interna y mejora continua de la Oficina de Asuntos Internacionales programadas | J183: 1 | K183: Documento guía de protocolo de Relaciones Internacionales de la RNEC. Procedimiento de seguimiento a los recursos recibidos por cooperación internacional. Procedimiento de regulación del ejercicio de observación electoral internacional. Evaluar los resultados de gestión de la OAI. Informe de gestión de recursos técnicos y financieros. Documento con acciones de gestión interna y mejora continua realizadas por la Oficina de Asuntos Internacionales. | L183: Archivo de la Oficina de Asuntos Internacionales | O183: 0.5 | R183: 0.5 | S183: Johana Fandiño Casas | T183: 2021-01-01 | U183: 2021-12-31
A184: N/A | B184: Secretaría General | C184: 1 | D184: Elaborar los convenios solicitados por las entidades publicas con el cumplimiento de los requisitos señalados en la ley y las resoluciones expedidas por la Registraduría para tal fin. | E184: N/A | F184: Objetivo_4._Priorizar_el_servicio_al_usuario_como_eje_central_para_la_creación_de_valor_público | G184: 2. Cambiar el paradigma cultural de los servidores en cuanto al servicio al usuario teniendo en cuenta nuevos valores institucionales, entre otros factores | H184: Convenios firmados y registrados | I184: (Cantidad de convenios elaborados en el Periodo ) /(n)*Cantidad de convenios programados para elaborar en el periodo | J184: 1 | K184: Convenios suscritos | L184: Oficina de Covenios | M184: =1/6 -> 0.1666666667 | N184: =1/6 -> 0.1666666667 | O184: 0.1666666667 | P184: 0.1666666667 | Q184: 0.1666666667 | R184: 0.1666666667 | S184: Benjamín Ortíz Torres | T184: 2021-01-25 | U184: 2021-12-31
A185: N/A | B185: Secretaría General | C185: 2 | D185: Reuniones de seguimiento a los convenios celebrados con el fin de resolver inconvenientes presentados con la base de datos dispuesta por la Registraduría | E185: N/A | F185: Objetivo_4._Priorizar_el_servicio_al_usuario_como_eje_central_para_la_creación_de_valor_público | G185: 2. Cambiar el paradigma cultural de los servidores en cuanto al servicio al usuario teniendo en cuenta nuevos valores institucionales, entre otros factores | H185: Registro de contactos y asistentes o reuniones virtuales | I185: (Cantidad de reuniones realizadas ) /(n)*Cantidad de Reuniones solicitadas para seguimiento a convenios) | J185: 1 | K185: Solicitudes de acceso a la información | L185: Oficina de Covenios | M185: =1/6 -> 0.1666666667 | N185: 0.1666666667 | O185: 0.1666666667 | P185: 0.1666666667 | Q185: 0.1666666667 | R185: 0.1666666667 | S185: Benjamín Ortíz Torres | T185: 2021-01-25 | U185: 2021-12-31
A186: Fondo Social de Vivienda | B186: Adjudicación de Créditos para Vivienda | C186: 1 | D186: Elaborar y publicar la convocatoria, para la inscripción al concurso de créditos de vivienda de la vigencia 2022 | E186: N/A | H186: Realizar el 100% de las actividades para elaborar la convocatoria del 2022. | I186: Cantatidad de actividades realiadas para elaborar y publicar la convocatoria de creditos d vivienda de la vigencia 2022/(n)*(Cantidada de activiades programadas para elborar y publicar la convocatoria) | J186: 1 | K186: Elaboracion de la convocatoria Captura de pantalla de la publicación de la convocatoria. | L186: SharePoint | Q186: 1 | S186: JEFE DE OFICINA FSV | T186: 2021-10-01 | U186: 2021-10-31
A187: Fondo Social de Vivienda | B187: Adjudicación de Créditos para Vivienda | C187: 2 | D187: Habilitar el aplicativo para la inscripción en línea, calificar formularios y publicar los listado definitivo de los admitidos y rechazados en la presente convocatoria. | E187: N/A | H187: Desarrollar las actividades para finalizar la convocatoria de adjudicacion de creditos de vivienda de la vigencia 2021 | I187: Cantidad de actividades realizadas en el periodo para finalizar la vonvocatoria de creditos de vivienda del 2021 /(n)*(Cantidad de actividades programadas en el periodo para finalizar la vonvocatoria de creditos de vivienda del 2021) | J187: 1 | K187: Aplicativo de inscripcion habilitado Bimestre 6) Acta general de cierre de inscripción (Bimesre 1) Listado Preliminar de admitidos. (Bimestre 2) Publicación de listado de definitivo de admitido y rechazados de participantes. (Bimestre 3) | L187: SharePoint | M187: 0.25 | N187: 0.25 | O187: 0.25 | R187: 0.25 | S187: JEFE DE OFICINA FSV | T187: 2021-01-01 | U187: 2021-04-30
A188: Fondo Social de Vivienda | B188: Gestión Juridica | C188: 1 | D188: Realizar el estudio de titulos y viabilidad juridica de los creditos de vivienda adjudicados en la vigencia. | E188: N/A | H188: Realizar el 100% de los estudiode titulos y viabilidad juridica de los creditos de vivienda aprobados | I188: Cantidad de estudios de títulos realizados en el periodo /(n)*(Cantidad de estudios títulos solicitados en el periodo) | J188: 1 | K188: Oficio de entrega de documentos (Bimestre 4, 5 y 6) Formato GJFT15 Eestudio de Ttitulos (Bimestre 4, 5 y 6) | L188: SharePoint | P188: =1/3 -> 0.3333333333 | Q188: =1/3 -> 0.3333333333 | R188: 0.3333333333 | S188: JEFE DE OFICINA FSV COORDINACION JURIDICA | T188: 2021-07-01 | U188: 2021-12-31
A189: Fondo Social de Vivienda | B189: Gestión Financiera | C189: 1 | D189: Realizar el desmbolso de los creditos de vivienda adjucados en la vigencia | E189: N/A | H189: Desembolsar el 100% de los creditos aprobados | I189: Cantidad de desembolso realizados en el periodo//( n)*(cantidad de desembolso programado en el periodo) | J189: 1 | K189: Orden de pago SIIF (Bimestre 4, 5 y 6) Formato ACFT04 Verificacion de documentos (Bimestre 4, 5 y 6) | L189: SharePoint | P189: =1/3 -> 0.3333333333 | Q189: 0.3333333333 | R189: 0.3333333333 | S189: JEFE DE OFICINA FSV SERVIDOR PUBLICO CON FUNCIONES DE TESORERO | T189: 2021-07-01 | U189: 2021-12-31
A190: Fondo Social de Vivienda | B190: Gestión Jurídica | C190: 2 | D190: Salvaguardar la información de Escritura Pública y pagaré de los créditos de vivienda legalizados. | E190: N/A | H190: Salvaguarda y escanear el 100% de las Escrituras publicas y Pagares de los creditos de vivienda legalizados. | I190: Cantidad de escrituras pública y pagaré escaneados y grabados/( n)*(Cantidad de créditos de vivienda legalizados) | J190: 1 | K190: Escritura publica y pagare escaneados (Bimestre 5 y 6) Formato FUI de los creditos archivados (Bimestre 5 y 6) | L190: SharePoint | Q190: 0.5 | R190: 0.5 | S190: JEFE DE OFICINA FSV COORDINACION JURIDICA SERVIDOR PUBLICO CON FUNCIONES DE GESTION DOCUMENTAL | T190: 2021-09-01 | U190: 2021-12-31
A191: Fondo Social de Vivienda | B191: Gestión Financiera | C191: 2 | D191: Realizar seguimiento a la Getion de cartera del FSV | E191: N/A | H191: Realizar el 100% de las actividades programadas para gestionar el cobtro de la caretra del FSV. | I191: Cantidad de actividade realizadas en el periodo para gestionar el cobro de la cartera del FSV /( n)*(Cantidad de actividades programadas en el periodo para gestionar el cobro de la cartera del FSV) | J191: 1 | K191: Informe de seguimiento y verificación de los descuentos solicitados por el FSV, frente a los valores aplicados y reportados por los operadores de nomina (Bimestre 1, 2, 3,4,5 y 6) Informe de seguimiento y verificación de los descuentos solicitados por el FSV, frente a lo reportado por las entidades de pensión. (Bimestre 1, 2, 3,4,5 y 6) Informe de los recursos recuperados a través del cobro prejuridico y el cobro Juridico como resultado del impulso procesal. (Bimestre 1, 2, 3,4,5 y 6) | L191: SharePoint | M191: =1/6 -> 0.1666666667 | N191: 0.1666666667 | O191: 0.1666666667 | P191: 0.1666666667 | Q191: 0.1666666667 | R191: 0.1666666667 | S191: JEFE DE OFICINA FSV SERVIDOR PUBLICO CON FUNCIONES DE CARTERA COORDINACION JURIDICA | T191: 2021-01-01 | U191: 2021-12-31
A192: Fondo Social de Vivienda | B192: Evaluación y Mejora | C192: 1 | D192: Presentar los informes a las enridades gubernamentales que los requieran | E192: N/A | H192: Presentar el 100% de los informes requeridos por la entidades gubernamentales. | I192: Cantidad de informes realizados en el periodo/(n)*(Cantidad de informes solicitados en el periodo) | J192: 1 | K192: Informes de los Estados Financieros preentados a la Contaduría General de la Nación (Bimestre 1,2, 4 y 5) Informe de rendición de la Cuenta anual presentado a la Contraloría General de la Republica, a través del aplicativo SIRECI. (Bimestre 2) Informe de los Estados Financieros presentado al Ministerio de Hacienda y Crédito Publico. (Bimestre 2) Informe de los Estados Financieros presentado a la Cámara de Representantes (Bimestre 2) Informe de Estados Financieros presentado al Departamento Nacional de Planeación (Bimestre 2) | L192: SharePoint | M192: =1/4 -> 0.25 | N192: =1/4 -> 0.25 | P192: =1/4 -> 0.25 | Q192: =1/4 -> 0.25 | S192: CARLOS ALBERTO ARIAS MONCALEANO SERVIDOR PUBLICO CON FUNCIONES DE CONTADOR | T192: 2021-01-01 | U192: 2021-10-30
A193: Planeación y Direccionamiento Estratégico | B193: Servicio al Colombiano | C193: 1 | D193: Socializar con la alta dirección el seguimiento a la gestión en materia de PQRSDC y servicio al ciudadano vigencia 2021 | E193: Plan Anticorrupción y de Atención al Ciudadano | F193: Objetivo_4._Priorizar_el_servicio_al_usuario_como_eje_central_para_la_creación_de_valor_público | H193: Socializar el 100% de los informes programados en materia de PQRSDC y satisfacción ciudadana para la revisión por la dirección | I193: Cantidad de informes socializados / (n* Cantida de informes programados a socializar) | J193: 1 | K193: Informe presentado | L193: Oficina de Planeación | P193: 1 | R193: José Fernando Flórez Ruiz | S193: 2021-09-01 | T193: 2021-10-31
A194: Planeación y Direccionamiento Estratégico | B194: Servicio al Colombiano | C194: 2 | D194: Actualizar el directorio de responsables para la gestión de PQRSDC a nivel nacional en la intranet institucional. | E194: Plan Anticorrupción y de Atención al Ciudadano | F194: Objetivo_4._Priorizar_el_servicio_al_usuario_como_eje_central_para_la_creación_de_valor_público | H194: Actulizar el 100% de los registros requeridos en el directorio de responsables de PQRSDC | I194: Cantidad de registros actualizados en el periodo / (n*Cantidad de registrso que requierene actualización en el periodo) | J194: 1 | K194: Directorio actualizado | L194: Intranet | N194: 0.5 | Q194: 0.5 | R194: José Fernando Flórez Ruiz | S194: 2021-05-01 | T194: 2021-12-31
A195: Planeación y Direccionamiento Estratégico | B195: Servicio al Colombiano | C195: 3 | D195: Ajustar el Formulario Virtual de Atención al Colombiano atendiendo a los requerimientos de nuestro usuarios y la normativa vigente | E195: Plan Anticorrupción y de Atención al Ciudadano | F195: Objetivo_4._Priorizar_el_servicio_al_usuario_como_eje_central_para_la_creación_de_valor_público | H195: Realizar el 100% de los ajustes requeridos al Formulario Virtual de Atención al Colombiano ajustado | I195: Cantidad de ajustes realizados en el periodo al formulario de atención al colombiano / (n* Cantidad de ajustes requeridos en el periodo) | J195: 1 | K195: Formulario Virtual de Atención al Colombiano ajustado | L195: Página web | N195: 1 | R195: José Fernando Flórez Ruiz | S195: 2021-01-01 | T195: 2021-06-30
A196: Planeación y Direccionamiento Estratégico | B196: Servicio al Colombiano | C196: 4 | D196: Gestionar capacitaciones para el Grupo de Peticiones, Quejas y Reclamos en temás de interés para la atención de solicitudes ciudadanas. | E196: Plan Anticorrupción y de Atención al Ciudadano | F196: Objetivo_4._Priorizar_el_servicio_al_usuario_como_eje_central_para_la_creación_de_valor_público | H196: Realizar el 100% de las capacitaciones programadas para el grupo de PQRSDC | I196: Cantidad de capacitaciones realizadas en el periodo/(n*Cantidad de capacitaciones programadas en el peeriodo) | J196: 1 | K196: Listado de asistencia | L196: Oficina de Planeación- Coordinación de Peticiones, Quejas y Reclamos | M196: 0.3333 | O196: 0.3333 | Q196: 0.3333 | R196: José Fernando Flórez Ruiz | S196: 2021-03-01 | T196: 2021-12-31
A197: Planeación y Direccionamiento Estratégico | B197: Servicio al Colombiano | C197: 5 | D197: Elaborar y publicar el informe trimestral de la gestión en materia dePQRSDC en la RNEC. | E197: Plan Anticorrupción y de Atención al Ciudadano | F197: Objetivo_4._Priorizar_el_servicio_al_usuario_como_eje_central_para_la_creación_de_valor_público | H197: Elaborar y publicar el 100% de los informe trimestral de la gestión en materia dePQRSDC en la RNEC programdos | I197: Cantidad de informes publicados/(n*Cantidad de informes elaborados) | J197: 1 | K197: Informes elaborados y publicados | L197: Página web | M197: 0.25 | N197: 0.25 | P197: 0.25 | Q197: 0.25 | R197: José Fernando Flórez Ruiz | S197: 2021-01-01 | T197: 2021-10-31
A198: Planeación y Direccionamiento Estratégico | B198: Servicio al Colombiano | C198: 6 | D198: Elaborar y publicar en los canales de atención la carta de trato digno a los usuarios para la vigencia 2020. | E198: Plan Anticorrupción y de Atención al Ciudadano | F198: Objetivo_4._Priorizar_el_servicio_al_usuario_como_eje_central_para_la_creación_de_valor_público | H198: Carta de trato digno actualizada | I198: Cantidad de documentos eleborados/(n*Cantidad de documentos programados) | J198: 1 | K198: Carta de trato digno actualizada y publicada | L198: Página web e intranet | M198: 1 | R198: José Fernando Flórez Ruiz | S198: 2021-01-01 | T198: 2021-02-28
A199: Planeación y Direccionamiento Estratégico | B199: Servicio al Colombiano | C199: 7 | D199: Unificar la normativa interna en materia de PQRSDC | E199: Plan Anticorrupción y de Atención al Ciudadano | F199: Objetivo_4._Priorizar_el_servicio_al_usuario_como_eje_central_para_la_creación_de_valor_público | H199: Unificar el 100% de la normativa interna en materia de PQRSDC | I199: Cantidad de resoluciones emitidas para unificar la normativa en materia de PQRSDC/(n*Cantidad de programadas a emitir ) | J199: 1 | K199: Resolución elaborada y publicada | L199: Intranet | M199: 1 | R199: José Fernando Flórez Ruiz | S199: 2021-03-01 | T199: 2021-04-30
A200: Planeación y Direccionamiento Estratégico | B200: Servicio al Colombiano | C200: 8 | D200: Medir el tratamiento y respuesta oportuna en los términos de ley a las PQRSDC recibidas por el Grupo de Peticiones, Quejas y Reclamos. | E200: Plan Anticorrupción y de Atención al Ciudadano | F200: Objetivo_4._Priorizar_el_servicio_al_usuario_como_eje_central_para_la_creación_de_valor_público | H200: PQRSDC con tratamiento y respuesta oportuna | I200: Cantidad de acciones de medición realizadas en el período/ (n)* Cantidad de acciones de medición programadas en el período | J200: 1 | K200: Reporte de desempeño de los servidores del Grupo de Peticiones, Quejas y Reclamos | L200: Correo electrónico | M200: 0.2 | N200: 0.2 | O200: 0.2 | P200: 0.2 | Q200: 0.2 | R200: José Fernando Flórez Ruiz | S200: 2021-03-01 | T200: 2021-12-31
... 54 more rows

Sheet Proyectos de Inversión
B1: PROCESO | C1: PLANEACIÓN DE LA GESTIÓN INSTITUCIONAL | U1: CÓDIGO | V1: PGFT54 | AA1: Plan Estratégico
B2: FORMATO | C2: PROGRAMACIÓN PLAN DE ACCIÓN INSTITUCIONAL - PROYECTOS DE INVERSIÓN | U2: VERSIÓN | V2: 0 | AA2: Plan Institucional de Archivos de la Entidad ­PINAR
A3: Aprobado: 12/01/2021 | AA3: Plan Anual de Adquisiciones
A4: PLAN ESTRATÉGICO Objetivo 1. Rediseñar la arquitectura organizacional de la entidad para fortalecer sus capacidades Objetivo 2. Optimizar y modernizar los procesos misionales y de apoyo de la entidad gracias al uso de nuevas tecnologías Objetivo 3. Fortalecer la democracia mediante reformas legales estratégicas, el posicionamiento del nuevo sistema democrático juvenil y la adopción de un enfoque diferencial Objetivo 4. Priorizar el servicio al usuario como eje central para la creación de valor público Objetivo 5. Hacer de la RNEC una entidad respetuosa del medio ambiente que contribuya a la mitigación del cambio climático | AA4: Plan Estratégico de Talento Humano
A5: Macroproceso | B5: Proyecto | C5: Número de la actividad | D5: Actividad | E5: Planes Institucionales y / o estratégico al cual se integra | F5: N°. Objetivo Estratégico | G5: Estrategia | H5: Resultado esperado | I5: Indicadores de seguimiento | K5: Meta anual | L5: Evidencia | M5: Fuente de verificación | N5: Meta por bimestre | T5: Nombre de Directivo(s) responsable(s) | U5: Fecha | AA5: Plan Ide Incentivos Institucionales
I6: Cumplimiento | J6: Financiero | N6: Enero - Febrero | O6: Marzo - Abril | P6: Mayo - Junio | Q6: Julio - Agosto | R6: Septiembre - Octubre | S6: Noviembre - Diciembre | U6: Inicio | V6: Finalización | AA6: Plan Institucional de Capacitación
A7: Planeación y Direccionamiento Estratégico | B7: Fortalecimiento del Sistema de Servicio al colombiano de la Registraduría Nacional del Estado Civil Nacional | C7: 1 | D7: Ejecutar las actividades programadas en el proyecto de inversión "Fortalecimiento del Sistema de Servicio al colombiano de la Registraduría Nacional del Estado Civil Nacional" | E7: Plan Estratégico | F7: Objetivo_4._Priorizar_el_servicio_al_usuario_como_eje_central_para_la_creación_de_valor_público | G7: 5. Formular e inscribir un proyecto de inversión que fortalezca el servicio al usuario para las vigencias de 2021 a 2023 | H7: Ejecutar el 100% de las actividades programadas en el proyecto de inversión "Fortalecimiento del Sistema de Servicio al colombiano de la Registraduría Nacional del Estado Civil Nacional" | I7: Cantidad de actividades del proyecto ejecutadas en el periodo/(n*Cantidad de actividades del proyecto programadas en el periodo) | J7: Porcentaje de ejecucion finanaciera del proyecto reportado en la plataforma del S.P.I.-DNP | K7: 1 | L7: Informe ejecutivo SPI | M7: SPI | N7: 0.1667 | O7: 0.1667 | P7: 0.1667 | Q7: 0.1667 | R7: 0.1667 | S7: 0.1667 | T7: José Fernando Flórez Ruiz | U7: 2021-01-01 | V7: 2021-12-31 | AA7: Plan de Trabajo Anual en Seguridad y Salud en el Trabajo
A8: N/A | B8: Proyecto: Fortalecimiento del Centro de Estudios en Democracia y Asuntos Electorales - CEDAE - Nacional | C8: 1 | D8: Implementar y capacitar a través del curso virtual a Delegados Departamentales y Registradores del Distrito Capital | E8: Plan Estratégico | F8: Objetivo_1._Rediseñar_la_arquitectura_organizacional_de_la_entidad_para_fortalecer_sus_capacidades | G8: 7. Robustecer la estrategia de capacitación de funcionarios en la entidad, con especial énfasis en su inducción y reinducción | H8: Implementar el 100% de los cursos virtuales programados | I8: Cantidad de actividades realizadas / n* (Cantidad de actividades programadas) | J8: Porcentaje de ejecucion finanaciera del proyecto reportado en la plataforma del S.P.I.-DNP | K8: 1 | L8: * Formato asistencia a eventos de formación / Capacitación-PTFT18 * Informe de ejecución de actividades | M8: Archivo de gestión de la Coordinación CEDAE | O8: 0.2 | P8: 0.2 | Q8: 0.2 | R8: 0.2 | S8: 0.2 | T8: Gerente del Talento Humano Coordinador(a) CEDAE | U8: 2021-03-01 | V8: 2021-12-31 | AA8: Plan Anticorrupción y de Atención al Ciudadano
A9: N/A | B9: Proyecto: Fortalecimiento del Centro de Estudios en Democracia y Asuntos Electorales - CEDAE - Nacional | C9: 2 | D9: Implementar y capacitar a través del curso virtual a Registradores Especiales, Auxiliares y Municipales. | E9: Plan Estratégico | F9: Objetivo_1._Rediseñar_la_arquitectura_organizacional_de_la_entidad_para_fortalecer_sus_capacidades | G9: 7. Robustecer la estrategia de capacitación de funcionarios en la entidad, con especial énfasis en su inducción y reinducción | H9: Implementar el 100% de los cursos virtuales programados | I9: Cantidad de actividades realizadas / n* (Cantidad de actividades programadas) | J9: Porcentaje de ejecucion finanaciera del proyecto reportado en la plataforma del S.P.I.-DNP | K9: 1 | L9: * Formato asistencia a eventos de formación / Capacitación-PTFT18 * Informe de ejecución de actividades | M9: Archivo de gestión de la Coordinación CEDAE | O9: 0.2 | P9: 0.2 | Q9: 0.2 | R9: 0.2 | S9: 0.2 | T9: Gerente del Talento Humano Coordinador(a) CEDAE | U9: 2021-03-01 | V9: 2021-12-31 | AA9: Plan Estratégico de Tecnológias de la Información y las comunicaciónes PETI
A10: N/A | B10: Proyecto: Fortalecimiento del Centro de Estudios en Democracia y Asuntos Electorales - CEDAE - Nacional | C10: 3 | D10: Fortalecer la red de formadores | E10: Plan Estratégico | F10: Objetivo_1._Rediseñar_la_arquitectura_organizacional_de_la_entidad_para_fortalecer_sus_capacidades | G10: 7. Robustecer la estrategia de capacitación de funcionarios en la entidad, con especial énfasis en su inducción y reinducción | H10: Realizar el 100% de las activiades de fortalecimeinto de la red de formadores | I10: Cantidad de actividades realizadas / n* (Cantidad de actividades programadas) | J10: Porcentaje de ejecucion finanaciera del proyecto reportado en la plataforma del S.P.I.-DNP | K10: 1 | L10: * Formato asistencia a eventos de formación / Capacitación-PTFT18 * Informe de ejecución de actividades | M10: Archivo de gestión de la Coordinación CEDAE | N10: 0.33 | P10: 0.33 | R10: 0.33 | T10: Gerente del Talento Humano Coordinador(a) CEDAE | U10: 2021-02-01 | V10: 2021-10-31 | AA10: Plan de Tratamiento de Riesgos de seguridad y Privacidad de la Información
A11: N/A | B11: Proyecto: Fortalecimiento del Centro de Estudios en Democracia y Asuntos Electorales - CEDAE - Nacional | C11: 4 | D11: Realizar las actividades para el Diseño y Aprobación del documento del Plan de Capacitación del CEDAE para la vigencia 2022 | E11: Plan Estratégico | F11: Objetivo_1._Rediseñar_la_arquitectura_organizacional_de_la_entidad_para_fortalecer_sus_capacidades | G11: 7. Robustecer la estrategia de capacitación de funcionarios en la entidad, con especial énfasis en su inducción y reinducción | H11: Realizar el 100% de las activiades para diseñar y aprobar el Plan de capacitación del CEDAE para la vigencia 2022 | I11: Cantidad de actividades realizadas / n* (Cantidad de actividades programadas) | J11: Porcentaje de ejecucion finanaciera del proyecto reportado en la plataforma del S.P.I.-DNP | K11: 1 | L11: Plan de capacitación | M11: Archivo de gestión de la Coordinación CEDAE | O11: 0.25 | P11: 0.25 | R11: 0.25 | S11: 0.25 | T11: Gerente del Talento Humano Coordinador(a) CEDAE | U11: 2021-03-01 | V11: 2021-12-31 | AA11: Plan de seguridad y Privacidad de la Información
A12: N/A | B12: Proyecto: Fortalecimiento del Centro de Estudios en Democracia y Asuntos Electorales - CEDAE - Nacional | C12: 5 | D12: Desarrollar talleres dirigidos a jovenes entre los 14 y 28 años sobre el nuevo sistema de democracia juvenil | E12: Plan Estratégico | F12: Objetivo_3._Fortalecer_la_democracia_mediante_reformas_legales_estratégicas_el_posicionamiento_del_nuevo_sistema_democrático_juvenil_y_la_adopción_de_un_enfoque_diferencial | G12: 5. Diseñar un sistema de capacitaciones de impacto nacional en valores democráticos para jóvenes entre los 14 y 18 años | H12: Realizar el 100% de los talleres sobre el nuevo sistema de democracia juvenil programados | I12: Cantidad de actividades realizadas / n* (Cantidad de actividades programadas) | J12: Porcentaje de ejecucion finanaciera del proyecto reportado en la plataforma del S.P.I.-DNP | K12: 1 | L12: * Listado de asistencia * Informe de ejecución de actividades | M12: Archivo de gestión de la Coordinación CEDAE | O12: 0.5 | R12: 0.5 | T12: Registrador Delegado en lo Electoral Coordinador(a) CEDAE | U12: 2021-03-01 | V12: 2021-12-31 | AA12: Plan de Gestión Ambiental
A13: N/A | B13: Proyecto: Fortalecimiento del Centro de Estudios en Democracia y Asuntos Electorales - CEDAE - Nacional | C13: 6 | D13: Divulgar el material pedagógico dirigido a niños y niñas sobre formacion en valores civicos y democráticos | E13: Plan Estratégico | F13: Objetivo_3._Fortalecer_la_democracia_mediante_reformas_legales_estratégicas_el_posicionamiento_del_nuevo_sistema_democrático_juvenil_y_la_adopción_de_un_enfoque_diferencial | G13: 5. Diseñar un sistema de capacitaciones de impacto nacional en valores democráticos para jóvenes entre los 14 y 18 años | H13: Realizar el 100% de las activiades de divulgación programadas | I13: Cantidad de actividades realizadas / n* (Cantidad de actividades programadas) | J13: Porcentaje de ejecucion finanaciera del proyecto reportado en la plataforma del S.P.I.-DNP | K13: 1 | L13: * Listado de asistencia * Informe de ejecución de actividades | M13: Archivo de gestión de la Coordinación CEDAE | P13: 0.25 | Q13: 0.25 | R13: 0.25 | S13: 0.25 | T13: Registrador Delegado en lo Electoral Coordinador(a) CEDAE | U13: 2021-05-01 | V13: 2021-12-31 | AA13: Plan de gestión Ética
A14: N/A | B14: Proyecto: Fortalecimiento del Centro de Estudios en Democracia y Asuntos Electorales - CEDAE - Nacional | C14: 7 | D14: Desarrollar la Escuela de Nuevos Liderazgos en Cultura Democrática, actualizando los contenidos académicos e incluyendo modulos especificos para los educadores y educadoras del país, mujeres y grupos etnicos | E14: Plan Estratégico | F14: Objetivo_3._Fortalecer_la_democracia_mediante_reformas_legales_estratégicas_el_posicionamiento_del_nuevo_sistema_democrático_juvenil_y_la_adopción_de_un_enfoque_diferencial | G14: 5. Diseñar un sistema de capacitaciones de impacto nacional en valores democráticos para jóvenes entre los 14 y 18 años | H14: Desarrollar el 100% de los eventos de capacitación de la Escuela de Nuevos Liderazgos en Cultura Democrática | I14: Cantidad de actividades realizadas / n* (Cantidad de actividades programadas) | J14: Porcentaje de ejecucion finanaciera del proyecto reportado en la plataforma del S.P.I.-DNP | K14: 1 | L14: * Listado de asistencia * Informe de ejecución de actividades | M14: Archivo de gestión de la Coordinación CEDAE | N14: 0.25 | P14: 0.5 | R14: 0.25 | T14: Registrador Delegado en lo Electoral Coordinador(a) CEDAE | U14: 2021-02-01 | V14: 2021-02-28 | AA14: N/A
A15: N/A | B15: Proyecto: Fortalecimiento del Centro de Estudios en Democracia y Asuntos Electorales - CEDAE - Nacional | C15: 8 | D15: Fortalecer el proyecto Museo de la Registraduría Nacional del Estado Civil "Una democracia confiable". | E15: Plan Estratégico | F15: Objetivo_3._Fortalecer_la_democracia_mediante_reformas_legales_estratégicas_el_posicionamiento_del_nuevo_sistema_democrático_juvenil_y_la_adopción_de_un_enfoque_diferencial | G15: 5. Diseñar un sistema de capacitaciones de impacto nacional en valores democráticos para jóvenes entre los 14 y 18 años | H15: Realizar el 100% de las activiades programadas para el fortalecimiento del Museo Registraduría Nacional del Estado Civil "Una democrácia confiable" | I15: Cantidad de actividades realizadas / n* (Cantidad de actividades programadas) | J15: Porcentaje de ejecucion finanaciera del proyecto reportado en la plataforma del S.P.I.-DNP | K15: 1 | L15: Documento metodológico | M15: Archivo de gestión de la Coordinación CEDAE | P15: 0.5 | Q15: 0.5 | T15: Registrador Delegado en lo Electoral Coordinador(a) CEDAE | U15: 2021-05-01 | V15: 2021-08-31
A16: N/A | B16: Proyecto: Fortalecimiento del Centro de Estudios en Democracia y Asuntos Electorales - CEDAE - Nacional | C16: 9 | D16: Realizar investigaciones y publicaciones de impacto nacional, relevantes y pertinentes para fortalecer a la Registraduría Nacional | E16: Plan Anticorrupción y de Atención al Ciudadano | F16: Objetivo_3._Fortalecer_la_democracia_mediante_reformas_legales_estratégicas_el_posicionamiento_del_nuevo_sistema_democrático_juvenil_y_la_adopción_de_un_enfoque_diferencial | G16: 8. Fortalecer y transformar el CEDAE en un instituto de investigación, capacitación y educación en democracia | H16: Realizar el 100% de las investigaciones de impacto nacional, relevantes y pertinentes para fortalecer a la Registraduría Nacional | I16: Cantidad de actividades realizadas / n* (Cantidad de actividades programadas) | J16: Porcentaje de ejecucion finanaciera del proyecto reportado en la plataforma del S.P.I.-DNP | K16: 1 | L16: Documento de investigación | M16: Archivo de gestión de la Coordinación CEDAE | O16: 0.2 | P16: 0.2 | Q16: 0.2 | R16: 0.2 | S16: 0.2 | T16: Registrador Delegado en lo Electoral Coordinador(a) CEDAE | U16: 2021-03-01 | V16: 2021-12-31
A17: N/A | B17: Proyecto: Fortalecimiento del Centro de Estudios en Democracia y Asuntos Electorales - CEDAE - Nacional | C17: 10 | D17: Realizar seminarios, foros, conversatorios, mesas de trabajo y talleres lúdicos sobre las temáticas misionales y transversales de la Registraduría Nacional del Estado Civil dirigidos a usuarios internos y externos de la entidad acorde a las actividades del Plan de Capacitación del CEDAE para la vigencia 2021 | E17: Plan Anticorrupción y de Atención al Ciudadano | F17: Objetivo_3._Fortalecer_la_democracia_mediante_reformas_legales_estratégicas_el_posicionamiento_del_nuevo_sistema_democrático_juvenil_y_la_adopción_de_un_enfoque_diferencial | G17: 8. Fortalecer y transformar el CEDAE en un instituto de investigación, capacitación y educación en democracia | H17: Realizar el 100% de las actividades programadas sobre las temáticas misionales y transversales de la Registraduría Nacional del Estado Civil dirigidos a usuarios internos y externos de la entidad | I17: Cantidad de actividades realizadas / n* (Cantidad de actividades programadas) | J17: Porcentaje de ejecucion finanaciera del proyecto reportado en la plataforma del S.P.I.-DNP | K17: 1 | L17: * Listado de asistencia * Informe de ejecución de actividades | M17: Archivo de gestión de la Coordinación CEDAE | N17: 0.1666666667 | O17: 0.1666666667 | P17: 0.1666666667 | Q17: 0.1666666667 | R17: 0.1666666667 | S17: 0.1666666667 | T17: Registrador Delegado en lo Electoral Coordinador(a) CEDAE | U17: 2021-03-01 | V17: 2021-12-31
A18: N/A | B18: Proyecto: Fortalecimiento del Centro de Estudios en Democracia y Asuntos Electorales - CEDAE - Nacional | C18: 11 | D18: Fortalecer el grupo de investigación en la plataforma Gruplac de MINCIENCIAS | E18: Plan Estratégico | F18: Objetivo_3._Fortalecer_la_democracia_mediante_reformas_legales_estratégicas_el_posicionamiento_del_nuevo_sistema_democrático_juvenil_y_la_adopción_de_un_enfoque_diferencial | G18: 8. Fortalecer y transformar el CEDAE en un instituto de investigación, capacitación y educación en democracia | H18: Realizar el 100% de las tareas programadas para el fortalecimiento del Grupo de investigación en la plataforma Gruplac de MINCIENCIAS | I18: Cantidad de actividades realizadas / n* (Cantidad de actividades programadas) | J18: Porcentaje de ejecucion finanaciera del proyecto reportado en la plataforma del S.P.I.-DNP | K18: 1 | L18: Documento de actualización | M18: Archivo de gestión de la Coordinación CEDAE | R18: 0.5 | S18: 0.5 | T18: Registrador Delegado en lo Electoral Coordinador(a) CEDAE | U18: 2021-03-01 | V18: 2021-12-31
A19: N/A | B19: Proyecto: Fortalecimiento del Centro de Estudios en Democracia y Asuntos Electorales - CEDAE - Nacional | C19: 12 | D19: Publicar un número por semestre de la revista Democracia Actual que cumpla con los requisitos de indexación en Publindex | E19: Plan Estratégico | F19: Objetivo_3._Fortalecer_la_democracia_mediante_reformas_legales_estratégicas_el_posicionamiento_del_nuevo_sistema_democrático_juvenil_y_la_adopción_de_un_enfoque_diferencial | G19: 8. Fortalecer y transformar el CEDAE en un instituto de investigación, capacitación y educación en democracia | H19: Realizar el 100% de las activiades programadas para publicar la sexta edicion de la Revista democracia actual | I19: Cantidad de actividades realizadas / n* (Cantidad de actividades programadas) | J19: Porcentaje de ejecucion finanaciera del proyecto reportado en la plataforma del S.P.I.-DNP | K19: 1 | L19: Documento publicado | M19: Archivo de gestión de la Coordinación CEDAE | N19: 0.1666666667 | O19: 0.1666666667 | P19: 0.1666666667 | Q19: 0.1666666667 | R19: 0.1666666667 | S19: 0.1666666667 | T19: Registrador Delegado en lo Electoral Coordinador(a) CEDAE | U19: 2021-02-01 | V19: 2021-12-31
A20: N/A | B20: Proyecto: Fortalecimiento del Centro de Estudios en Democracia y Asuntos Electorales - CEDAE - Nacional | C20: 13 | D20: Elaborar una propuesta de rediseño del CEDAE como dependencia de altos estudios sobre democracia | E20: Plan Estratégico | F20: Objetivo_3._Fortalecer_la_democracia_mediante_reformas_legales_estratégicas_el_posicionamiento_del_nuevo_sistema_democrático_juvenil_y_la_adopción_de_un_enfoque_diferencial | G20: 8. Fortalecer y transformar el CEDAE en un instituto de investigación, capacitación y educación en democracia | H20: Desarrollar el 100% de las activiades programadas para elaborar la propuesta de rediseño del CEDAEcomo dependencia de altos estudios sobre democracia | I20: Cantidad de actividades realizadas / n* (Cantidad de actividades programadas) | J20: Porcentaje de ejecucion finanaciera del proyecto reportado en la plataforma del S.P.I.-DNP | K20: 1 | L20: Documento de rediseño | M20: Archivo de gestión de la Coordinación CEDAE | N20: 0.5 | O20: 0.5 | T20: Registrador Delegado en lo Electoral Coordinador(a) CEDAE | U20: 2021-02-01 | V20: 2021-06-30
A21: N/A | B21: Proyecto: Fortalecimiento del Centro de Estudios en Democracia y Asuntos Electorales - CEDAE - Nacional | C21: 14 | D21: Desarrollar y divulgar el programa “Datos para la democracia”, dentro de la Política de investigación y capacitación en democracia, con el objetivo de consolidar y divulgar en formato de datos abiertos la estadística misional, implementando los documentos metodológicos sobre la estadística de resultados electorales, mecanismos de participación ciudadana y participación de la mujer en política | E21: Plan Estratégico | F21: Objetivo_4._Priorizar_el_servicio_al_usuario_como_eje_central_para_la_creación_de_valor_público | G21: 7. Aumentar la oferta estadística en línea al público y hacer más funcional la página web de la entidad | H21: Desarrollar el 100% de las tareas programadas para el programa “Datos para la democracia”, dentro de la Política de investigación y capacitación en democracia | I21: Cantidad de actividades realizadas / n* (Cantidad de actividades programadas) | J21: Porcentaje de ejecucion finanaciera del proyecto reportado en la plataforma del S.P.I.-DNP | K21: 1 | L21: Documento de implementación | M21: Archivo de gestión de la Coordinación CEDAE | P21: 0.5 | R21: 0.25 | S21: 0.25 | T21: Jefe Oficina de Planeación Coordinador(a) CEDAE | U21: 2021-05-01 | V21: 2021-06-30
A22: N/A | B22: Proyecto: Fortalecimiento del Centro de Estudios en Democracia y Asuntos Electorales - CEDAE - Nacional | C22: 15 | D22: Coordinar la Mesa Técnica de Estadísticas Electorales | E22: Plan Estratégico | F22: Objetivo_4._Priorizar_el_servicio_al_usuario_como_eje_central_para_la_creación_de_valor_público | G22: 7. Aumentar la oferta estadística en línea al público y hacer más funcional la página web de la entidad | H22: Desarrollar el 100% de los documentos de relatoria de la mesa tecnica de estadisticas electorales | I22: Cantidad de actividades realizadas / n* (Cantidad de actividades programadas) | J22: Porcentaje de ejecucion finanaciera del proyecto reportado en la plataforma del S.P.I.-DNP | K22: 1 | L22: Documento de relatoria | M22: Archivo de gestión de la Coordinación CEDAE | O22: 0.33 | Q22: 0.33 | S22: 0.33 | T22: Jefe Oficina de Planeación Coordinador(a) CEDAE | U22: 2021-03-01 | V22: 2021-12-31
A23: Gestion del Talento Humano | B23: Formación permanente para los servidores de la Registraduría Nacional del Estado Civil, en la gestión del desarrollo y en técnicas y competencias de aplicación misional | C23: 1 | D23: Realizar la gestión de la asistencia técnica con apoyo logístico. | E23: Plan Institucional de Capacitación | F23: Objetivo_1._Rediseñar_la_arquitectura_organizacional_de_la_entidad_para_fortalecer_sus_capacidades | G23: 7. Robustecer la estrategia de capacitación de funcionarios en la entidad, con especial énfasis en su inducción y reinducción | H23: 100% de actividades realizadas con la asistencia técnica y apoyo logístico | I23: Cantidad de actividades realizadas / (n*Cantidad de actividades programadas) | J23: Porcentaje de ejecucion finanaciera del proyecto reportado en la plataforma del S.P.I.-DNP | K23: =+N23+O23+P23+Q23+R23+S23 -> 1.00000015 | L23: Informe de Seguimiento Proyectos de Inversión-F.R.R. (PGFT01) | M23: Archivo de Gestión Despacho de la GTH | O23: =1/10 -> 0.1 | P23: =1/4 -> 0.25 | Q23: 0.25 | R23: 0.25 | S23: =1/6.66666 -> 0.15000015 | T23: Gerente del Talento Humano Coordinadora de Desarrollo Integral Formulador del Proyecto | U23: 2021-03-01 | V23: 2021-12-31
A24: Gestion del Talento Humano | B24: Formación permanente para los servidores de la Registraduría Nacional del Estado Civil, en la gestión del desarrollo y en técnicas y competencias de aplicación misional | C24: 2 | D24: Realizar actividades de la gestión del conocimiento y la transmisión de saberes. | E24: Plan Institucional de Capacitación | F24: Objetivo_1._Rediseñar_la_arquitectura_organizacional_de_la_entidad_para_fortalecer_sus_capacidades | G24: 7. Robustecer la estrategia de capacitación de funcionarios en la entidad, con especial énfasis en su inducción y reinducción | H24: 100% de actividades de gestión del conocimiento realizadas. | I24: Cantidad de actividades realizadas / (n*Cantidad de actividades programadas) | J24: Porcentaje de ejecucion finanaciera del proyecto reportado en la plataforma del S.P.I.-DNP | K24: =+N24+O24+P24+Q24+R24+S24 -> 1.00000015 | L24: Informe de Seguimiento Proyectos de Inversión-F.R.R. (PGFT01) | M24: Archivo de Gestión Despacho de la GTH | O24: =1/10 -> 0.1 | P24: 0.25 | Q24: 0.25 | R24: 0.25 | S24: =1/6.66666 -> 0.15000015 | T24: Gerente del Talento Humano Coordinadora de Desarrollo Integral Formulador del Proyecto | U24: 2021-03-01 | V24: 2021-12-31
A25: Gestion del Talento Humano | B25: Formación permanente para los servidores de la Registraduría Nacional del Estado Civil, en la gestión del desarrollo y en técnicas y competencias de aplicación misional | C25: 3 | D25: Realizar actividades de formación en el afianzamiento de las competencias y fortalecimiento de los conocimientos relacionados con los productos y servicios misionales a entregar. | E25: Plan Institucional de Capacitación | F25: Objetivo_1._Rediseñar_la_arquitectura_organizacional_de_la_entidad_para_fortalecer_sus_capacidades | G25: 7. Robustecer la estrategia de capacitación de funcionarios en la entidad, con especial énfasis en su inducción y reinducción | H25: 100% de actividades de fortalecimiento en los conocimientos misionales | I25: Cantidad de actividades realizadas / (n*Cantidad de actividades programadas) | J25: Porcentaje de ejecucion finanaciera del proyecto reportado en la plataforma del S.P.I.-DNP | K25: =+N25+O25+P25+Q25+R25+S25 -> 1.00000015 | L25: Informe de Seguimiento Proyectos de Inversión-F.R.R. (PGFT01) | M25: Archivo de Gestión Despacho de la GTH | O25: =1/10 -> 0.1 | P25: 0.25 | Q25: 0.25 | R25: 0.25 | S25: =1/6.66666 -> 0.15000015 | T25: Gerente del Talento Humano Coordinadora de Desarrollo Integral Formulador del Proyecto | U25: 2021-03-01 | V25: 2021-12-31
A26: Gestion del Talento Humano | B26: Formación permanente para los servidores de la Registraduría Nacional del Estado Civil, en la gestión del desarrollo y en técnicas y competencias de aplicación misional | C26: 4 | D26: Fomentar la participación de los servidores en cursos, seminarios, congresos, diplomados y otros, en temas misionales de la Entidad a través de actividades de formación por demanda. | E26: Plan Institucional de Capacitación | F26: Objetivo_1._Rediseñar_la_arquitectura_organizacional_de_la_entidad_para_fortalecer_sus_capacidades | G26: 7. Robustecer la estrategia de capacitación de funcionarios en la entidad, con especial énfasis en su inducción y reinducción | H26: 100% de actividades de formación por demanda desarrolladas | I26: Cantidad de actividades realizadas / (n*Cantidad de actividades programadas) | J26: Porcentaje de ejecucion finanaciera del proyecto reportado en la plataforma del S.P.I.-DNP | K26: =+N26+O26+P26+Q26+R26+S26 -> 1.00000015 | L26: Informe de Seguimiento Proyectos de Inversión-F.R.R. (PGFT01) | M26: Archivo de Gestión Despacho de la GTH | O26: =1/10 -> 0.1 | P26: 0.25 | Q26: 0.25 | R26: 0.25 | S26: =1/6.66666 -> 0.15000015 | T26: Gerente del Talento Humano Coordinadora de Desarrollo Integral Formulador del Proyecto | U26: 2021-03-01 | V26: 2021-12-31
A27: Registro civil e Identificación | B27: Fortalecimiento del sistema de información de registro civil nacional | C27: 1 | D27: Incorporar Registros Civiles a través de una herramienta tecnológica por parte de oficinas con función registral y autorizadas diferentes a la Registraduría Nacional del Estado Civil | E27: Plan Estratégico | F27: Objetivo_2._Optimizar_y_modernizar_los_procesos_misionales_y_de_apoyo_de_la_entidad_gracias_al_uso_de_nuevas_tecnologías | G27: 2. Impulsar la transformación digital de los procesos de la entidad a través de innovaciones como registro civil en línea, cédula electrónica, cédula digital y voto mixto, entre otros | H27: Incorporaciòn del 100% de los RCX expedidos desde la herramienta SRCWeb a la base de datos SIRC | I27: Cantidad de RCX expedidos desde la herramienta SRCWeb/n*(RCX incorporados al SIRC de origen SRCWeb) | J27: Porcentaje de ejecucion finanaciera del proyecto reportado en la plataforma del S.P.I.-DNP | K27: 1 | L27: Reporte estadistico de producción de RCX expedidos desde la herramienta SRC Web | M27: DNRC | N27: 0.1667 | O27: 0.1667 | P27: 0.1667 | Q27: 0.1667 | R27: 0.1667 | S27: 0.1667 | T27: Dirección Nacional de Registro Civil. DNRC | U27: 2021-01-01 | V27: 2021-12-31
A28: Registro civil e Identificación | B28: Fortalecimiento del sistema de información de registro civil nacional | C28: 2 | D28: Desarrollar estrategias de divulgación a población perteneciente a comunidades indigenas y de negritudes, respecto a la importancia del registro civil. | E28: Plan Estratégico | F28: Objetivo_4._Priorizar_el_servicio_al_usuario_como_eje_central_para_la_creación_de_valor_público | G28: 3. Usar metodologías de diseño del servicio centradas en el ciudadano y los usuarios | H28: Desarrollo del 100% de eventos programados para la socialización sobre la importancia del registro civil a la población perteneciente a comunidades indigenas y de negritudes | I28: Cantidad de eventos de capacitación desarrollados/n*(Cantidad de eventos de capacitación programados) | J28: Porcentaje de ejecucion finanaciera del proyecto reportado en la plataforma del S.P.I.-DNP | K28: 1 | L28: Lista de asistentes a los eventos de capacitación | M28: DNRC | Q28: 0.2 | R28: 0.8 | T28: Dirección Nacional de Registro Civil. DNRC | U28: 2021-07-01 | V28: 2021-12-31
A29: Registro civil e Identificación | B29: Proyecto: Fortalecimiento de la plataforma tecnológica que soporta el sistema de identificación y registro civil PMT II | C29: 3 | D29: Realizar seguimiento de las actividades del proyecto de Fortalecimiento de la plataforma tecnológica que soporta el sistema de identificación y registro civil PMT II | E29: Plan Estratégico | F29: Objetivo_2._Optimizar_y_modernizar_los_procesos_misionales_y_de_apoyo_de_la_entidad_gracias_al_uso_de_nuevas_tecnologías | G29: 2. Impulsar la transformación digital de los procesos de la entidad a través de innovaciones como registro civil en línea, cédula electrónica, cédula digital y voto mixto, entre otros | H29: Realizar el 100% de las activiades de segumeinto al proyecto de Fortalecimiento de la plataforma tecnológica que soporta el sistema de identificación y registro civil PMT II | I29: Cantidad de actividades de seguimeinto al proyecto ejecutadas en el periodo /n*Cantidad de actividades de seguimiento al proyecto programadas en el periodo | J29: Porcentaje de ejecucion finanaciera del proyecto reportado en la plataforma del S.P.I.-DNP | K29: 1 | L29: Informe de seguimiento al proyecto | M29: Registraduria Delegada para el Registro Civil y la Identificación | O29: 0.2 | P29: 0.2 | Q29: 0.2 | R29: 0.2 | S29: 0.2 | T29: Registrador Delegado para el Registro Civil y la Identificación Gerente de Informatica | U29: 2021-02-15 | V29: 2021-12-31
A30: Registro civil e Identificación | B30: Proyecto: Fortalecimiento de la capacidad de atención en Identificación para la población en condición de vulnerabilidad, APD. Nacional | C30: 4 | D30: Realizar las actividades del proyecto de fortalecimiento de la capacidad de atención en Identificación para la población en condición de vulnerabilidad, APD. Nacional | E30: N/A | H30: Realizar el 100% de las actividades programadas del proyecto de fortalecimiento de la capacidad de atención en Identificación para la población en condición de vulnerabilidad, APD. Nacional | I30: Cantidad de actividades ejecutadas de proyecto /n*cantidad de actividades programadas en el periodo | J30: Porcentaje de ejecucion finanaciera del proyecto reportado en la plataforma del S.P.I.-DNP | K30: 6 | L30: Informe de seguimiento al proyecto | M30: Registraduria Delegada para el Registro Civil y la Identificación | N30: 1 | O30: 1 | P30: 1 | Q30: 1 | R30: 1 | S30: 1 | T30: Unidad de Atención a Población Vulnerable. UDAPV | U30: 2021-01-01 | V30: 2021-12-31
A31: Registro civil e Identificación | B31: Proyecto: Fortalecimiento de la plataforma tecnológica que soporta el sistema de identificación y registro civil PMT II | C31: 5 | D31: Implementar el registro civil en línea | E31: Plan Estratégico | F31: Objetivo_2._Optimizar_y_modernizar_los_procesos_misionales_y_de_apoyo_de_la_entidad_gracias_al_uso_de_nuevas_tecnologías | G31: 2. Impulsar la transformación digital de los procesos de la entidad a través de innovaciones como registro civil en línea, cédula electrónica, cédula digital y voto mixto, entre otros | H31: Ejecución de las actividades propias para lograr la implementación del registro Civil en línea | I31: Avance de las actividades para la implementación del registro civil | J31: Porcentaje de ejecucion finanaciera del proyecto reportado en la plataforma del S.P.I.-DNP | K31: 0.35 | L31: Documentos resultado del análisis diseño y arquitectura del Registro civil en línea, Resultado prueba pilo de tomo y folio y Resultado de depuración. | M31: Registraduría Delegada para el Registro Civil y la Identificación | S31: 0.35 | T31: Registraduría Delegada para el Registro Civil y la Identificación Gerente de Informática | U31: 2021-01-01 | V31: 2021-12-31
A32: Gestión Tecnológica de la Información y las Comunicaciones | B32: Proyecto: Fortalecimiento de la Red Corporativa de Telecomunicaciones - PMT, Electoral y Administrativa Nacional | C32: 1 | D32: Desarrollar el proyecto de Fortalecimiento de la Red Corporativa de Telecomunicaciones - PMT, Electoral y Administrativa Nacional | E32: Plan Estratégico | F32: Objetivo_2._Optimizar_y_modernizar_los_procesos_misionales_y_de_apoyo_de_la_entidad_gracias_al_uso_de_nuevas_tecnologías | G32: 4. Automatizar procesos y virtualizar servicios | H32: Realizar el 100% de las actividades programadas del protecto Fortalecimiento de la Red Corporativa de Telecomunicaciones - PMT, Electoral y Administrativa Nacional | I32: Cantidad de subactividades realizadas /(n)*Cantidad de subactividades programadas. | J32: Porcentaje de ejecucion finanaciera del proyecto reportado en la plataforma del S.P.I.-DNP | K32: 1 | L32: Resumen Ejecutivo SPI. | M32: https://spi.dnp.gov.co/Registro/RegistroInformacion.aspx?id=img_Registrar%20Seguimiento | N32: 0.1667 | O32: 0.1667 | P32: 0.1667 | Q32: 0.1667 | R32: 0.1667 | S32: 0.1667 | T32: ALEJANDRO CAMPO VALERO | U32: 2020-01-01 | V32: 2020-12-31
A33: Gestión Tecnológica de la Información y las Comunicaciones | B33: Proyecto: Fortalecimiento del servicio del Sistema del Archivo Nacional de Identificación ANI y Sistemas conexos Nacional | C33: 1 | D33: Desarrollar el Proyecto Fortalecimiento del servicio del Sistema del Archivo Nacional de Identificación ANI y Sistemas conexos Nacional | E33: Plan Estratégico | F33: Objetivo_2._Optimizar_y_modernizar_los_procesos_misionales_y_de_apoyo_de_la_entidad_gracias_al_uso_de_nuevas_tecnologías | G33: 4. Automatizar procesos y virtualizar servicios | H33: Realizar el 100% de las actividades programadas del protecto Fortalecimiento del servicio del Sistema del Archivo Nacional de Identificación ANI y Sistemas conexos Nacional | I33: Cantidad de subactividades realizadas /(n)*Cantidad de subactividades programadas. | J33: Porcentaje de ejecucion finanaciera del proyecto reportado en la plataforma del S.P.I.-DNP | K33: 1 | L33: Resumen Ejecutivo SPI. | M33: https://spi.dnp.gov.co/Registro/RegistroInformacion.aspx?id=img_Registrar%20Seguimiento | N33: 0.1667 | O33: 0.1667 | P33: 0.1667 | Q33: 0.1667 | R33: 0.1667 | S33: 0.1667 | T33: ALEJANDRO CAMPO VALERO | U33: 2020-05-01 | V33: 2020-12-31
A34: Gestión Tecnológica de la Información y las Comunicaciones | B34: Proyecto: Mejoramiento de la Red Eléctrica y de Comunicaciones a Nivel Nacional | C34: 1 | D34: Desarrollar el Proyecto Mejoramiento de la Red Eléctrica y de Comunicaciones a Nivel Nacional | E34: Plan Estratégico | F34: Objetivo_2._Optimizar_y_modernizar_los_procesos_misionales_y_de_apoyo_de_la_entidad_gracias_al_uso_de_nuevas_tecnologías | G34: 4. Automatizar procesos y virtualizar servicios | H34: Realizar el 100% de las actividades programadas del protecto Mejoramiento de la Red Eléctrica y de Comunicaciones a Nivel Nacional | I34: Cantidad de subactividades realizadas /(n)*Cantidad de subactividades programadas. | J34: Porcentaje de ejecucion finanaciera del proyecto reportado en la plataforma del S.P.I.-DNP | K34: 1 | L34: Resumen Ejecutivo SPI. | M34: https://spi.dnp.gov.co/Registro/RegistroInformacion.aspx?id=img_Registrar%20Seguimiento | N34: 0.1667 | O34: 0.1667 | P34: 0.1667 | Q34: 0.1667 | R34: 0.1667 | S34: 0.1667 | T34: ALEJANDRO CAMPO VALERO | U34: 2020-01-01 | V34: 2020-12-31
A35: Gestión Tecnológica de la Información y las Comunicaciones | B35: Proyecto: Servicio de respaldo de los sistemas de información de procesos de identificación, electorales y administrativos a nivel Nacional | C35: 1 | D35: Desarrollar el Proyecto Servicio de respaldo de los sistemas de información de procesos de identificación, electorales y administrativos a nivel Nacional | E35: Plan Estratégico | F35: Objetivo_2._Optimizar_y_modernizar_los_procesos_misionales_y_de_apoyo_de_la_entidad_gracias_al_uso_de_nuevas_tecnologías | G35: 4. Automatizar procesos y virtualizar servicios | H35: Realizar el 100% de las actividades programadas del protecto Servicio de respaldo de los sistemas de información de procesos de identificación, electorales y administrativos a nivel Nacional | I35: Cantidad de subactividades realizadas /(n)*Cantidad de subactividades programadas. | J35: Porcentaje de ejecucion finanaciera del proyecto reportado en la plataforma del S.P.I.-DNP | K35: 1 | L35: Resumen Ejecutivo SPI. | M35: https://spi.dnp.gov.co/Registro/RegistroInformacion.aspx?id=img_Registrar%20Seguimiento | N35: 0.1667 | O35: 0.1667 | P35: 0.1667 | Q35: 0.1667 | R35: 0.1667 | S35: 0.1667 | T35: ALEJANDRO CAMPO VALERO | U35: 2020-01-01 | V35: 2020-12-31
A36: Gestión Tecnológica de la Información y las Comunicaciones | B36: Proyecto: Mejoramiento y renovación de la infraestructura tecnológica para la Registraduría Nacional del Estado Civil Nacional | C36: 1 | D36: Desarrollar el Proyecto Mejoramiento y renovación de la infraestructura tecnológica para la Registraduría Nacional del Estado Civil Nacional | E36: Plan Estratégico | F36: Objetivo_2._Optimizar_y_modernizar_los_procesos_misionales_y_de_apoyo_de_la_entidad_gracias_al_uso_de_nuevas_tecnologías | G36: 4. Automatizar procesos y virtualizar servicios | H36: Realizar el 100% de las actividades programadas del protecto Mejoramiento y renovación de la infraestructura tecnológica para la Registraduría Nacional del Estado Civil Nacional | I36: Cantidad de subactividades realizadas /(n)*Cantidad de subactividades programadas. | J36: Porcentaje de ejecucion finanaciera del proyecto reportado en la plataforma del S.P.I.-DNP | K36: 1 | L36: Resumen Ejecutivo SPI. | M36: https://spi.dnp.gov.co/Registro/RegistroInformacion.aspx?id=img_Registrar%20Seguimiento | R36: 0.5 | S36: 0.5 | T36: ALEJANDRO CAMPO VALERO | U36: 2020-10-01 | V36: 2020-12-31
A37: Gestión Administrativa y Financiera | B37: Mantenimiento y Mejoramiento de la infraestructura física a nivel nacional | C37: 1 | D37: Suscribir los contratos de obra para el proyecto mejoramiento y/o mantenimiento de sedes | E37: N/A | H37: Suscribir el !00% de los contratos de obra para el mejoramiento y mantemiento de las sedes | I37: Cantidad de contratos de obra suscritos el periodo/ n* Cantidad de contratos a suscribir en el perido | J37: Porcentaje de ejecucion finanaciera del proyecto reportado en la plataforma del S.P.I.-DNP | K37: 1 | L37: Resumen ejecutivo | M37: SPI | O37: 0.1 | P37: 0.4 | Q37: 0.5 | T37: Dily Marina Maestre Zabala | U37: 2021-03-01 | V37: 2021-08-31
A38: Gestión Administrativa y Financiera | B38: Implementación Sistema de Gestión Documental Registraduría Nacional del Estado Civil | C38: 2 | D38: Suscribir y supervisar el contrato para la implementación del SGDEA en el Nivel Central en la vigencia 2021 | E38: Plan Estratégico | F38: Objetivo_2._Optimizar_y_modernizar_los_procesos_misionales_y_de_apoyo_de_la_entidad_gracias_al_uso_de_nuevas_tecnologías | G38: 9. Implementar el sistema de gestión de documentos electrónicos de archivo (SGDEA) | H38: Suscribir y supervisar el 100% de las actividades de contrato en la vigencia 2021 | I38: Cantidad de actividades de supervisión realizadas el periodo/ n* Cantidad de actividades de supervisión programadas el periodo | J38: Porcentaje de ejecucion finanaciera del proyecto reportado en la plataforma del S.P.I.-DNP | K38: 1 | L38: Contrato suscrito Reporte de cumplimiento de actividades de superisión | M38: Secop II | R38: 0.6 | S38: 0.4 | T38: Dily Marina Maestre Zabala | U38: 2021-09-01 | V38: 2021-12-31
A40: Nombre del responsable del diligenciamiento: Consolidado por David Ivan Ramos Barraza
A41: Cargo: Profesional universitario
A42: Fecha diligenciamiento:25/01/2021

Sheet Hoja1 (hidden)
A1: Planeación y Direccionamiento Estratégico | B1: Servicio al Colombiano | D1: Objetivo_1._Rediseñar_la_arquitectura_organizacional_de_la_entidad_para_fortalecer_sus_capacidades | F1: Objetivo 1. Rediseñar la arquitectura organizacional de la entidad para fortalecer sus capacidades
A2: Gestión de Comunicación Publica y Estratégica | B2: Planeación de la gestión institucional | D2: Objetivo_2._Optimizar_y_modernizar_los_procesos_misionales_y_de_apoyo_de_la_entidad_gracias_al_uso_de_nuevas_tecnologías | F2: 1. Reestructurar orgánica y funcionalmente la RNEC en los niveles central y desconcentrado
A3: Registro civil e Identificación | B3: Sistema de gestión y mejoramiento Institucional | D3: Objetivo_3._Fortalecer_la_democracia_mediante_reformas_legales_estratégicas_el_posicionamiento_del_nuevo_sistema_democrático_juvenil_y_la_adopción_de_un_enfoque_diferencial | F3: 2. Fortalecer y redistribuir la planta de personal en los niveles central y desconcentrado
A4: Electoral | B4: Comunicación organizacional | D4: Objetivo_4._Priorizar_el_servicio_al_usuario_como_eje_central_para_la_creación_de_valor_público | F4: 3. Lograr el reajuste salarial de los servidores públicos de la RNEC
A5: Gestion del Talento Humano | B5: Registro y actualización del sistema | D5: Objetivo_5._Hacer_de_la_RNEC_una_entidad_respetuosa_del_medio_ambiente_que_contribuya_a_la_mitigación_del_cambio_climático | F5: 4. Aumentar la autosostenibilidad financiera de la RNEC mediante el ajuste tarifario y otras estrategias
A6: Gestión Tecnológica de la Información y las Comunicaciones | B6: Certificación, documentación y servicios | F6: 5. Adoptar protocolos sanitarios y de bioseguridad que permitan mantener “espacios sanos” frente a la pandemia en las instalaciones de la entidad
A7: Gestión Jurídica | B7: Debates electorales | F7: 6. Crear una dependencia encargada de asuntos internacionales y fortalecer el servicio al usuario en el exterio
A8: Gestión Administrativa y Financiera | B8: Mecanismos de participación | F8: 7. Robustecer la estrategia de capacitación de funcionarios en la entidad, con especial énfasis en su inducción y reinducción
A9: Gestión y Control Disciplinario | B9: Vinculación del talento humano | F9: 8. Crear y desarrollar la estrategia de lucha anticorrupción en la entidad y obtener la certicación en la norma de gestión antisoborno ISO 37001
A10: Gestión del Sistema de Control Interno | B10: Permanencia del talento humano | F10: 9. Gestionar y obtener la certicación de la entidad en la norma de gestión de seguridad y salud en el trabajo ISO 45001
A11: Fondo Social de Vivienda | B11: Retiro del talento humano | F11: Objetivo 2. Optimizar y modernizar los procesos misionales y de apoyo de la entidad gracias al uso de nuevas tecnologías
B12: Gestión de infraestructura tecnológica | F12: 1. Virtualizar aceleradamente los procesos de gestión, fortalecer el teletrabajo y exibilizar los horarios para elevar la productividad de los servidores e impactar positivamente el medio ambiente
B13: Gestión de software | F13: 2. Impulsar la transformación digital de los procesos de la entidad a través de innovaciones como registro civil en línea, cédula electrónica, cédula digital y voto mixto, entre otros
B14: Soporte técnico | F14: 3. Portabilizar sistemas y herramientas informáticas mediante la creación de nuevas aplicaciones
B15: Representación judicial | F15: 4. Automatizar procesos y virtualizar servicios
B16: Gestión de los recursos financieros | F16: 5. Alinear el diseño del Plan Estratégico de Tecnologías de la Información (PETI) con la transformación digital de la RNEC
B17: Gestión contractual | F17: 6. Crear el grupo de trabajo de Innovación Tecnológica, Analítica de Datos e Inteligencia Articial
B18: Gestión de los recursos físicos | F18: 7. Implementar el sistema de gestión integral de seguridad de la información y obtener la certicación de la entidad en la norma de seguridad de la información ISO 27001
B19: Gestion documental | F19: 8. Desarrollar una herramienta para actualizar la DIVIPOLE y fortalecer la zonicación electoral
B20: Actuaciones disciplinarias | F20: 9. Implementar el sistema de gestión de documentos electrónicos de archivo (SGDEA)
B21: Auditoria Interna | F21: Objetivo 3. Fortalecer la democracia mediante reformas legales estratégicas, el posicionamiento del nuevo sistema democrático juvenil y la adopción de un enfoque diferencial
B22: Seguimiento a la gestión institucional | F22: 1. Impulsar, articuladamente con el CNE, la presentación y aprobación del proyecto de nuevo Código Electoral ante el Congreso de la República
B23: Proyecto: Fortalecimiento de la plataforma tecnológica que soporta el sistema de identificación y registro civil PMT II | F23: 2. Implementar las medidas que estimulan la participación electoral contempladas en el proyecto de nuevo Código Electoral: extensión de la jornada electoral, transporte gratuito el día de elecciones, voto anticipado, voto domiciliario, mayores estímulos para el votante y facilidades para la inscripción
B24: Proyecto: Fortalecimiento de la Red Corporativa de Telecomunicaciones - PMT, Electoral y Administrativa Nacional | F24: 3. Diseñar e implementar estrategias para reducir la cantidad de votos nulos en las elecciones
B25: Proyecto: Mejoramiento y mantenimiento de la infraestructura administrativa a nivel Nacional | F25: 4. Implementar, posicionar y hacer pedagogía del nuevo sistema de democracia juvenil
B26: Proyecto: Mejoramiento de la Red Eléctrica y de Comunicaciones a Nivel Nacional | F26: 5. Diseñar un sistema de capacitaciones de impacto nacional en valores democráticos para jóvenes entre los 14 y 18 años
B27: Proyecto: Mejoramiento y renovación de la infraestructura tecnológica para la Registraduría Nacional del Estado Civil Nacional | F27: 6. Promover y racionalizar el uso de los mecanismos de participación ciudadana
B28: Proyecto: Fortalecimiento del servicio del Sistema del Archivo Nacional de Identificación ANI y Sistemas conexos Nacional | F28: 7. Crear una dependencia encargada de fomentar la participación ciudadana y la democracia con enfoque diferencial
B29: Proyecto: Servicio de respaldo de los sistemas de información de procesos de identificación, electorales y administrativos a nivel Nacional | F29: 8. Fortalecer y transformar el CEDAE en un instituto de investigación, capacitación y educación en democracia
B30: Proyecto: Implementación Sistema de Gestión Documental Registraduría Nacional | F30: 9. Modernizar los procesos de Registro Civil e Identicación como presupuestos de la democracia
B31: Proyecto: Formación permanente para los servidores de la Registraduría Nacional del Estado Civil, en la gestión del desarrollo y en técnicas y competencias de aplicación misional. Nacional | F31: Objetivo 4. Priorizar el servicio al usuario como eje central para la creación de valor público
B32: Proyecto: Fortalecimiento de la capacidad de atención en Identificación para la población en condición de vulnerabilidad, APD. Nacional | F32: 1. Virtualizar aceleradamente los procesos de servicio al usuario, fortalecer los servicios digitales y eliminar al máximo los trámites presenciales
B33: Proyecto: Fortalecimiento del Sistema de Información de Registro Civil Nacional | F33: 2. Cambiar el paradigma cultural de los servidores en cuanto al servicio al usuario teniendo en cuenta nuevos valores institucionales, entre otros factores
B34: Proyecto: Fortalecimiento del Centro de Estudios en Democracia y Asuntos Electorales - CEDAE - Nacional | F34: 3. Usar metodologías de diseño del servicio centradas en el ciudadano y los usuarios
F35: 4. Crear una dependencia encargada del Servicio al Usuario
F36: 5. Formular e inscribir un proyecto de inversión que fortalezca el servicio al usuario para las vigencias de 2021 a 2023
F37: 6. Crear nuevas Registradurías auxiliares y quioscos digitales, en función de las necesidades demográcas, los requisitos legales y las capacidades presupuestales
F38: 7. Aumentar la oferta estadística en línea al público y hacer más funcional la página web de la entidad
F39: Objetivo 5 Hacer de la RNEC una entidad respetuosa del medio ambiente que contribuya a la mitigación del cambio climático
F40: 1. Elaborar el Plan de Gestión Ambiental (PGA) de la entidad para el cuatrienio
F41: 2. Desarrollar un modelo sostenible de adquisición de bienes y servicios
F42: 3. Fortalecer el esquema de disminución y disposición de residuos sólidos
F43: 4. Fomentar la cultura y ciudadanía ambiental, así como el uso razonable de los recursos naturales entre servidores y usuarios
F44: 5. Fortalecer la política de cero papel en la entidad
F45: 6. Diseñar e implementar un plan de recolección, remate, reciclaje, destrucció y disposición nal del material electoral sobrante de los procesos electorales
F46: 7. Fortalecer la estrategia de sustitución de medios de movilidad contaminante por el uso de medios de transporte ecológicos alternativos entre los servidores de la entidad
F47: 8. Implementar tecnologías y sistemas que permitan el ahorro y la reutilización del agua en la entidad
F48: 9. Gestionar y obtener la certicación de la entidad en la norma ambiental ISO 14001
